Workbook

Sheet F1
B2: Sporta viktorīnas speciālizlaidums | F1 viktorīna | 2025.gada 13.augusts
B5: KOMANDAS / RAUNDI | C5: 1 | D5: 2 | E5: 3 | F5: 4 | G5: Ķēde | H5: 6 | I5: 7 | J5: 8 | K5: 9 | L5: Ana-gramma | M5: KOPĀ
B16: =#REF! ->  | C16: =#REF! ->  | D16: =#REF! ->  | E16: =#REF! ->  | F16: =#REF! ->  | G16: =#REF! ->  | H16: =#REF! ->  | I16: =#REF! ->  | J16: =#REF! ->  | K16: =#REF! ->  | L16: =#REF! ->  | M16: =#REF! -> 
B17: =#REF! ->  | C17: =#REF! ->  | D17: =#REF! ->  | E17: =#REF! ->  | F17: =#REF! ->  | G17: =#REF! ->  | H17: =#REF! ->  | I17: =#REF! ->  | J17: =#REF! ->  | K17: =#REF! ->  | L17: =#REF! ->  | M17: =#REF! -> 
B18: =#REF! ->  | C18: =#REF! ->  | D18: =#REF! ->  | E18: =#REF! ->  | F18: =#REF! ->  | G18: =#REF! ->  | H18: =#REF! ->  | I18: =#REF! ->  | J18: =#REF! ->  | K18: =#REF! ->  | L18: =#REF! ->  | M18: =#REF! -> 
B19: =#REF! ->  | C19: =#REF! ->  | D19: =#REF! ->  | E19: =#REF! ->  | F19: =#REF! ->  | G19: =#REF! ->  | H19: =#REF! ->  | I19: =#REF! ->  | J19: =#REF! ->  | K19: =#REF! ->  | L19: =#REF! ->  | M19: =#REF! -> 
B20: =#REF! ->  | C20: =#REF! ->  | D20: =#REF! ->  | E20: =#REF! ->  | F20: =#REF! ->  | G20: =#REF! ->  | H20: =#REF! ->  | I20: =#REF! ->  | J20: =#REF! ->  | K20: =#REF! ->  | L20: =#REF! ->  | M20: =#REF! -> 
B21: =#REF! ->  | C21: =#REF! ->  | D21: =#REF! ->  | E21: =#REF! ->  | F21: =#REF! ->  | G21: =#REF! ->  | H21: =#REF! ->  | I21: =#REF! ->  | J21: =#REF! ->  | K21: =#REF! ->  | L21: =#REF! ->  | M21: =#REF! -> 
B22: =#REF! ->  | C22: =#REF! ->  | D22: =#REF! ->  | E22: =#REF! ->  | F22: =#REF! ->  | G22: =#REF! ->  | H22: =#REF! ->  | I22: =#REF! ->  | J22: =#REF! ->  | K22: =#REF! ->  | L22: =#REF! ->  | M22: =#REF! -> 

Sheet iisaFBversija_uzreiz_pecspeles (hidden)
C2: ='F1'!B2 -> Sporta viktorīnas speciālizlaidums | F1 viktorīna | 2025.gada 13.augusts
B4: # | C4: Komandas / Raundi | D4: 1 | G4: 2 | J4: 3 | M4: 4 | P4: 5 | R4: 6 | U4: 7 | X4: 8 | AA4: 9 | AD4: 10 | AG4: KOPĀ
B5: =#REF! ->  | C5: =#REF! ->  | D5: =#REF! ->  | E5: =#REF! ->  | F5: =#REF! ->  | G5: =#REF! ->  | H5: =#REF! ->  | I5: =#REF! ->  | J5: =#REF! ->  | K5: =#REF! ->  | L5: =#REF! ->  | M5: =#REF! ->  | N5: =#REF! ->  | O5: =#REF! ->  | P5: =#REF! ->  | Q5: =#REF! ->  | R5: =#REF! ->  | S5: =#REF! ->  | T5: =#REF! ->  | U5: =#REF! ->  | V5: =#REF! ->  | W5: =#REF! ->  | X5: =#REF! ->  | Y5: =#REF! ->  | Z5: =#REF! ->  | AA5: =#REF! ->  | AB5: =#REF! ->  | AC5: =#REF! ->  | AD5: =#REF! ->  | AE5: =#REF! ->  | AF5: =#REF! ->  | AG5: =#REF! ->  | AH5: =#REF! -> 
B6: =#REF! ->  | C6: =#REF! ->  | D6: =#REF! ->  | E6: =#REF! ->  | F6: =#REF! ->  | G6: =#REF! ->  | H6: =#REF! ->  | I6: =#REF! ->  | J6: =#REF! ->  | K6: =#REF! ->  | L6: =#REF! ->  | M6: =#REF! ->  | N6: =#REF! ->  | O6: =#REF! ->  | P6: =#REF! ->  | Q6: =#REF! ->  | R6: =#REF! ->  | S6: =#REF! ->  | T6: =#REF! ->  | U6: =#REF! ->  | V6: =#REF! ->  | W6: =#REF! ->  | X6: =#REF! ->  | Y6: =#REF! ->  | Z6: =#REF! ->  | AA6: =#REF! ->  | AB6: =#REF! ->  | AC6: =#REF! ->  | AD6: =#REF! ->  | AE6: =#REF! ->  | AF6: =#REF! ->  | AG6: =#REF! ->  | AH6: =#REF! -> 
B7: =#REF! ->  | C7: =#REF! ->  | D7: =#REF! ->  | E7: =#REF! ->  | F7: =#REF! ->  | G7: =#REF! ->  | H7: =#REF! ->  | I7: =#REF! ->  | J7: =#REF! ->  | K7: =#REF! ->  | L7: =#REF! ->  | M7: =#REF! ->  | N7: =#REF! ->  | O7: =#REF! ->  | P7: =#REF! ->  | Q7: =#REF! ->  | R7: =#REF! ->  | S7: =#REF! ->  | T7: =#REF! ->  | U7: =#REF! ->  | V7: =#REF! ->  | W7: =#REF! ->  | X7: =#REF! ->  | Y7: =#REF! ->  | Z7: =#REF! ->  | AA7: =#REF! ->  | AB7: =#REF! ->  | AC7: =#REF! ->  | AD7: =#REF! ->  | AE7: =#REF! ->  | AF7: =#REF! ->  | AG7: =#REF! ->  | AH7: =#REF! -> 
B8: =#REF! ->  | C8: =#REF! ->  | D8: =#REF! ->  | E8: =#REF! ->  | F8: =#REF! ->  | G8: =#REF! ->  | H8: =#REF! ->  | I8: =#REF! ->  | J8: =#REF! ->  | K8: =#REF! ->  | L8: =#REF! ->  | M8: =#REF! ->  | N8: =#REF! ->  | O8: =#REF! ->  | P8: =#REF! ->  | Q8: =#REF! ->  | R8: =#REF! ->  | S8: =#REF! ->  | T8: =#REF! ->  | U8: =#REF! ->  | V8: =#REF! ->  | W8: =#REF! ->  | X8: =#REF! ->  | Y8: =#REF! ->  | Z8: =#REF! ->  | AA8: =#REF! ->  | AB8: =#REF! ->  | AC8: =#REF! ->  | AD8: =#REF! ->  | AE8: =#REF! ->  | AF8: =#REF! ->  | AG8: =#REF! ->  | AH8: =#REF! -> 
B9: =#REF! ->  | C9: =#REF! ->  | D9: =#REF! ->  | E9: =#REF! ->  | F9: =#REF! ->  | G9: =#REF! ->  | H9: =#REF! ->  | I9: =#REF! ->  | J9: =#REF! ->  | K9: =#REF! ->  | L9: =#REF! ->  | M9: =#REF! ->  | N9: =#REF! ->  | O9: =#REF! ->  | P9: =#REF! ->  | Q9: =#REF! ->  | R9: =#REF! ->  | S9: =#REF! ->  | T9: =#REF! ->  | U9: =#REF! ->  | V9: =#REF! ->  | W9: =#REF! ->  | X9: =#REF! ->  | Y9: =#REF! ->  | Z9: =#REF! ->  | AA9: =#REF! ->  | AB9: =#REF! ->  | AC9: =#REF! ->  | AD9: =#REF! ->  | AE9: =#REF! ->  | AF9: =#REF! ->  | AG9: =#REF! ->  | AH9: =#REF! -> 
B10: =#REF! ->  | C10: =#REF! ->  | D10: =#REF! ->  | E10: =#REF! ->  | F10: =#REF! ->  | G10: =#REF! ->  | H10: =#REF! ->  | I10: =#REF! ->  | J10: =#REF! ->  | K10: =#REF! ->  | L10: =#REF! ->  | M10: =#REF! ->  | N10: =#REF! ->  | O10: =#REF! ->  | P10: =#REF! ->  | Q10: =#REF! ->  | R10: =#REF! ->  | S10: =#REF! ->  | T10: =#REF! ->  | U10: =#REF! ->  | V10: =#REF! ->  | W10: =#REF! ->  | X10: =#REF! ->  | Y10: =#REF! ->  | Z10: =#REF! ->  | AA10: =#REF! ->  | AB10: =#REF! ->  | AC10: =#REF! ->  | AD10: =#REF! ->  | AE10: =#REF! ->  | AF10: =#REF! ->  | AG10: =#REF! ->  | AH10: =#REF! -> 
B11: =#REF! ->  | C11: =#REF! ->  | D11: =#REF! ->  | E11: =#REF! ->  | F11: =#REF! ->  | G11: =#REF! ->  | H11: =#REF! ->  | I11: =#REF! ->  | J11: =#REF! ->  | K11: =#REF! ->  | L11: =#REF! ->  | M11: =#REF! ->  | N11: =#REF! ->  | O11: =#REF! ->  | P11: =#REF! ->  | Q11: =#REF! ->  | R11: =#REF! ->  | S11: =#REF! ->  | T11: =#REF! ->  | U11: =#REF! ->  | V11: =#REF! ->  | W11: =#REF! ->  | X11: =#REF! ->  | Y11: =#REF! ->  | Z11: =#REF! ->  | AA11: =#REF! ->  | AB11: =#REF! ->  | AC11: =#REF! ->  | AD11: =#REF! ->  | AE11: =#REF! ->  | AF11: =#REF! ->  | AG11: =#REF! ->  | AH11: =#REF! -> 
B12: =#REF! ->  | C12: =#REF! ->  | D12: =#REF! ->  | E12: =#REF! ->  | F12: =#REF! ->  | G12: =#REF! ->  | H12: =#REF! ->  | I12: =#REF! ->  | J12: =#REF! ->  | K12: =#REF! ->  | L12: =#REF! ->  | M12: =#REF! ->  | N12: =#REF! ->  | O12: =#REF! ->  | P12: =#REF! ->  | Q12: =#REF! ->  | R12: =#REF! ->  | S12: =#REF! ->  | T12: =#REF! ->  | U12: =#REF! ->  | V12: =#REF! ->  | W12: =#REF! ->  | X12: =#REF! ->  | Y12: =#REF! ->  | Z12: =#REF! ->  | AA12: =#REF! ->  | AB12: =#REF! ->  | AC12: =#REF! ->  | AD12: =#REF! ->  | AE12: =#REF! ->  | AF12: =#REF! ->  | AG12: =#REF! ->  | AH12: =#REF! -> 
B13: =#REF! ->  | C13: =#REF! ->  | D13: =#REF! ->  | E13: =#REF! ->  | F13: =#REF! ->  | G13: =#REF! ->  | H13: =#REF! ->  | I13: =#REF! ->  | J13: =#REF! ->  | K13: =#REF! ->  | L13: =#REF! ->  | M13: =#REF! ->  | N13: =#REF! ->  | O13: =#REF! ->  | P13: =#REF! ->  | Q13: =#REF! ->  | R13: =#REF! ->  | S13: =#REF! ->  | T13: =#REF! ->  | U13: =#REF! ->  | V13: =#REF! ->  | W13: =#REF! ->  | X13: =#REF! ->  | Y13: =#REF! ->  | Z13: =#REF! ->  | AA13: =#REF! ->  | AB13: =#REF! ->  | AC13: =#REF! ->  | AD13: =#REF! ->  | AE13: =#REF! ->  | AF13: =#REF! ->  | AG13: =#REF! ->  | AH13: =#REF! -> 
B14: =#REF! ->  | C14: =#REF! ->  | D14: =#REF! ->  | E14: =#REF! ->  | F14: =#REF! ->  | G14: =#REF! ->  | H14: =#REF! ->  | I14: =#REF! ->  | J14: =#REF! ->  | K14: =#REF! ->  | L14: =#REF! ->  | M14: =#REF! ->  | N14: =#REF! ->  | O14: =#REF! ->  | P14: =#REF! ->  | Q14: =#REF! ->  | R14: =#REF! ->  | S14: =#REF! ->  | T14: =#REF! ->  | U14: =#REF! ->  | V14: =#REF! ->  | W14: =#REF! ->  | X14: =#REF! ->  | Y14: =#REF! ->  | Z14: =#REF! ->  | AA14: =#REF! ->  | AB14: =#REF! ->  | AC14: =#REF! ->  | AD14: =#REF! ->  | AE14: =#REF! ->  | AF14: =#REF! ->  | AG14: =#REF! ->  | AH14: =#REF! -> 
B15: =#REF! ->  | C15: =#REF! ->  | D15: =#REF! ->  | E15: =#REF! ->  | F15: =#REF! ->  | G15: =#REF! ->  | H15: =#REF! ->  | I15: =#REF! ->  | J15: =#REF! ->  | K15: =#REF! ->  | L15: =#REF! ->  | M15: =#REF! ->  | N15: =#REF! ->  | O15: =#REF! ->  | P15: =#REF! ->  | Q15: =#REF! ->  | R15: =#REF! ->  | S15: =#REF! ->  | T15: =#REF! ->  | U15: =#REF! ->  | V15: =#REF! ->  | W15: =#REF! ->  | X15: =#REF! ->  | Y15: =#REF! ->  | Z15: =#REF! ->  | AA15: =#REF! ->  | AB15: =#REF! ->  | AC15: =#REF! ->  | AD15: =#REF! ->  | AE15: =#REF! ->  | AF15: =#REF! ->  | AG15: =#REF! ->  | AH15: =#REF! -> 
B16: =#REF! ->  | C16: =#REF! ->  | D16: =#REF! ->  | E16: =#REF! ->  | F16: =#REF! ->  | G16: =#REF! ->  | H16: =#REF! ->  | I16: =#REF! ->  | J16: =#REF! ->  | K16: =#REF! ->  | L16: =#REF! ->  | M16: =#REF! ->  | N16: =#REF! ->  | O16: =#REF! ->  | P16: =#REF! ->  | Q16: =#REF! ->  | R16: =#REF! ->  | S16: =#REF! ->  | T16: =#REF! ->  | U16: =#REF! ->  | V16: =#REF! ->  | W16: =#REF! ->  | X16: =#REF! ->  | Y16: =#REF! ->  | Z16: =#REF! ->  | AA16: =#REF! ->  | AB16: =#REF! ->  | AC16: =#REF! ->  | AD16: =#REF! ->  | AE16: =#REF! ->  | AF16: =#REF! ->  | AG16: =#REF! ->  | AH16: =#REF! -> 
B17: =#REF! ->  | C17: =#REF! ->  | D17: =#REF! ->  | E17: =#REF! ->  | F17: =#REF! ->  | G17: =#REF! ->  | H17: =#REF! ->  | I17: =#REF! ->  | J17: =#REF! ->  | K17: =#REF! ->  | L17: =#REF! ->  | M17: =#REF! ->  | N17: =#REF! ->  | O17: =#REF! ->  | P17: =#REF! ->  | Q17: =#REF! ->  | R17: =#REF! ->  | S17: =#REF! ->  | T17: =#REF! ->  | U17: =#REF! ->  | V17: =#REF! ->  | W17: =#REF! ->  | X17: =#REF! ->  | Y17: =#REF! ->  | Z17: =#REF! ->  | AA17: =#REF! ->  | AB17: =#REF! ->  | AC17: =#REF! ->  | AD17: =#REF! ->  | AE17: =#REF! ->  | AF17: =#REF! ->  | AG17: =#REF! ->  | AH17: =#REF! -> 
B18: =#REF! ->  | C18: =#REF! ->  | D18: =#REF! ->  | E18: =#REF! ->  | F18: =#REF! ->  | G18: =#REF! ->  | H18: =#REF! ->  | I18: =#REF! ->  | J18: =#REF! ->  | K18: =#REF! ->  | L18: =#REF! ->  | M18: =#REF! ->  | N18: =#REF! ->  | O18: =#REF! ->  | P18: =#REF! ->  | Q18: =#REF! ->  | R18: =#REF! ->  | S18: =#REF! ->  | T18: =#REF! ->  | U18: =#REF! ->  | V18: =#REF! ->  | W18: =#REF! ->  | X18: =#REF! ->  | Y18: =#REF! ->  | Z18: =#REF! ->  | AA18: =#REF! ->  | AB18: =#REF! ->  | AC18: =#REF! ->  | AD18: =#REF! ->  | AE18: =#REF! ->  | AF18: =#REF! ->  | AG18: =#REF! ->  | AH18: =#REF! -> 
B19: =#REF! ->  | C19: =#REF! ->  | D19: =#REF! ->  | E19: =#REF! ->  | F19: =#REF! ->  | G19: =#REF! ->  | H19: =#REF! ->  | I19: =#REF! ->  | J19: =#REF! ->  | K19: =#REF! ->  | L19: =#REF! ->  | M19: =#REF! ->  | N19: =#REF! ->  | O19: =#REF! ->  | P19: =#REF! ->  | Q19: =#REF! ->  | R19: =#REF! ->  | S19: =#REF! ->  | T19: =#REF! ->  | U19: =#REF! ->  | V19: =#REF! ->  | W19: =#REF! ->  | X19: =#REF! ->  | Y19: =#REF! ->  | Z19: =#REF! ->  | AA19: =#REF! ->  | AB19: =#REF! ->  | AC19: =#REF! ->  | AD19: =#REF! ->  | AE19: =#REF! ->  | AF19: =#REF! ->  | AG19: =#REF! ->  | AH19: =#REF! -> 
B20: =#REF! ->  | C20: =#REF! ->  | D20: =#REF! ->  | E20: =#REF! ->  | F20: =#REF! ->  | G20: =#REF! ->  | H20: =#REF! ->  | I20: =#REF! ->  | J20: =#REF! ->  | K20: =#REF! ->  | L20: =#REF! ->  | M20: =#REF! ->  | N20: =#REF! ->  | O20: =#REF! ->  | P20: =#REF! ->  | Q20: =#REF! ->  | R20: =#REF! ->  | S20: =#REF! ->  | T20: =#REF! ->  | U20: =#REF! ->  | V20: =#REF! ->  | W20: =#REF! ->  | X20: =#REF! ->  | Y20: =#REF! ->  | Z20: =#REF! ->  | AA20: =#REF! ->  | AB20: =#REF! ->  | AC20: =#REF! ->  | AD20: =#REF! ->  | AE20: =#REF! ->  | AF20: =#REF! ->  | AG20: =#REF! ->  | AH20: =#REF! -> 
B21: =#REF! ->  | C21: =#REF! ->  | D21: =#REF! ->  | E21: =#REF! ->  | F21: =#REF! ->  | G21: =#REF! ->  | H21: =#REF! ->  | I21: =#REF! ->  | J21: =#REF! ->  | K21: =#REF! ->  | L21: =#REF! ->  | M21: =#REF! ->  | N21: =#REF! ->  | O21: =#REF! ->  | P21: =#REF! ->  | Q21: =#REF! ->  | R21: =#REF! ->  | S21: =#REF! ->  | T21: =#REF! ->  | U21: =#REF! ->  | V21: =#REF! ->  | W21: =#REF! ->  | X21: =#REF! ->  | Y21: =#REF! ->  | Z21: =#REF! ->  | AA21: =#REF! ->  | AB21: =#REF! ->  | AC21: =#REF! ->  | AD21: =#REF! ->  | AE21: =#REF! ->  | AF21: =#REF! ->  | AG21: =#REF! ->  | AH21: =#REF! -> 
B22: =#REF! ->  | C22: =#REF! ->  | D22: =#REF! ->  | E22: =#REF! ->  | F22: =#REF! ->  | G22: =#REF! ->  | H22: =#REF! ->  | I22: =#REF! ->  | J22: =#REF! ->  | K22: =#REF! ->  | L22: =#REF! ->  | M22: =#REF! ->  | N22: =#REF! ->  | O22: =#REF! ->  | P22: =#REF! ->  | Q22: =#REF! ->  | R22: =#REF! ->  | S22: =#REF! ->  | T22: =#REF! ->  | U22: =#REF! ->  | V22: =#REF! ->  | W22: =#REF! ->  | X22: =#REF! ->  | Y22: =#REF! ->  | Z22: =#REF! ->  | AA22: =#REF! ->  | AB22: =#REF! ->  | AC22: =#REF! ->  | AD22: =#REF! ->  | AE22: =#REF! ->  | AF22: =#REF! ->  | AG22: =#REF! ->  | AH22: =#REF! -> 
B23: =#REF! ->  | C23: =#REF! ->  | D23: =#REF! ->  | E23: =#REF! ->  | F23: =#REF! ->  | G23: =#REF! ->  | H23: =#REF! ->  | I23: =#REF! ->  | J23: =#REF! ->  | K23: =#REF! ->  | L23: =#REF! ->  | M23: =#REF! ->  | N23: =#REF! ->  | O23: =#REF! ->  | P23: =#REF! ->  | Q23: =#REF! ->  | R23: =#REF! ->  | S23: =#REF! ->  | T23: =#REF! ->  | U23: =#REF! ->  | V23: =#REF! ->  | W23: =#REF! ->  | X23: =#REF! ->  | Y23: =#REF! ->  | Z23: =#REF! ->  | AA23: =#REF! ->  | AB23: =#REF! ->  | AC23: =#REF! ->  | AD23: =#REF! ->  | AE23: =#REF! ->  | AF23: =#REF! ->  | AG23: =#REF! ->  | AH23: =#REF! -> 
B24: =#REF! ->  | C24: =#REF! ->  | D24: =#REF! ->  | E24: =#REF! ->  | F24: =#REF! ->  | G24: =#REF! ->  | H24: =#REF! ->  | I24: =#REF! ->  | J24: =#REF! ->  | K24: =#REF! ->  | L24: =#REF! ->  | M24: =#REF! ->  | N24: =#REF! ->  | O24: =#REF! ->  | P24: =#REF! ->  | Q24: =#REF! ->  | R24: =#REF! ->  | S24: =#REF! ->  | T24: =#REF! ->  | U24: =#REF! ->  | V24: =#REF! ->  | W24: =#REF! ->  | X24: =#REF! ->  | Y24: =#REF! ->  | Z24: =#REF! ->  | AA24: =#REF! ->  | AB24: =#REF! ->  | AC24: =#REF! ->  | AD24: =#REF! ->  | AE24: =#REF! ->  | AF24: =#REF! ->  | AG24: =#REF! ->  | AH24: =#REF! -> 
B25: =#REF! ->  | C25: =#REF! ->  | D25: =#REF! ->  | E25: =#REF! ->  | F25: =#REF! ->  | G25: =#REF! ->  | H25: =#REF! ->  | I25: =#REF! ->  | J25: =#REF! ->  | K25: =#REF! ->  | L25: =#REF! ->  | M25: =#REF! ->  | N25: =#REF! ->  | O25: =#REF! ->  | P25: =#REF! ->  | Q25: =#REF! ->  | R25: =#REF! ->  | S25: =#REF! ->  | T25: =#REF! ->  | U25: =#REF! ->  | V25: =#REF! ->  | W25: =#REF! ->  | X25: =#REF! ->  | Y25: =#REF! ->  | Z25: =#REF! ->  | AA25: =#REF! ->  | AB25: =#REF! ->  | AC25: =#REF! ->  | AD25: =#REF! ->  | AE25: =#REF! ->  | AF25: =#REF! ->  | AG25: =#REF! ->  | AH25: =#REF! -> 
B26: 22 | C26: =#REF! ->  | D26: =#REF! ->  | E26: =#REF! ->  | F26: =#REF! ->  | G26: =#REF! ->  | H26: =#REF! ->  | I26: =#REF! ->  | J26: =#REF! ->  | K26: =#REF! ->  | L26: =#REF! ->  | M26: =#REF! ->  | N26: =#REF! ->  | O26: =#REF! ->  | P26: =#REF! ->  | Q26: =#REF! ->  | R26: =#REF! ->  | S26: =#REF! ->  | T26: =#REF! ->  | U26: =#REF! ->  | V26: =#REF! ->  | W26: =#REF! ->  | X26: =#REF! ->  | Y26: =#REF! ->  | Z26: =#REF! ->  | AA26: =#REF! ->  | AB26: =#REF! ->  | AC26: =#REF! ->  | AD26: =#REF! ->  | AE26: =#REF! ->  | AF26: =#REF! ->  | AG26: =#REF! ->  | AH26: =#REF! -> 
B27: 23 | C27: =#REF! ->  | D27: =#REF! ->  | E27: =#REF! ->  | F27: =#REF! ->  | G27: =#REF! ->  | H27: =#REF! ->  | I27: =#REF! ->  | J27: =#REF! ->  | K27: =#REF! ->  | L27: =#REF! ->  | M27: =#REF! ->  | N27: =#REF! ->  | O27: =#REF! ->  | P27: =#REF! ->  | Q27: =#REF! ->  | R27: =#REF! ->  | S27: =#REF! ->  | T27: =#REF! ->  | U27: =#REF! ->  | V27: =#REF! ->  | W27: =#REF! ->  | X27: =#REF! ->  | Y27: =#REF! ->  | Z27: =#REF! ->  | AA27: =#REF! ->  | AB27: =#REF! ->  | AC27: =#REF! ->  | AD27: =#REF! ->  | AE27: =#REF! ->  | AF27: =#REF! ->  | AG27: =#REF! ->  | AH27: =#REF! -> 
B29: LIELDRAUGS NORISES VIETA:
B32: ATBALSTĪTĀJI

Sheet KinoV_kopv (hidden)
E2: "Kino viktorīna" | REGULĀRĀS SEZONAS KOPVĒRTĒJUMS
B5: # | C5: # | D5: +/- | E5: Komandas / Tematiskās viktorīnas | F5: Asa sižeta filmas | H5: Fantāzija un zinātniskās fantastika | J5: Latviešu filmas | L5: Ziemassvētki | N5: Romantiskās filmas un drāmas | P5: Animācijas filmas un seriāli | R5: Šausmu filmas + supervaroņu filmas | T5: 21.gadsimta seriāli | V5: Detektīvi, kriminālfilmas un seriāli | X5: KOPĀ (Pareizās atbildes / Punkti)
B6: 1 | C6: 1 | D6: =B6-C6 -> 0 | E6: Baltijas jūras izsmelšanas b. | F6: 33 | G6: 520 | H6: 57 | I6: 890 | J6: 57 | K6: 890 | L6: 51 | M6: 800 | N6: 57 | O6: 875 | P6: 51 | Q6: 800 | R6: 50 | S6: 765 | T6: 52 | U6: 815 | V6: 52 | W6: 775 | X6: =F6+H6+J6+N6+L6+P6+R6+T6+V6-0.5*MAX(F6,H6,J6,N6,L6,P6,R6,T6,V6)-0.5*MIN(F6,H6,J6,N6,L6,P6,R6,T6,V6) -> 415 | Y6: =G6+I6+K6+O6+M6+Q6+S6+U6+W6-0.5*MAX(G6,I6,K6,O6,M6,Q6,S6,U6,W6)-0.5*MIN(G6,I6,K6,O6,M6,Q6,S6,U6,W6) -> 6425 | AA6: =F6+H6+J6+N6+L6+P6+R6+T6 -> 408 | AB6: =G6+I6+K6+O6+M6+Q6+S6+U6 -> 6355
B7: 2 | C7: 2 | D7: 0 | E7: Netaisnības līga | F7: 58 | G7: 900 | H7: 56 | I7: 895 | J7: 46 | K7: 680 | L7: 42.5 | M7: 670 | N7: 45 | O7: 695 | P7: 46 | Q7: 720 | R7: 54 | S7: 845 | T7: 46 | U7: 725 | V7: 59 | W7: 895 | X7: 401.75 | Y7: 6240 | AA7: =F7+H7+J7+N7+L7+P7+R7+T7 -> 393.5 | AB7: =G7+I7+K7+O7+M7+Q7+S7+U7 -> 6130
B8: 3 | C8: 3 | D8: 0 | E8: Īsts Klintvuds | F8: 47 | G8: 765 | H8: 56 | I8: 885 | J8: 51 | K8: 815 | L8: 47.5 | M8: 677.5 | N8: 52 | O8: 795 | P8: 44 | Q8: 670 | R8: 45 | S8: 730 | T8: 48 | U8: 755 | V8: 54 | W8: 825 | X8: 394.5 | Y8: 6140 | AA8: 390.5 | AB8: 6092.5
B9: 4 | C9: 4 | D9: 0 | E9: GoGoFresh | F9: 42 | G9: 665 | H9: 52 | I9: 825 | J9: 49 | K9: 775 | L9: 40.5 | M9: 642.5 | N9: 56 | O9: 870 | P9: 45 | Q9: 695 | R9: 54 | S9: 855 | T9: 45 | U9: 715 | V9: 46 | W9: 700 | X9: 381.25 | Y9: 5986.25 | AA9: 383.5 | AB9: 6042.5
B10: 5 | C10: 5 | D10: 0 | E10: Netaisnības līgas taisnā tiesa | F10: 53 | G10: 835 | H10: 45 | I10: 720 | J10: 53 | K10: 825 | L10: 39.5 | M10: 642.5 | N10: 42 | O10: 655 | P10: 46 | Q10: 720 | R10: 46 | S10: 725 | T10: 47.5 | U10: 757.5 | V10: 53 | W10: 805 | X10: 378.75 | Y10: 5946.25 | AA10: 372 | AB10: 5880
B11: 6 | C11: 6 | D11: 0 | E11: Animāļi | F11: 48 | G11: 760 | H11: 48 | I11: 775 | J11: 45 | K11: 700 | L11: 37.5 | M11: 592.5 | N11: 44 | O11: 670 | P11: 48 | Q11: 735 | R11: 58 | S11: 905 | T11: 43 | U11: 685 | V11: 43 | W11: 670 | X11: 366.75 | Y11: 5743.75 | AA11: 371.5 | AB11: 5822.5
B12: 7 | C12: 7 | D12: 0 | E12: You cant sith with us | F12: 47 | G12: 725 | H12: 49 | I12: 780 | J12: 0 | K12: 0 | L12: 41.5 | M12: 642.5 | N12: 55 | O12: 855 | P12: 35 | Q12: 540 | R12: 51 | S12: 800 | T12: 45 | U12: 720 | V12: 50 | W12: 790 | X12: 346 | Y12: 5425 | AA12: 323.5 | AB12: 5062.5
B13: 8 | C13: 8 | D13: 0 | E13: The not so great expectations | F13: 32 | G13: 490 | H13: 51 | I13: 810 | J13: 33 | K13: 485 | L13: 38.5 | M13: 605 | N13: 41 | O13: 615 | P13: 50 | Q13: 770 | R13: 48 | S13: 755 | T13: 35 | U13: 565 | V13: 39 | W13: 605 | X13: 326 | Y13: 5052.5 | AA13: 328.5 | AB13: 5095
B14: 10 | C14: 9 | D14: 1 | E14: Cūkdelfīna sapnis | F14: 52 | G14: 815 | H14: 47 | I14: 715 | J14: 0 | K14: 0 | L14: 36 | M14: 565 | N14: 41 | O14: 635 | P14: 29 | Q14: 465 | R14: 52 | S14: 825 | T14: 38 | U14: 625 | V14: 49 | W14: 760 | X14: 318 | Y14: 4992.5 | AA14: 295 | AB14: 4645
B15: 9 | C15: 10 | D15: -1 | E15: Close enough | F15: 41 | G15: 635 | H15: 42 | I15: 665 | J15: 0 | K15: 0 | L15: 39.5 | M15: 617.5 | N15: 49 | O15: 725 | P15: 41 | Q15: 630 | R15: 44 | S15: 680 | T15: 44 | U15: 680 | V15: 43 | W15: 680 | X15: 319 | Y15: 4950 | AA15: 300.5 | AB15: 4632.5
B16: 12 | C16: 11 | D16: 1 | E16: Katalīna | F16: 0 | G16: 0 | H16: 50 | I16: 785 | J16: 0 | K16: 0 | L16: 0 | M16: 0 | N16: 53 | O16: 795 | P16: 53 | Q16: 830 | R16: 53 | S16: 830 | T16: 48.5 | U16: 760 | V16: 47 | W16: 730 | X16: 278 | Y16: 4315 | AA16: 257.5 | AB16: 4000
B17: 11 | C17: 12 | D17: -1 | E17: A Team has no name | F17: 26 | G17: 410 | H17: 44 | I17: 680 | J17: 0 | K17: 0 | L17: 35 | M17: 525 | N17: 33 | O17: 505 | P17: 41 | Q17: 650 | R17: 38 | S17: 585 | T17: 39.5 | U17: 632.5 | V17: 23 | W17: 350 | X17: 257.5 | Y17: 3997.5 | AA17: 256.5 | AB17: 3987.5
B18: 13 | C18: 13 | D18: 0 | E18: Kino kults | F18: 55 | G18: 855 | H18: 53 | I18: 840 | J18: 0 | K18: 0 | L18: 47.5 | M18: 732.5 | N18: 49 | O18: 735 | P18: 0 | Q18: 0 | R18: 0 | S18: 0 | T18: 0 | U18: 0 | V18: 0 | W18: 0 | X18: 177 | Y18: 2735 | AA18: 204.5 | AB18: 3162.5
B19: 14 | C19: 14 | D19: 0 | E19: DeJaVu | F19: 0 | G19: 0 | H19: 0 | I19: 0 | J19: 57 | K19: 895 | L19: 0 | M19: 0 | N19: 36 | O19: 560 | P19: 0 | Q19: 0 | R19: 0 | S19: 0 | T19: 0 | U19: 0 | V19: 0 | W19: 0 | X19: 64.5 | Y19: 1007.5 | AA19: 93 | AB19: 1455
B20: 15 | C20: 15 | D20: 0 | E20: Āreče | F20: 0 | G20: 0 | H20: 53 | I20: 830 | J20: 0 | K20: 0 | L20: 0 | M20: 0 | N20: 0 | O20: 0 | P20: 0 | Q20: 0 | R20: 0 | S20: 0 | T20: 0 | U20: 0 | V20: 0 | W20: 0 | X20: 26.5 | Y20: 415 | AA20: 53 | AB20: 830
B21: 16 | C21: 16 | D21: 0 | E21: Baltais žigulis | F21: 0 | G21: 0 | H21: 0 | I21: 0 | J21: 53 | K21: 830 | L21: 0 | M21: 0 | N21: 0 | O21: 0 | P21: 0 | Q21: 0 | R21: 0 | S21: 0 | T21: 0 | U21: 0 | V21: 0 | W21: 0 | X21: 26.5 | Y21: 415 | AA21: 53 | AB21: 830
B22: 17 | C22: 17 | D22: 0 | E22: RANDOMs | F22: 0 | G22: 0 | H22: 50 | I22: 785 | J22: 0 | K22: 0 | L22: 0 | M22: 0 | N22: 0 | O22: 0 | P22: 0 | Q22: 0 | R22: 0 | S22: 0 | T22: 0 | U22: 0 | V22: 0 | W22: 0 | X22: 25 | Y22: 392.5 | AA22: 50 | AB22: 785
B23: 18 | C23: 18 | D23: 0 | E23: Žīdam ir taisnība | F23: 0 | G23: 0 | H23: 0 | I23: 0 | J23: 0 | K23: 0 | L23: 0 | M23: 0 | N23: 0 | O23: 0 | P23: 0 | Q23: 0 | R23: 49 | S23: 755 | T23: 0 | U23: 0 | V23: 0 | W23: 0 | X23: 24.5 | Y23: 377.5 | AA23: 49 | AB23: 755
B24: 19 | C24: 19 | D24: 0 | E24: Brāķis bez mežakuiļa | F24: 0 | G24: 0 | H24: 0 | I24: 0 | J24: 46 | K24: 735 | L24: 0 | M24: 0 | N24: 0 | O24: 0 | P24: 0 | Q24: 0 | R24: 0 | S24: 0 | T24: 0 | U24: 0 | V24: 0 | W24: 0 | X24: 23 | Y24: 367.5 | AA24: 46 | AB24: 735
B25: 20 | C25: 20 | D25: - | E25: Gyroscope | F25: 0 | G25: 0 | H25: 0 | I25: 0 | J25: 0 | K25: 0 | L25: 0 | M25: 0 | N25: 0 | O25: 0 | P25: 0 | Q25: 0 | R25: 0 | S25: 0 | T25: 33.5 | U25: 540 | V25: 0 | W25: 0 | X25: 16.75 | Y25: 270 | AA25: 33.5 | AB25: 540
B26: 21 | C26: 21 | D26: - | E26: Vidusskolas salidojums | F26: 0 | G26: 0 | H26: 0 | I26: 0 | J26: 0 | K26: 0 | L26: 0 | M26: 0 | N26: 0 | O26: 0 | P26: 0 | Q26: 0 | R26: 0 | S26: 0 | T26: 33.5 | U26: 522.5 | V26: 0 | W26: 0 | X26: 16.75 | Y26: 261.25 | AA26: 33.5 | AB26: 522.5
B27: 22 | C27: 22 | D27: =B27-C27 -> 0 | E27: Mileniāļu piekūns | F27: 0 | G27: 0 | H27: 0 | I27: 0 | J27: 0 | K27: 0 | L27: 0 | M27: 0 | N27: 0 | O27: 0 | P27: 32 | Q27: 510 | R27: 0 | S27: 0 | T27: 0 | U27: 0 | V27: 0 | W27: 0 | X27: 16 | Y27: 255 | AA27: 32 | AB27: 510
B28: 23 | C28: 23 | D28: =B28-C28 -> 0 | E28: Goodfellas | F28: 0 | G28: 0 | H28: 0 | I28: 0 | J28: 0 | K28: 0 | L28: 30.5 | M28: 465 | N28: 0 | O28: 0 | P28: 0 | Q28: 0 | R28: 0 | S28: 0 | T28: 0 | U28: 0 | V28: 0 | W28: 0 | X28: 15.25 | Y28: 232.5 | AA28: 30.5 | AB28: 465
E31: LIELDRAUGS ATBALSTĪTĀJI

Sheet SpV_KOPV (hidden)
D2: REGULĀRĀS SEZONAS KOPVĒRTĒJUMS
B4: # | C4: # | D4: Izmaiņas | E4: Komandas / Raundi | F4: 1.kārta | H4: 2.kārta | J4: 3.kārta | L4: 4.kārta | N4: 5.kārta | P4: 6.kārta | R4: 7.kārta | T4: 8.kārta | V4: 9.kārta | X4: KOPĀ
B5: 1 | C5: 1 | D5: =-(B5-C5) -> 0 | E5: Zigfrīds Muktupāvels | F5: 52 | G5: 785 | H5: 54.5 | I5: 815 | J5: 49 | K5: 760 | L5: 52 | M5: 795 | N5: 57 | O5: 885 | P5: 54 | Q5: 830 | R5: 55.5 | S5: 860 | T5: 53 | U5: 800 | V5: 53 | W5: 805 | X5: =F5+H5+J5+L5+N5+P5+R5+T5+V5-0.5*MAX(F5,H5,J5,L5,N5,P5,R5,T5,T5)-0.5*MIN(F5,H5,J5,L5,N5,P5,R5,T5,T5) -> 427 | Y5: =G5+I5+K5+M5+O5+Q5+S5+U5+W5-0.5*MAX(G5,I5,K5,M5,O5,Q5,S5,U5,U5)-0.5*MIN(G5,I5,K5,M5,O5,Q5,S5,U5,U5) -> 6512.5 | AA5: =SUM(F5,H5,J5,L5,N5,P5,R5,T5,V5) -> 480 | AB5: =SUM(G5,I5,K5,M5,O5,Q5,S5,U5,W5) -> 7335
B6: 2 | C6: 2 | D6: 0 | E6: Japānas beisbola izlase | F6: 48 | G6: 730 | H6: 57.5 | I6: 882.5 | J6: 49.5 | K6: 762.5 | L6: 52 | M6: 800 | N6: 55 | O6: 845 | P6: 54 | Q6: 830 | R6: 48.5 | S6: 730 | T6: 49 | U6: 775 | V6: 49 | W6: 780 | X6: 409.75 | Y6: 6328.75 | AA6: =SUM(F6,H6,J6,L6,N6,P6,R6,T6,V6) -> 462.5 | AB6: =SUM(G6,I6,K6,M6,O6,Q6,S6,U6,W6) -> 7135
B7: 3 | C7: 3 | D7: 0 | E7: Alus zaldāti | F7: 48 | G7: 730 | H7: 53 | I7: 810 | J7: 48 | K7: 760 | L7: 48 | M7: 730 | N7: 50.5 | O7: 770 | P7: 52 | Q7: 805 | R7: 50.5 | S7: 785 | T7: 50.5 | U7: 782.5 | V7: 51 | W7: 770 | X7: 401 | Y7: 6172.5 | AA7: 451.5 | AB7: 6942.5
B8: 4 | C8: 4 | D8: 0 | E8: Diskusiju klubiņš | F8: 40 | G8: 625 | H8: 55 | I8: 847.5 | J8: 50 | K8: 780 | L8: 53 | M8: 830 | N8: 53 | O8: 820 | P8: 45.5 | Q8: 707.5 | R8: 51 | S8: 790 | T8: 44.5 | U8: 685 | V8: 43.5 | W8: 672.5 | X8: 388 | Y8: 6021.25 | AA8: 435.5 | AB8: 6757.5
B9: 5 | C9: 5 | D9: 0 | E9: Zinātāji | F9: 46 | G9: 685 | H9: 41 | I9: 657.5 | J9: 51 | K9: 815 | L9: 50 | M9: 775 | N9: 46 | O9: 720 | P9: 46.5 | Q9: 712.5 | R9: 51 | S9: 780 | T9: 52 | U9: 810 | V9: 46.5 | W9: 695 | X9: 383.5 | Y9: 5913.75 | AA9: 430 | AB9: 6650
B10: 6 | C10: 6 | D10: 0 | E10: Fireball | F10: 52 | G10: 785 | H10: 47.5 | I10: 727.5 | J10: 53 | K10: 825 | L10: 52 | M10: 800 | N10: 48 | O10: 740 | P10: 43.5 | Q10: 657.5 | R10: 42 | S10: 640 | T10: 49.5 | U10: 742.5 | V10: 45 | W10: 695 | X10: 385 | Y10: 5880 | AA10: 432.5 | AB10: 6612.5
B11: 7 | C11: 7 | D11: 0 | E11: Katlakalns / KKK | F11: 50 | G11: 765 | H11: 49.5 | I11: 765 | J11: 46 | K11: 725 | L11: 45 | M11: 710 | N11: 49 | O11: 750 | P11: 42.5 | Q11: 652.5 | R11: 44 | S11: 685 | T11: 47 | U11: 705 | V11: 50 | W11: 765 | X11: 376.75 | Y11: 5813.75 | AA11: 423 | AB11: 6522.5
B12: 8 | C12: 8 | D12: 0 | E12: Jeržābeks | F12: 47 | G12: 705 | H12: 49 | I12: 745 | J12: 52.5 | K12: 815 | L12: 49 | M12: 770 | N12: 41 | O12: 640 | P12: 41 | Q12: 610 | R12: 47 | S12: 720 | T12: 48 | U12: 740 | V12: 50 | W12: 775 | X12: 377.75 | Y12: 5807.5 | AA12: 424.5 | AB12: 6520
B13: 9 | C13: 9 | D13: 0 | E13: kOzis | F13: 50 | G13: 765 | H13: 45.5 | I13: 705 | J13: 45 | K13: 695 | L13: 42 | M13: 650 | N13: 52 | O13: 795 | P13: 49 | Q13: 745 | R13: 47 | S13: 720 | T13: 43.5 | U13: 665 | V13: 46.5 | W13: 715 | X13: 373.5 | Y13: 5732.5 | AA13: 420.5 | AB13: 6455
B14: 10 | C14: 10 | D14: 0 | E14: Dīvānueksperti.lv | F14: 49 | G14: 735 | H14: 54 | I14: 815 | J14: 49 | K14: 760 | L14: 47 | M14: 715 | N14: 42 | O14: 670 | P14: 41.5 | Q14: 637.5 | R14: 40.5 | S14: 610 | T14: 50 | U14: 775 | V14: 45.5 | W14: 687.5 | X14: 371.25 | Y14: 5692.5 | AA14: 418.5 | AB14: 6405
B15: 11 | C15: 13 | D15: 2 | E15: Rozā krekli un mokasīni | F15: 46 | G15: 695 | H15: 43.5 | I15: 672.5 | J15: 42 | K15: 640 | L15: 49 | M15: 735 | N15: 47 | O15: 725 | P15: 45 | Q15: 695 | R15: 48.5 | S15: 750 | T15: 49 | U15: 725 | V15: 45 | W15: 702.5 | X15: 369.5 | Y15: 5645 | AA15: 415 | AB15: 6340
B16: 12 | C16: 11 | D16: -1 | E16: Baltais gailis | F16: 47 | G16: 730 | H16: 49 | I16: 770 | J16: 48 | K16: 740 | L16: 47 | M16: 740 | N16: 45 | O16: 670 | P16: 44 | Q16: 675 | R16: 43 | S16: 685 | T16: 45 | U16: 700 | V16: 41.5 | W16: 640 | X16: 363.5 | Y16: 5630 | AA16: 409.5 | AB16: 6350
B17: 13 | C17: 14 | D17: 1 | E17: Džamolidins Abdužaparovs | F17: 49 | G17: 745 | H17: 45.5 | I17: 690 | J17: 46 | K17: 715 | L17: 48 | M17: 735 | N17: 43 | O17: 675 | P17: 42.5 | Q17: 662.5 | R17: 43 | S17: 675 | T17: 47.5 | U17: 737.5 | V17: 44.5 | W17: 697.5 | X17: 363.25 | Y17: 5628.75 | AA17: 409 | AB17: 6332.5
B18: 14 | C18: 15 | D18: 1 | E18: Karaliskais kronis | F18: 46 | G18: 710 | H18: 51 | I18: 767.5 | J18: 33 | K18: 500 | L18: 46 | M18: 710 | N18: 43.5 | O18: 665 | P18: 40 | Q18: 615 | R18: 50.5 | S18: 785 | T18: 52.5 | U18: 795 | V18: 44 | W18: 690 | X18: 363.75 | Y18: 5590 | AA18: 406.5 | AB18: 6237.5
B19: 15 | C19: 12 | D19: -3 | E19: Stosi | F19: 43 | G19: 640 | H19: 55 | I19: 840 | J19: 35 | K19: 545 | L19: 54 | M19: 835 | N19: 48 | O19: 735 | P19: 43 | Q19: 695 | R19: 42 | S19: 640 | T19: 46 | U19: 735 | V19: 36 | W19: 580 | X19: 357 | Y19: 5552.5 | AA19: 402 | AB19: 6245
B20: 16 | C20: 17 | D20: 1 | E20: 0%Apskaidrība | F20: 37 | G20: 555 | H20: 49 | I20: 737.5 | J20: 45 | K20: 675 | L20: 46 | M20: 700 | N20: 42 | O20: 635 | P20: 37.5 | Q20: 585 | R20: 47 | S20: 695 | T20: 41.5 | U20: 640 | V20: 47.5 | W20: 737.5 | X20: 349.5 | Y20: 5313.75 | AA20: 392.5 | AB20: 5960
B21: 17 | C21: 16 | D21: -1 | E21: Arigo Toro | F21: 42 | G21: 635 | H21: 44 | I21: 675 | J21: 43 | K21: 650 | L21: 45 | M21: 680 | N21: 47 | O21: 725 | P21: 40.5 | Q21: 625 | R21: 48.5 | S21: 752.5 | T21: 42.5 | U21: 652.5 | V21: 36 | W21: 565 | X21: 344 | Y21: 5271.25 | AA21: 388.5 | AB21: 5960
B22: 18 | C22: 18 | D22: 0 | E22: BallDontLie | F22: 36 | G22: 535 | H22: 39 | I22: 605 | J22: 43 | K22: 665 | L22: 45 | M22: 695 | N22: 46 | O22: 705 | P22: 39 | Q22: 580 | R22: 47 | S22: 725 | T22: 43.5 | U22: 682.5 | V22: 44.5 | W22: 677.5 | X22: 341.5 | Y22: 5240 | AA22: 383 | AB22: 5870
B23: 19 | C23: 19 | D23: 0 | E23: A komanda | F23: 45 | G23: 690 | H23: 40.5 | I23: 620 | J23: 49 | K23: 745 | L23: 41 | M23: 620 | N23: 42 | O23: 665 | P23: 38.5 | Q23: 600 | R23: 35.5 | S23: 525 | T23: 43 | U23: 655 | V23: 41.5 | W23: 615 | X23: 333.75 | Y23: 5100 | AA23: 376 | AB23: 5735
B24: 20 | C24: 20 | D24: 0 | E24: Lai Top | F24: 33 | G24: 505 | H24: 43.5 | I24: 660 | J24: 37 | K24: 590 | L24: 41 | M24: 615 | N24: 38 | O24: 595 | P24: 34 | Q24: 500 | R24: 33.5 | S24: 542.5 | T24: 33.5 | U24: 512.5 | V24: 34.5 | W24: 532.5 | X24: 289.75 | Y24: 4472.5 | AA24: 328 | AB24: 5052.5
B25: 21 | C25: 21 | D25: 0 | E25: Melnais zirdziņš | F25: 0 | G25: 0 | H25: 28.5 | I25: 422.5 | J25: 38 | K25: 590 | L25: 44 | M25: 680 | N25: 42 | O25: 675 | P25: 33 | Q25: 515 | R25: 40 | S25: 610 | T25: 42.5 | U25: 645 | V25: 35.5 | W25: 535 | X25: 281.5 | Y25: 4332.5 | AA25: 303.5 | AB25: 4672.5
B26: 22 | C26: 22 | D26: 0 | E26: Turks un polis | F26: 33 | G26: 505 | H26: 30 | I26: 447.5 | J26: 32 | K26: 495 | L26: 36 | M26: 570 | N26: 42 | O26: 655 | P26: 30.5 | Q26: 460 | R26: 0 | S26: 0 | T26: 36.5 | U26: 562.5 | V26: 0 | W26: 0 | X26: 219 | Y26: 3367.5 | AA26: 240 | AB26: 3695
B27: 23 | C27: 23 | D27: 0 | E27: Amatieru pietura | F27: 38 | G27: 605 | H27: 38.5 | I27: 587.5 | J27: 36 | K27: 570 | L27: 35 | M27: 555 | N27: 40.5 | O27: 602.5 | P27: 40 | Q27: 625 | R27: 0 | S27: 0 | T27: 0 | U27: 0 | V27: 0 | W27: 0 | X27: 207.75 | Y27: 3232.5 | AA27: 228 | AB27: 3545
B28: 24 | C28: 24 | D28: 0 | E28: Ātrie | F28: 23.5 | G28: 370 | H28: 24 | I28: 380 | J28: 30 | K28: 465 | L28: 29 | M28: 450 | N28: 34 | O28: 540 | P28: 26.5 | Q28: 420 | R28: 27.5 | S28: 412.5 | T28: 23.5 | U28: 365 | V28: 0 | W28: 0 | X28: 189.25 | Y28: 2950 | AA28: 218 | AB28: 3402.5
B29: 25 | C29: 25 | D29: 0 | E29: Maurīcijs | F29: 35 | G29: 515 | H29: 40 | I29: 602.5 | J29: 0 | K29: 0 | L29: 34 | M29: 530 | N29: 40 | O29: 615 | P29: 39 | Q29: 590 | R29: 0 | S29: 0 | T29: 0 | U29: 0 | V29: 0 | W29: 0 | X29: 168 | Y29: 2545 | AA29: 188 | AB29: 2852.5
B30: 26 | C30: 26 | D30: 0 | E30: Enkurs rauj ezerā | F30: 36 | G30: 555 | H30: 40 | I30: 615 | J30: 40 | K30: 610 | L30: 0 | M30: 0 | N30: 0 | O30: 0 | P30: 0 | Q30: 0 | R30: 0 | S30: 0 | T30: 43.5 | U30: 672.5 | V30: 0 | W30: 0 | X30: 137.75 | Y30: 2116.25 | AA30: 159.5 | AB30: 2452.5
B31: 27 | C31: 27 | D31: 0 | E31: Melnstrādnieki | F31: 0 | G31: 0 | H31: 50.5 | I31: 762.5 | J31: 0 | K31: 0 | L31: 48 | M31: 760 | N31: 51 | O31: 775 | P31: 0 | Q31: 0 | R31: 0 | S31: 0 | T31: 0 | U31: 0 | V31: 0 | W31: 0 | X31: 124 | Y31: 1910 | AA31: 149.5 | AB31: 2297.5
B32: 28 | C32: 28 | D32: 0 | E32: Lācēni | F32: 34.5 | G32: 537.5 | H32: 28.5 | I32: 452.5 | J32: 41 | K32: 650 | L32: 0 | M32: 0 | N32: 0 | O32: 0 | P32: 0 | Q32: 0 | R32: 0 | S32: 0 | T32: 0 | U32: 0 | V32: 0 | W32: 0 | X32: 83.5 | Y32: 1315 | AA32: 104 | AB32: 1640
B33: 29 | C33: 29 | D33: 0 | E33: Tev tas liekas NORMĀLI? | F33: 0 | G33: 0 | H33: 0 | I33: 0 | J33: 38.5 | K33: 590 | L33: 36 | M33: 560 | N33: 0 | O33: 0 | P33: 0 | Q33: 0 | R33: 0 | S33: 0 | T33: 0 | U33: 0 | V33: 0 | W33: 0 | X33: 55.25 | Y33: 855 | AA33: 74.5 | AB33: 1150
D36: LIELDRAUGS ATBALSTĪTĀJI

Sheet aktuala (6) (hidden)
C2: ='F1'!B2 -> Sporta viktorīnas speciālizlaidums | F1 viktorīna | 2025.gada 13.augusts
B4: # | C4: Komandas / Raundi | D4: 1 | G4: 2 | J4: 3 | M4: 4 | P4: 5 | R4: 6 | U4: 7 | X4: 8 | AA4: 9 | AD4: 10 | AG4: KOPĀ
B5: 1 | C5: Fireball | D5: 6 | E5: 15 | F5: 90 | G5: 3 | H5: 10 | I5: 30 | J5: 5 | K5: 15 | L5: 75 | M5: 6 | N5: 20 | O5: 120 | P5: 7 | Q5: 105 | R5: 4 | S5: 15 | T5: 60 | U5: 6 | V5: 20 | W5: 120 | X5: 3 | Y5: 15 | Z5: 45 | AA5: 5 | AB5: 10 | AC5: 50 | AD5: 7 | AE5: 1 | AF5: 130 | AG5: 53 | AH5: 825
B6: 2 | C6: Jeržābeks | D6: 6 | E6: 15 | F6: 90 | G6: 2 | H6: 10 | I6: 20 | J6: 5 | K6: 15 | L6: 75 | M6: 6 | N6: 20 | O6: 120 | P6: 8 | Q6: 120 | R6: 5 | S6: 15 | T6: 75 | U6: 5 | V6: 10 | W6: 50 | X6: 4.5 | Y6: 20 | Z6: 90 | AA6: 4 | AB6: 15 | AC6: 60 | AD6: 6 | AE6: 1 | AF6: 115 | AG6: 52.5 | AH6: 815
B7: 3 | C7: Japānas beisbola izlase | D7: 6 | E7: 20 | F7: 120 | G7: 4 | H7: 15 | I7: 60 | J7: 4 | K7: 10 | L7: 40 | M7: 6 | N7: 15 | O7: 90 | P7: 7 | Q7: 105 | R7: 4 | S7: 20 | T7: 80 | U7: 4 | V7: 10 | W7: 40 | X7: 4.5 | Y7: 15 | Z7: 67.5 | AA7: 5 | AB7: 15 | AC7: 75 | AD7: 4 | AE7: 1 | AF7: 85 | AG7: 49.5 | AH7: 762.5
B8: 4 | C8: Zigfrīds Muktupāvels | D8: 5 | E8: 20 | F8: 100 | G8: 5 | H8: 15 | I8: 75 | J8: 4 | K8: 10 | L8: 40 | M8: 6 | N8: 15 | O8: 90 | P8: 8 | Q8: 120 | R8: 2 | S8: 10 | T8: 20 | U8: 6 | V8: 20 | W8: 120 | X8: 2 | Y8: 15 | Z8: 30 | AA8: 6 | AB8: 15 | AC8: 90 | AD8: 5 | AE8: 0 | AF8: 75 | AG8: 49 | AH8: 760
B9: 5 | C9: A komanda | D9: 4 | E9: 10 | F9: 40 | G9: 5 | H9: 20 | I9: 100 | J9: 5 | K9: 15 | L9: 75 | M9: 5 | N9: 15 | O9: 75 | P9: 8 | Q9: 120 | R9: 4 | S9: 15 | T9: 60 | U9: 6 | V9: 20 | W9: 120 | X9: 3 | Y9: 15 | Z9: 45 | AA9: 5 | AB9: 10 | AC9: 50 | AD9: 4 | AE9: 0 | AF9: 60 | AG9: 49 | AH9: 745
B10: 6 | C10: Baltais gailis | D10: 6 | E10: 15 | F10: 90 | G10: 3 | H10: 10 | I10: 30 | J10: 4 | K10: 15 | L10: 60 | M10: 6 | N10: 20 | O10: 120 | P10: 8 | Q10: 120 | R10: 4 | S10: 15 | T10: 60 | U10: 5 | V10: 15 | W10: 75 | X10: 4 | Y10: 10 | Z10: 40 | AA10: 5 | AB10: 20 | AC10: 100 | AD10: 3 | AE10: 0 | AF10: 45 | AG10: 48 | AH10: 740
B11: 7 | C11: kOzis | D11: 4 | E11: 10 | F11: 40 | G11: 3 | H11: 20 | I11: 60 | J11: 5 | K11: 15 | L11: 75 | M11: 5 | N11: 15 | O11: 75 | P11: 8 | Q11: 120 | R11: 4 | S11: 15 | T11: 60 | U11: 6 | V11: 20 | W11: 120 | X11: 3 | Y11: 10 | Z11: 30 | AA11: 1 | AB11: 15 | AC11: 15 | AD11: 5 | AE11: 1 | AF11: 100 | AG11: 45 | AH11: 695
B12: 8 | C12: BallDontLie | D12: 3 | E12: 15 | F12: 45 | G12: 3 | H12: 10 | I12: 30 | J12: 5 | K12: 15 | L12: 75 | M12: 5 | N12: 20 | O12: 100 | P12: 8 | Q12: 120 | R12: 2 | S12: 15 | T12: 30 | U12: 6 | V12: 20 | W12: 120 | X12: 4 | Y12: 10 | Z12: 40 | AA12: 2 | AB12: 15 | AC12: 30 | AD12: 5 | AE12: 0 | AF12: 75 | AG12: 43 | AH12: 665
B13: 9 | C13: Arigo Toro | D13: 4 | E13: 20 | F13: 80 | G13: 4 | H13: 15 | I13: 60 | J13: 4 | K13: 10 | L13: 40 | M13: 4 | N13: 15 | O13: 60 | P13: 8 | Q13: 120 | R13: 2 | S13: 15 | T13: 30 | U13: 6 | V13: 20 | W13: 120 | X13: 2 | Y13: 15 | Z13: 30 | AA13: 5 | AB13: 10 | AC13: 50 | AD13: 4 | AE13: 0 | AF13: 60 | AG13: 43 | AH13: 650
B14: 10 | C14: Stosi | D14: 5 | E14: 15 | F14: 75 | G14: 3 | H14: 15 | I14: 45 | J14: 3 | K14: 10 | L14: 30 | M14: 6 | N14: 20 | O14: 120 | P14: 0 | Q14: 0 | R14: 2 | S14: 15 | T14: 30 | U14: 5 | V14: 20 | W14: 100 | X14: 4 | Y14: 10 | Z14: 40 | AA14: 4 | AB14: 15 | AC14: 60 | AD14: 3 | AE14: 0 | AF14: 45 | AG14: 35 | AH14: 545
B15: 11 | C15: Turks un polis | D15: 4 | E15: 15 | F15: 60 | G15: 3 | H15: 10 | I15: 30 | J15: 3 | K15: 15 | L15: 45 | M15: 5 | N15: 20 | O15: 100 | P15: 7 | Q15: 105 | R15: 2 | S15: 20 | T15: 40 | U15: 5 | V15: 15 | W15: 75 | X15: 1 | Y15: 10 | Z15: 10 | AA15: 1 | AB15: 15 | AC15: 15 | AD15: 1 | AE15: 0 | AF15: 15 | AG15: 32 | AH15: 495
B16: 12 | C16: Ātrie | D16: 2 | E16: 15 | F16: 30 | G16: 3 | H16: 10 | I16: 30 | J16: 4 | K16: 20 | L16: 80 | M16: 1.5 | N16: 15 | O16: 22.5 | P16: 5 | Q16: 75 | R16: 2 | S16: 10 | T16: 20 | U16: 4 | V16: 20 | W16: 80 | X16: 2.5 | Y16: 15 | Z16: 37.5 | AA16: 5 | AB16: 15 | AC16: 75 | AD16: 1 | AE16: 0 | AF16: 15 | AG16: 30 | AH16: 465
B17: 13 | C17: =#REF! ->  | E17: =VLOOKUP(C17,#REF!,2,FALSE) ->  | F17: =D17*E17 ->  | H17: =VLOOKUP(C17,#REF!,3,FALSE) ->  | I17: =G17*H17 ->  | K17: =VLOOKUP(C17,#REF!,4,FALSE) ->  | L17: =J17*K17 ->  | N17: =VLOOKUP(C17,#REF!,5,FALSE) ->  | O17: =M17*N17 ->  | Q17: =P17*15 -> 0 | S17: =VLOOKUP(C17,#REF!,2,FALSE) ->  | T17: =R17*S17 ->  | V17: =VLOOKUP(C17,#REF!,3,FALSE) ->  | W17: =U17*V17 ->  | Y17: =VLOOKUP(C17,#REF!,4,FALSE) ->  | Z17: =X17*Y17 ->  | AB17: =VLOOKUP(C17,#REF!,5,FALSE) ->  | AC17: =AA17*AB17 ->  | AF17: =AD17*15+AE17*25 -> 0 | AG17: =D17+G17+J17+M17+R17+U17+X17+AA17+AD17+AE17+P17 -> 0 | AH17: =F17+I17+L17+O17+Q17+T17+W17+Z17+AC17+AF17 -> 
B18: 14 | C18: =#REF! ->  | E18: =VLOOKUP(C18,#REF!,2,FALSE) ->  | H18: =VLOOKUP(C18,#REF!,3,FALSE) ->  | K18: =VLOOKUP(C18,#REF!,4,FALSE) ->  | N18: =VLOOKUP(C18,#REF!,5,FALSE) ->  | Q18: 0 | S18: =VLOOKUP(C18,#REF!,2,FALSE) ->  | V18: =VLOOKUP(C18,#REF!,3,FALSE) ->  | Y18: =VLOOKUP(C18,#REF!,4,FALSE) ->  | AB18: =VLOOKUP(C18,#REF!,5,FALSE) ->  | AF18: 0 | AG18: 0
B19: 15 | C19: =#REF! ->  | E19: =VLOOKUP(C19,#REF!,2,FALSE) ->  | H19: =VLOOKUP(C19,#REF!,3,FALSE) ->  | K19: =VLOOKUP(C19,#REF!,4,FALSE) ->  | N19: =VLOOKUP(C19,#REF!,5,FALSE) ->  | Q19: 0 | S19: =VLOOKUP(C19,#REF!,2,FALSE) ->  | V19: =VLOOKUP(C19,#REF!,3,FALSE) ->  | Y19: =VLOOKUP(C19,#REF!,4,FALSE) ->  | AB19: =VLOOKUP(C19,#REF!,5,FALSE) ->  | AF19: 0 | AG19: 0
B20: 16 | C20: =#REF! ->  | E20: =VLOOKUP(C20,#REF!,2,FALSE) ->  | H20: =VLOOKUP(C20,#REF!,3,FALSE) ->  | K20: =VLOOKUP(C20,#REF!,4,FALSE) ->  | N20: =VLOOKUP(C20,#REF!,5,FALSE) ->  | Q20: 0 | S20: =VLOOKUP(C20,#REF!,2,FALSE) ->  | V20: =VLOOKUP(C20,#REF!,3,FALSE) ->  | Y20: =VLOOKUP(C20,#REF!,4,FALSE) ->  | AB20: =VLOOKUP(C20,#REF!,5,FALSE) ->  | AF20: 0 | AG20: 0
B21: 17 | C21: =#REF! ->  | E21: =VLOOKUP(C21,#REF!,2,FALSE) ->  | H21: =VLOOKUP(C21,#REF!,3,FALSE) ->  | K21: =VLOOKUP(C21,#REF!,4,FALSE) ->  | N21: =VLOOKUP(C21,#REF!,5,FALSE) ->  | Q21: 0 | S21: =VLOOKUP(C21,#REF!,2,FALSE) ->  | V21: =VLOOKUP(C21,#REF!,3,FALSE) ->  | Y21: =VLOOKUP(C21,#REF!,4,FALSE) ->  | AB21: =VLOOKUP(C21,#REF!,5,FALSE) ->  | AF21: 0 | AG21: 0
B22: 18 | C22: =#REF! ->  | E22: =VLOOKUP(C22,#REF!,2,FALSE) ->  | H22: =VLOOKUP(C22,#REF!,3,FALSE) ->  | K22: =VLOOKUP(C22,#REF!,4,FALSE) ->  | N22: =VLOOKUP(C22,#REF!,5,FALSE) ->  | Q22: 0 | S22: =VLOOKUP(C22,#REF!,2,FALSE) ->  | V22: =VLOOKUP(C22,#REF!,3,FALSE) ->  | Y22: =VLOOKUP(C22,#REF!,4,FALSE) ->  | AB22: =VLOOKUP(C22,#REF!,5,FALSE) ->  | AF22: 0 | AG22: 0
B23: 19 | C23: =#REF! ->  | E23: =VLOOKUP(C23,#REF!,2,FALSE) ->  | H23: =VLOOKUP(C23,#REF!,3,FALSE) ->  | K23: =VLOOKUP(C23,#REF!,4,FALSE) ->  | N23: =VLOOKUP(C23,#REF!,5,FALSE) ->  | Q23: 0 | S23: =VLOOKUP(C23,#REF!,2,FALSE) ->  | V23: =VLOOKUP(C23,#REF!,3,FALSE) ->  | Y23: =VLOOKUP(C23,#REF!,4,FALSE) ->  | AB23: =VLOOKUP(C23,#REF!,5,FALSE) ->  | AF23: 0 | AG23: 0
B24: 20 | C24: =#REF! ->  | E24: =VLOOKUP(C24,#REF!,2,FALSE) ->  | H24: =VLOOKUP(C24,#REF!,3,FALSE) ->  | K24: =VLOOKUP(C24,#REF!,4,FALSE) ->  | N24: =VLOOKUP(C24,#REF!,5,FALSE) ->  | Q24: 0 | S24: =VLOOKUP(C24,#REF!,2,FALSE) ->  | V24: =VLOOKUP(C24,#REF!,3,FALSE) ->  | Y24: =VLOOKUP(C24,#REF!,4,FALSE) ->  | AB24: =VLOOKUP(C24,#REF!,5,FALSE) ->  | AF24: 0 | AG24: 0
B25: 21 | C25: =#REF! ->  | E25: =VLOOKUP(C25,#REF!,2,FALSE) ->  | H25: =VLOOKUP(C25,#REF!,3,FALSE) ->  | K25: =VLOOKUP(C25,#REF!,4,FALSE) ->  | N25: =VLOOKUP(C25,#REF!,5,FALSE) ->  | Q25: 0 | S25: =VLOOKUP(C25,#REF!,2,FALSE) ->  | V25: =VLOOKUP(C25,#REF!,3,FALSE) ->  | Y25: =VLOOKUP(C25,#REF!,4,FALSE) ->  | AB25: =VLOOKUP(C25,#REF!,5,FALSE) ->  | AF25: 0 | AG25: 0

Sheet aktuala (7) (hidden)
C2: ='F1'!B2 -> Sporta viktorīnas speciālizlaidums | F1 viktorīna | 2025.gada 13.augusts
B4: # | C4: Komandas / Raundi | D4: 1 | G4: 2 | J4: 3 | M4: 4 | P4: 5 | R4: 6 | U4: 7 | X4: 8 | AA4: 9 | AD4: 10 | AG4: KOPĀ
B5: 1 | C5: Zinātāji | D5: 4 | E5: 15 | F5: 60 | G5: 2 | H5: 10 | I5: 20 | J5: 4 | K5: 15 | L5: 60 | M5: 6 | N5: 20 | O5: 120 | P5: 8 | Q5: 120 | R5: 2 | S5: 10 | T5: 20 | U5: 6 | V5: 20 | W5: 120 | X5: 6 | Y5: 15 | Z5: 90 | AA5: 6 | AB5: 15 | AC5: 90 | AD5: 6 | AE5: 1 | AF5: 115 | AG5: 51 | AH5: 815
B6: 2 | C6: Diskusiju klubiņš | D6: 6 | E6: 15 | F6: 90 | G6: 3 | H6: 10 | I6: 30 | J6: 5 | K6: 15 | L6: 75 | M6: 6 | N6: 20 | O6: 120 | P6: 7 | Q6: 105 | R6: 3 | S6: 10 | T6: 30 | U6: 5 | V6: 15 | W6: 75 | X6: 6 | Y6: 15 | Z6: 90 | AA6: 4 | AB6: 20 | AC6: 80 | AD6: 4 | AE6: 1 | AF6: 85 | AG6: 50 | AH6: 780
B7: 3 | C7: Dīvānueksperti.lv | D7: 6 | E7: 15 | F7: 90 | G7: 4 | H7: 10 | I7: 40 | J7: 6 | K7: 15 | L7: 90 | M7: 6 | N7: 20 | O7: 120 | P7: 5 | Q7: 75 | R7: 2 | S7: 10 | T7: 20 | U7: 6 | V7: 15 | W7: 90 | X7: 4 | Y7: 15 | Z7: 60 | AA7: 3 | AB7: 20 | AC7: 60 | AD7: 6 | AE7: 1 | AF7: 115 | AG7: 49 | AH7: 760
B8: 4 | C8: Alus zaldāti | D8: 4 | E8: 15 | F8: 60 | G8: 2 | H8: 10 | I8: 20 | J8: 5 | K8: 15 | L8: 75 | M8: 6 | N8: 20 | O8: 120 | P8: 8 | Q8: 120 | R8: 3 | S8: 15 | T8: 45 | U8: 6 | V8: 20 | W8: 120 | X8: 4 | Y8: 15 | Z8: 60 | AA8: 4 | AB8: 10 | AC8: 40 | AD8: 5 | AE8: 1 | AF8: 100 | AG8: 48 | AH8: 760
B9: 5 | C9: Katlakalns / KKK | D9: 5 | E9: 15 | F9: 75 | G9: 3 | H9: 10 | I9: 30 | J9: 4 | K9: 15 | L9: 60 | M9: 5 | N9: 20 | O9: 100 | P9: 7 | Q9: 105 | R9: 3 | S9: 10 | T9: 30 | U9: 6 | V9: 20 | W9: 120 | X9: 3 | Y9: 15 | Z9: 45 | AA9: 4 | AB9: 15 | AC9: 60 | AD9: 5 | AE9: 1 | AF9: 100 | AG9: 46 | AH9: 725
B10: 6 | C10: Džamolidins Abdužaparovs | D10: 5 | E10: 15 | F10: 75 | G10: 4 | H10: 10 | I10: 40 | J10: 3 | K10: 15 | L10: 45 | M10: 6 | N10: 20 | O10: 120 | P10: 8 | Q10: 120 | R10: 3 | S10: 15 | T10: 45 | U10: 4 | V10: 15 | W10: 60 | X10: 3 | Y10: 10 | Z10: 30 | AA10: 6 | AB10: 20 | AC10: 120 | AD10: 4 | AE10: 0 | AF10: 60 | AG10: 46 | AH10: 715
B11: 7 | C11: 0%Apskaidrība | D11: 6 | E11: 15 | F11: 90 | G11: 4 | H11: 15 | I11: 60 | J11: 3 | K11: 10 | L11: 30 | M11: 5 | N11: 20 | O11: 100 | P11: 8 | Q11: 120 | R11: 3 | S11: 20 | T11: 60 | U11: 5 | V11: 10 | W11: 50 | X11: 5 | Y11: 15 | Z11: 75 | AA11: 4 | AB11: 15 | AC11: 60 | AD11: 2 | AE11: 0 | AF11: 30 | AG11: 45 | AH11: 675
B12: 8 | C12: Lācēni | D12: 3 | E12: 15 | F12: 45 | G12: 4 | H12: 15 | I12: 60 | J12: 2 | K12: 10 | L12: 20 | M12: 5 | N12: 20 | O12: 100 | P12: 6 | Q12: 90 | R12: 1 | S12: 15 | T12: 15 | U12: 6 | V12: 20 | W12: 120 | X12: 4 | Y12: 10 | Z12: 40 | AA12: 4 | AB12: 15 | AC12: 60 | AD12: 5 | AE12: 1 | AF12: 100 | AG12: 41 | AH12: 650
B13: 9 | C13: Rozā krekli un mokasīni | D13: 4 | E13: 20 | F13: 80 | G13: 5 | H13: 10 | I13: 50 | J13: 3 | K13: 15 | L13: 45 | M13: 6 | N13: 15 | O13: 90 | P13: 8 | Q13: 120 | R13: 2 | S13: 15 | T13: 30 | U13: 5 | V13: 20 | W13: 100 | X13: 2 | Y13: 10 | Z13: 20 | AA13: 3 | AB13: 15 | AC13: 45 | AD13: 4 | AE13: 0 | AF13: 60 | AG13: 42 | AH13: 640
B14: 10 | C14: Enkurs rauj ezerā | D14: 5 | E14: 15 | F14: 75 | G14: 4 | H14: 20 | I14: 80 | J14: 4 | K14: 10 | L14: 40 | M14: 5 | N14: 15 | O14: 75 | P14: 4 | Q14: 60 | R14: 3 | S14: 15 | T14: 45 | U14: 6 | V14: 20 | W14: 120 | X14: 1 | Y14: 15 | Z14: 15 | AA14: 4 | AB14: 10 | AC14: 40 | AD14: 4 | AE14: 0 | AF14: 60 | AG14: 40 | AH14: 610
B15: 11 | C15: Tev tas liekas NORMĀLI? | D15: 4 | E15: 20 | F15: 80 | G15: 4 | H15: 10 | I15: 40 | J15: 3 | K15: 15 | L15: 45 | M15: 4 | N15: 15 | O15: 60 | P15: 8 | Q15: 120 | R15: 3 | S15: 15 | T15: 45 | U15: 5.5 | V15: 20 | W15: 110 | X15: 2 | Y15: 15 | Z15: 30 | AA15: 3 | AB15: 10 | AC15: 30 | AD15: 2 | AE15: 0 | AF15: 30 | AG15: 38.5 | AH15: 590
B16: 12 | C16: Melnais zirdziņš | D16: 3 | E16: 15 | F16: 45 | G16: 3 | H16: 15 | I16: 45 | J16: 3 | K16: 10 | L16: 30 | M16: 5 | N16: 20 | O16: 100 | P16: 7 | Q16: 105 | R16: 2 | S16: 15 | T16: 30 | U16: 5 | V16: 20 | W16: 100 | X16: 3 | Y16: 10 | Z16: 30 | AA16: 3 | AB16: 15 | AC16: 45 | AD16: 4 | AE16: 0 | AF16: 60 | AG16: 38 | AH16: 590
B17: 13 | C17: Lai Top | D17: 3 | E17: 15 | F17: 45 | G17: 3 | H17: 10 | I17: 30 | J17: 6 | K17: 20 | L17: 120 | M17: 4 | N17: 15 | O17: 60 | P17: 6 | Q17: 90 | R17: 2 | S17: 10 | T17: 20 | U17: 6 | V17: 20 | W17: 120 | X17: 1 | Y17: 15 | Z17: 15 | AA17: 4 | AB17: 15 | AC17: 60 | AD17: 2 | AE17: 0 | AF17: 30 | AG17: 37 | AH17: 590
B18: 14 | C18: Amatieru pietura | D18: 4 | E18: 20 | F18: 80 | G18: 3 | H18: 15 | I18: 45 | J18: 2 | K18: 10 | L18: 20 | M18: 4 | N18: 15 | O18: 60 | P18: 7 | Q18: 105 | R18: 3 | S18: 15 | T18: 45 | U18: 6 | V18: 20 | W18: 120 | X18: 2 | Y18: 10 | Z18: 20 | AA18: 2 | AB18: 15 | AC18: 30 | AD18: 3 | AE18: 0 | AF18: 45 | AG18: 36 | AH18: 570
B19: 15 | C19: Karaliskais kronis | D19: 4 | E19: 15 | F19: 60 | G19: 3 | H19: 10 | I19: 30 | J19: 3 | K19: 15 | L19: 45 | M19: 5 | N19: 20 | O19: 100 | P19: 0 | Q19: 0 | R19: 2 | S19: 20 | T19: 40 | U19: 6 | V19: 15 | W19: 90 | X19: 4 | Y19: 15 | Z19: 60 | AA19: 3 | AB19: 10 | AC19: 30 | AD19: 3 | AE19: 0 | AF19: 45 | AG19: 33 | AH19: 500
B20: 16 | C20: =#REF! ->  | E20: =VLOOKUP(C20,#REF!,2,FALSE) ->  | F20: =D20*E20 ->  | H20: =VLOOKUP(C20,#REF!,3,FALSE) ->  | I20: =G20*H20 ->  | K20: =VLOOKUP(C20,#REF!,4,FALSE) ->  | L20: =J20*K20 ->  | N20: =VLOOKUP(C20,#REF!,5,FALSE) ->  | O20: =M20*N20 ->  | Q20: =P20*15 -> 0 | S20: =VLOOKUP(C20,#REF!,2,FALSE) ->  | T20: =R20*S20 ->  | V20: =VLOOKUP(C20,#REF!,3,FALSE) ->  | W20: =U20*V20 ->  | Y20: =VLOOKUP(C20,#REF!,4,FALSE) ->  | Z20: =X20*Y20 ->  | AB20: =VLOOKUP(C20,#REF!,5,FALSE) ->  | AC20: =AA20*AB20 ->  | AF20: =AD20*15+AE20*25 -> 0 | AG20: =D20+G20+J20+M20+R20+U20+X20+AA20+AD20+AE20+P20 -> 0 | AH20: =F20+I20+L20+O20+Q20+T20+W20+Z20+AC20+AF20 -> 
B21: 17 | C21: =#REF! ->  | E21: =VLOOKUP(C21,#REF!,2,FALSE) ->  | H21: =VLOOKUP(C21,#REF!,3,FALSE) ->  | K21: =VLOOKUP(C21,#REF!,4,FALSE) ->  | N21: =VLOOKUP(C21,#REF!,5,FALSE) ->  | Q21: 0 | S21: =VLOOKUP(C21,#REF!,2,FALSE) ->  | V21: =VLOOKUP(C21,#REF!,3,FALSE) ->  | Y21: =VLOOKUP(C21,#REF!,4,FALSE) ->  | AB21: =VLOOKUP(C21,#REF!,5,FALSE) ->  | AF21: 0 | AG21: 0
B22: 18 | C22: =#REF! ->  | E22: =VLOOKUP(C22,#REF!,2,FALSE) ->  | H22: =VLOOKUP(C22,#REF!,3,FALSE) ->  | K22: =VLOOKUP(C22,#REF!,4,FALSE) ->  | N22: =VLOOKUP(C22,#REF!,5,FALSE) ->  | Q22: 0 | S22: =VLOOKUP(C22,#REF!,2,FALSE) ->  | V22: =VLOOKUP(C22,#REF!,3,FALSE) ->  | Y22: =VLOOKUP(C22,#REF!,4,FALSE) ->  | AB22: =VLOOKUP(C22,#REF!,5,FALSE) ->  | AF22: 0 | AG22: 0
B23: 19 | C23: =#REF! ->  | E23: =VLOOKUP(C23,#REF!,2,FALSE) ->  | H23: =VLOOKUP(C23,#REF!,3,FALSE) ->  | K23: =VLOOKUP(C23,#REF!,4,FALSE) ->  | N23: =VLOOKUP(C23,#REF!,5,FALSE) ->  | Q23: 0 | S23: =VLOOKUP(C23,#REF!,2,FALSE) ->  | V23: =VLOOKUP(C23,#REF!,3,FALSE) ->  | Y23: =VLOOKUP(C23,#REF!,4,FALSE) ->  | AB23: =VLOOKUP(C23,#REF!,5,FALSE) ->  | AF23: 0 | AG23: 0
B24: 20 | C24: =#REF! ->  | E24: =VLOOKUP(C24,#REF!,2,FALSE) ->  | H24: =VLOOKUP(C24,#REF!,3,FALSE) ->  | K24: =VLOOKUP(C24,#REF!,4,FALSE) ->  | N24: =VLOOKUP(C24,#REF!,5,FALSE) ->  | Q24: 0 | S24: =VLOOKUP(C24,#REF!,2,FALSE) ->  | V24: =VLOOKUP(C24,#REF!,3,FALSE) ->  | Y24: =VLOOKUP(C24,#REF!,4,FALSE) ->  | AB24: =VLOOKUP(C24,#REF!,5,FALSE) ->  | AF24: 0 | AG24: 0
B25: 21 | C25: =#REF! ->  | E25: =VLOOKUP(C25,#REF!,2,FALSE) ->  | H25: =VLOOKUP(C25,#REF!,3,FALSE) ->  | K25: =VLOOKUP(C25,#REF!,4,FALSE) ->  | N25: =VLOOKUP(C25,#REF!,5,FALSE) ->  | Q25: 0 | S25: =VLOOKUP(C25,#REF!,2,FALSE) ->  | V25: =VLOOKUP(C25,#REF!,3,FALSE) ->  | Y25: =VLOOKUP(C25,#REF!,4,FALSE) ->  | AB25: =VLOOKUP(C25,#REF!,5,FALSE) ->  | AF25: 0 | AG25: 0

Sheet SPV_9k (hidden)
D2: "Sporta viktorīna" | 9.kārta: 19. un 22.maijs | REZULTĀTI
B4: # | C4: # grupā | D4: Komandas / Raundi | E4: #99 dažādos sporta veidos | H4: Latvija rīko sacensības | K4: Video | N4: Profesionālām mājsaimniecēm | Q4: Ķēde | S4: Basketbola cilvēki ar vismaz 3 tituliem | V4: Sporta karalis | Y4: Hokeja klubu nosaukumi | AB4: Valstis uz T burta | AE4: Kas kopīgs? | AH4: KOPĀ
B5: 1 | C5: 1 | D5: Zigfrīds Muktupāvels | E5: 4 | F5: 15 | G5: 60 | H5: 6 | I5: 20 | J5: 120 | K5: 5 | L5: 10 | M5: 50 | N5: 5 | O5: 15 | P5: 75 | Q5: 8 | R5: 120 | S5: 4 | T5: 10 | U5: 40 | V5: 5 | W5: 15 | X5: 75 | Y5: 5 | Z5: 20 | AA5: 100 | AB5: 5 | AC5: 15 | AD5: 75 | AE5: 6 | AF5: 0 | AG5: 90 | AH5: 53 | AI5: 805
B6: 2 | C6: =#REF! ->  | D6: =#REF! ->  | E6: =#REF! ->  | F6: =#REF! ->  | G6: =#REF! ->  | H6: =#REF! ->  | I6: =#REF! ->  | J6: =#REF! ->  | K6: =#REF! ->  | L6: =#REF! ->  | M6: =#REF! ->  | N6: =#REF! ->  | O6: =#REF! ->  | P6: =#REF! ->  | Q6: =#REF! ->  | R6: =#REF! ->  | S6: =#REF! ->  | T6: =#REF! ->  | U6: =#REF! ->  | V6: =#REF! ->  | W6: =#REF! ->  | X6: =#REF! ->  | Y6: =#REF! ->  | Z6: =#REF! ->  | AA6: =#REF! ->  | AB6: =#REF! ->  | AC6: =#REF! ->  | AD6: =#REF! ->  | AE6: =#REF! ->  | AF6: =#REF! ->  | AG6: =#REF! ->  | AH6: =#REF! ->  | AI6: =#REF! -> 
B7: 3 | C7: 2 | D7: Jeržābeks | E7: 1 | F7: 15 | G7: 15 | H7: 4 | I7: 10 | J7: 40 | K7: 6 | L7: 20 | M7: 120 | N7: 4 | O7: 15 | P7: 60 | Q7: 8 | R7: 120 | S7: 4 | T7: 10 | U7: 40 | V7: 5 | W7: 20 | X7: 100 | Y7: 4 | Z7: 15 | AA7: 60 | AB7: 6 | AC7: 15 | AD7: 90 | AE7: 7 | AF7: 1 | AG7: 130 | AH7: 50 | AI7: 775
B8: 4 | C8: 3 | D8: Alus zaldāti | E8: 3 | F8: 10 | G8: 30 | H8: 5 | I8: 15 | J8: 75 | K8: 4 | L8: 15 | M8: 60 | N8: 5 | O8: 20 | P8: 100 | Q8: 8 | R8: 120 | S8: 4 | T8: 20 | U8: 80 | V8: 5 | W8: 10 | X8: 50 | Y8: 6 | Z8: 15 | AA8: 90 | AB8: 6 | AC8: 15 | AD8: 90 | AE8: 5 | AF8: 0 | AG8: 75 | AH8: 51 | AI8: 770
B9: 5 | C9: =#REF! ->  | D9: =#REF! ->  | E9: =#REF! ->  | F9: =#REF! ->  | G9: =#REF! ->  | H9: =#REF! ->  | I9: =#REF! ->  | J9: =#REF! ->  | K9: =#REF! ->  | L9: =#REF! ->  | M9: =#REF! ->  | N9: =#REF! ->  | O9: =#REF! ->  | P9: =#REF! ->  | Q9: =#REF! ->  | R9: =#REF! ->  | S9: =#REF! ->  | T9: =#REF! ->  | U9: =#REF! ->  | V9: =#REF! ->  | W9: =#REF! ->  | X9: =#REF! ->  | Y9: =#REF! ->  | Z9: =#REF! ->  | AA9: =#REF! ->  | AB9: =#REF! ->  | AC9: =#REF! ->  | AD9: =#REF! ->  | AE9: =#REF! ->  | AF9: =#REF! ->  | AG9: =#REF! ->  | AH9: =#REF! ->  | AI9: =#REF! -> 
B10: 6 | C10: 4 | D10: 0%Apskaidrība | E10: 3 | F10: 10 | G10: 30 | H10: 3.5 | I10: 15 | J10: 52.5 | K10: 4 | L10: 15 | M10: 60 | N10: 5 | O10: 20 | P10: 100 | Q10: 8 | R10: 120 | S10: 3 | T10: 10 | U10: 30 | V10: 6 | W10: 20 | X10: 120 | Y10: 5 | Z10: 15 | AA10: 75 | AB10: 5 | AC10: 15 | AD10: 75 | AE10: 5 | AF10: 0 | AG10: 75 | AH10: 47.5 | AI10: 737.5
B11: 7 | C11: 5 | D11: kOzis | E11: 3 | F11: 15 | G11: 45 | H11: 2 | I11: 10 | J11: 20 | K11: 4 | L11: 15 | M11: 60 | N11: 5.5 | O11: 20 | P11: 110 | Q11: 7 | R11: 105 | S11: 5 | T11: 20 | U11: 100 | V11: 4 | W11: 15 | X11: 60 | Y11: 5 | Z11: 10 | AA11: 50 | AB11: 5 | AC11: 15 | AD11: 75 | AE11: 6 | AF11: 0 | AG11: 90 | AH11: 46.5 | AI11: 715
B12: 8 | C12: 6 | D12: Rozā krekli un mokasīni | E12: 4 | F12: 15 | G12: 60 | H12: 5.5 | I12: 15 | J12: 82.5 | K12: 3 | L12: 10 | M12: 30 | N12: 4.5 | O12: 20 | P12: 90 | Q12: 2 | R12: 30 | S12: 6 | T12: 20 | U12: 120 | V12: 4 | W12: 10 | X12: 40 | Y12: 5 | Z12: 15 | AA12: 75 | AB12: 5 | AC12: 15 | AD12: 75 | AE12: 5 | AF12: 1 | AG12: 100 | AH12: 45 | AI12: 702.5
B13: 9 | C13: 7 | D13: Džamolidins Abdužaparovs | E13: 2 | F13: 10 | G13: 20 | H13: 4.5 | I13: 15 | J13: 67.5 | K13: 4 | L13: 15 | M13: 60 | N13: 5 | O13: 20 | P13: 100 | Q13: 8 | R13: 120 | S13: 3 | T13: 10 | U13: 30 | V13: 3 | W13: 15 | X13: 45 | Y13: 4 | Z13: 15 | AA13: 60 | AB13: 4 | AC13: 20 | AD13: 80 | AE13: 6 | AF13: 1 | AG13: 115 | AH13: 44.5 | AI13: 697.5
B14: 10 | C14: 8 | D14: Zinātāji | E14: 6 | F14: 15 | G14: 90 | H14: 4.5 | I14: 10 | J14: 45 | K14: 2 | L14: 15 | M14: 30 | N14: 5 | O14: 20 | P14: 100 | Q14: 8 | R14: 120 | S14: 2 | T14: 15 | U14: 30 | V14: 5 | W14: 15 | X14: 75 | Y14: 5 | Z14: 10 | AA14: 50 | AB14: 4 | AC14: 20 | AD14: 80 | AE14: 5 | AF14: 0 | AG14: 75 | AH14: 46.5 | AI14: 695
B15: 11 | C15: 9 | D15: Fireball | E15: 3 | F15: 10 | G15: 30 | H15: 4 | I15: 15 | J15: 60 | K15: 3 | L15: 15 | M15: 45 | N15: 5 | O15: 20 | P15: 100 | Q15: 4 | R15: 60 | S15: 5 | T15: 20 | U15: 100 | V15: 6 | W15: 15 | X15: 90 | Y15: 5 | Z15: 10 | AA15: 50 | AB15: 3 | AC15: 15 | AD15: 45 | AE15: 6 | AF15: 1 | AG15: 115 | AH15: 45 | AI15: 695
B16: 12 | C16: 10 | D16: Karaliskais kronis | E16: 1 | F16: 15 | G16: 15 | H16: 3 | I16: 15 | J16: 45 | K16: 3 | L16: 10 | M16: 30 | N16: 6 | O16: 20 | P16: 120 | Q16: 7 | R16: 105 | S16: 3 | T16: 10 | U16: 30 | V16: 5 | W16: 15 | X16: 75 | Y16: 6 | Z16: 20 | AA16: 120 | AB16: 6 | AC16: 15 | AD16: 90 | AE16: 4 | AF16: 0 | AG16: 60 | AH16: 44 | AI16: 690
B17: 13 | C17: 11 | D17: Dīvānueksperti.lv | E17: 4 | F17: 10 | G17: 40 | H17: 3.5 | I17: 15 | J17: 52.5 | K17: 4 | L17: 15 | M17: 60 | N17: 5 | O17: 20 | P17: 100 | Q17: 7 | R17: 105 | S17: 4 | T17: 20 | U17: 80 | V17: 4 | W17: 10 | X17: 40 | Y17: 5 | Z17: 15 | AA17: 75 | AB17: 4 | AC17: 15 | AD17: 60 | AE17: 5 | AF17: 0 | AG17: 75 | AH17: 45.5 | AI17: 687.5
B18: 14 | C18: =#REF! ->  | D18: =#REF! ->  | E18: =#REF! ->  | F18: =#REF! ->  | G18: =#REF! ->  | H18: =#REF! ->  | I18: =#REF! ->  | J18: =#REF! ->  | K18: =#REF! ->  | L18: =#REF! ->  | M18: =#REF! ->  | N18: =#REF! ->  | O18: =#REF! ->  | P18: =#REF! ->  | Q18: =#REF! ->  | R18: =#REF! ->  | S18: =#REF! ->  | T18: =#REF! ->  | U18: =#REF! ->  | V18: =#REF! ->  | W18: =#REF! ->  | X18: =#REF! ->  | Y18: =#REF! ->  | Z18: =#REF! ->  | AA18: =#REF! ->  | AB18: =#REF! ->  | AC18: =#REF! ->  | AD18: =#REF! ->  | AE18: =#REF! ->  | AF18: =#REF! ->  | AG18: =#REF! ->  | AH18: =#REF! ->  | AI18: =#REF! -> 
B19: 15 | C19: =#REF! ->  | D19: =#REF! ->  | E19: =#REF! ->  | F19: =#REF! ->  | G19: =#REF! ->  | H19: =#REF! ->  | I19: =#REF! ->  | J19: =#REF! ->  | K19: =#REF! ->  | L19: =#REF! ->  | M19: =#REF! ->  | N19: =#REF! ->  | O19: =#REF! ->  | P19: =#REF! ->  | Q19: =#REF! ->  | R19: =#REF! ->  | S19: =#REF! ->  | T19: =#REF! ->  | U19: =#REF! ->  | V19: =#REF! ->  | W19: =#REF! ->  | X19: =#REF! ->  | Y19: =#REF! ->  | Z19: =#REF! ->  | AA19: =#REF! ->  | AB19: =#REF! ->  | AC19: =#REF! ->  | AD19: =#REF! ->  | AE19: =#REF! ->  | AF19: =#REF! ->  | AG19: =#REF! ->  | AH19: =#REF! ->  | AI19: =#REF! -> 
B20: 16 | C20: =#REF! ->  | D20: =#REF! ->  | E20: =#REF! ->  | F20: =#REF! ->  | G20: =#REF! ->  | H20: =#REF! ->  | I20: =#REF! ->  | J20: =#REF! ->  | K20: =#REF! ->  | L20: =#REF! ->  | M20: =#REF! ->  | N20: =#REF! ->  | O20: =#REF! ->  | P20: =#REF! ->  | Q20: =#REF! ->  | R20: =#REF! ->  | S20: =#REF! ->  | T20: =#REF! ->  | U20: =#REF! ->  | V20: =#REF! ->  | W20: =#REF! ->  | X20: =#REF! ->  | Y20: =#REF! ->  | Z20: =#REF! ->  | AA20: =#REF! ->  | AB20: =#REF! ->  | AC20: =#REF! ->  | AD20: =#REF! ->  | AE20: =#REF! ->  | AF20: =#REF! ->  | AG20: =#REF! ->  | AH20: =#REF! ->  | AI20: =#REF! -> 
B21: 17 | C21: 12 | D21: A komanda | E21: 4 | F21: 10 | G21: 40 | H21: 5 | I21: 15 | J21: 75 | K21: 2 | L21: 15 | M21: 30 | N21: 3.5 | O21: 20 | P21: 70 | Q21: 4 | R21: 60 | S21: 3 | T21: 15 | U21: 45 | V21: 4 | W21: 15 | X21: 60 | Y21: 5 | Z21: 20 | AA21: 100 | AB21: 6 | AC21: 10 | AD21: 60 | AE21: 5 | AF21: 0 | AG21: 75 | AH21: 41.5 | AI21: 615
B22: 18 | C22: 13 | D22: Stosi | E22: 0 | F22: 15 | G22: 0 | H22: 3 | I22: 15 | J22: 45 | K22: 2 | L22: 10 | M22: 20 | N22: 6 | O22: 20 | P22: 120 | Q22: 7 | R22: 105 | S22: 2 | T22: 15 | U22: 30 | V22: 2 | W22: 10 | X22: 20 | Y22: 4 | Z22: 15 | AA22: 60 | AB22: 6 | AC22: 20 | AD22: 120 | AE22: 4 | AF22: 0 | AG22: 60 | AH22: 36 | AI22: 580
B23: 19 | C23: =#REF! ->  | D23: =#REF! ->  | E23: =#REF! ->  | F23: =#REF! ->  | G23: =#REF! ->  | H23: =#REF! ->  | I23: =#REF! ->  | J23: =#REF! ->  | K23: =#REF! ->  | L23: =#REF! ->  | M23: =#REF! ->  | N23: =#REF! ->  | O23: =#REF! ->  | P23: =#REF! ->  | Q23: =#REF! ->  | R23: =#REF! ->  | S23: =#REF! ->  | T23: =#REF! ->  | U23: =#REF! ->  | V23: =#REF! ->  | W23: =#REF! ->  | X23: =#REF! ->  | Y23: =#REF! ->  | Z23: =#REF! ->  | AA23: =#REF! ->  | AB23: =#REF! ->  | AC23: =#REF! ->  | AD23: =#REF! ->  | AE23: =#REF! ->  | AF23: =#REF! ->  | AG23: =#REF! ->  | AH23: =#REF! ->  | AI23: =#REF! -> 
B24: 20 | C24: 14 | D24: Dzīvo vienreiz | E24: 1 | F24: 10 | G24: 10 | H24: 3.5 | I24: 15 | J24: 52.5 | K24: 4 | L24: 20 | M24: 80 | N24: 3 | O24: 15 | P24: 45 | Q24: 6 | R24: 90 | S24: 6 | T24: 20 | U24: 120 | V24: 2 | W24: 15 | X24: 30 | Y24: 3 | Z24: 10 | AA24: 30 | AB24: 3 | AC24: 15 | AD24: 45 | AE24: 4 | AF24: 0 | AG24: 60 | AH24: 35.5 | AI24: 562.5
B25: 21 | C25: 15 | D25: Melnais zirdziņš | E25: 2 | F25: 10 | G25: 20 | H25: 4 | I25: 15 | J25: 60 | K25: 2 | L25: 15 | M25: 30 | N25: 3.5 | O25: 20 | P25: 70 | Q25: 6 | R25: 90 | S25: 3 | T25: 15 | U25: 45 | V25: 4 | W25: 20 | X25: 80 | Y25: 3 | Z25: 15 | AA25: 45 | AB25: 5 | AC25: 10 | AD25: 50 | AE25: 3 | AF25: 0 | AG25: 45 | AH25: 35.5 | AI25: 535
B26: 22 | C26: 16 | D26: Lai Top | E26: 2 | F26: 10 | G26: 20 | H26: 3.5 | I26: 15 | J26: 52.5 | K26: 4 | L26: 20 | M26: 80 | N26: 5 | O26: 15 | P26: 75 | Q26: 4 | R26: 60 | S26: 2 | T26: 15 | U26: 30 | V26: 3 | W26: 15 | X26: 45 | Y26: 4 | Z26: 20 | AA26: 80 | AB26: 3 | AC26: 10 | AD26: 30 | AE26: 4 | AF26: 0 | AG26: 60 | AH26: 34.5 | AI26: 532.5
D28: LIELDRAUGS ATBALSTĪTĀJI

Sheet aktuala (8) (hidden)
C2: ='F1'!B2 -> Sporta viktorīnas speciālizlaidums | F1 viktorīna | 2025.gada 13.augusts
B4: # | C4: Komandas / Raundi | D4: 1 | G4: 2 | J4: 3 | M4: 4 | P4: Ķēde | R4: 6 | U4: 7 | X4: 8 | AA4: 9 | AD4: 10 | AG4: KOPĀ
B5: 1 | C5: Zigfrīds Muktupāvels | D5: 5 | E5: 15 | F5: 75 | G5: 6 | H5: 15 | I5: 90 | J5: 3 | K5: 10 | L5: 30 | M5: 5 | N5: 20 | O5: 100 | P5: 8 | Q5: 120 | R5: 6 | S5: 20 | T5: 120 | U5: 4 | V5: 15 | W5: 60 | X5: 4 | Y5: 10 | Z5: 40 | AA5: 5 | AB5: 15 | AC5: 75 | AD5: 5 | AE5: 1 | AF5: 100 | AG5: 52 | AH5: 810
B6: 2 | C6: Diskusiju klubiņš | D6: 4 | E6: 10 | F6: 40 | G6: 5 | H6: 15 | I6: 75 | J6: 6 | K6: 15 | L6: 90 | M6: 5 | N6: 20 | O6: 100 | P6: 5 | Q6: 75 | R6: 5 | S6: 10 | T6: 50 | U6: 6 | V6: 15 | W6: 90 | X6: 4 | Y6: 15 | Z6: 60 | AA6: 4 | AB6: 20 | AC6: 80 | AD6: 6 | AE6: 1 | AF6: 115 | AG6: 51 | AH6: 775
B7: 3 | C7: Alus zaldāti | D7: 4 | E7: 10 | F7: 40 | G7: 4 | H7: 15 | I7: 60 | J7: 5 | K7: 15 | L7: 75 | M7: 4 | N7: 20 | O7: 80 | P7: 8 | Q7: 120 | R7: 4 | S7: 15 | T7: 60 | U7: 6 | V7: 20 | W7: 120 | X7: 5 | Y7: 10 | Z7: 50 | AA7: 4 | AB7: 15 | AC7: 60 | AD7: 4 | AE7: 0 | AF7: 60 | AG7: 48 | AH7: 725
B8: 4 | C8: Dīvānueksperti.lv | D8: 4 | E8: 10 | F8: 40 | G8: 4 | H8: 15 | I8: 60 | J8: 5 | K8: 15 | L8: 75 | M8: 4 | N8: 20 | O8: 80 | P8: 8 | Q8: 120 | R8: 3 | S8: 15 | T8: 45 | U8: 5 | V8: 10 | W8: 50 | X8: 2 | Y8: 15 | Z8: 30 | AA8: 5 | AB8: 20 | AC8: 100 | AD8: 6 | AE8: 1 | AF8: 115 | AG8: 47 | AH8: 715
B9: 5 | C9: Katlakalns / KKK | D9: 3 | E9: 10 | F9: 30 | G9: 5 | H9: 20 | I9: 100 | J9: 4 | K9: 15 | L9: 60 | M9: 4 | N9: 15 | O9: 60 | P9: 6 | Q9: 90 | R9: 3 | S9: 10 | T9: 30 | U9: 4 | V9: 15 | W9: 60 | X9: 5 | Y9: 20 | Z9: 100 | AA9: 5 | AB9: 15 | AC9: 75 | AD9: 5 | AE9: 1 | AF9: 100 | AG9: 45 | AH9: 705
B10: 6 | C10: Fireball | D10: 4 | E10: 15 | F10: 60 | G10: 5 | H10: 15 | I10: 75 | J10: 4 | K10: 10 | L10: 40 | M10: 5 | N10: 20 | O10: 100 | P10: 6 | Q10: 90 | R10: 3 | S10: 10 | T10: 30 | U10: 4 | V10: 20 | W10: 80 | X10: 3 | Y10: 15 | Z10: 45 | AA10: 5 | AB10: 15 | AC10: 75 | AD10: 4 | AE10: 1 | AF10: 85 | AG10: 44 | AH10: 680
B11: 7 | C11: Stosi | D11: 3 | E11: 10 | F11: 30 | G11: 4 | H11: 15 | I11: 60 | J11: 4 | K11: 15 | L11: 60 | M11: 5 | N11: 20 | O11: 100 | P11: 8 | Q11: 120 | R11: 2 | S11: 15 | T11: 30 | U11: 4 | V11: 15 | W11: 60 | X11: 4 | Y11: 10 | Z11: 40 | AA11: 5 | AB11: 20 | AC11: 100 | AD11: 3 | AE11: 1 | AF11: 70 | AG11: 43 | AH11: 670
B12: 8 | C12: 0%Apskaidrība | D12: 4 | E12: 10 | F12: 40 | G12: 3 | H12: 15 | I12: 45 | J12: 5 | K12: 15 | L12: 75 | M12: 4 | N12: 20 | O12: 80 | P12: 6 | Q12: 90 | R12: 4.5 | S12: 20 | T12: 90 | U12: 6 | V12: 15 | W12: 90 | X12: 5 | Y12: 10 | Z12: 50 | AA12: 4 | AB12: 15 | AC12: 60 | AD12: 3 | AE12: 0 | AF12: 45 | AG12: 44.5 | AH12: 665
B13: 9 | C13: Melnais zirdziņš | D13: 4 | E13: 15 | F13: 60 | G13: 4 | H13: 15 | I13: 60 | J13: 3 | K13: 10 | L13: 30 | M13: 4 | N13: 20 | O13: 80 | P13: 4 | Q13: 60 | R13: 4 | S13: 20 | T13: 80 | U13: 5 | V13: 15 | W13: 75 | X13: 4 | Y13: 10 | Z13: 40 | AA13: 6 | AB13: 15 | AC13: 90 | AD13: 3 | AE13: 0 | AF13: 45 | AG13: 41 | AH13: 620
B14: 10 | C14: kOzis | D14: 4 | E14: 10 | F14: 40 | G14: 5 | H14: 20 | I14: 100 | J14: 3 | K14: 15 | L14: 45 | M14: 4 | N14: 15 | O14: 60 | P14: 6 | Q14: 90 | R14: 2 | S14: 10 | T14: 20 | U14: 5 | V14: 20 | W14: 100 | X14: 3 | Y14: 15 | Z14: 45 | AA14: 3 | AB14: 15 | AC14: 45 | AD14: 4 | AE14: 0 | AF14: 60 | AG14: 39 | AH14: 605
B15: 11 | C15: Amatieru pietura | D15: 3 | E15: 15 | F15: 45 | G15: 4 | H15: 20 | I15: 80 | J15: 4 | K15: 10 | L15: 40 | M15: 4 | N15: 15 | O15: 60 | P15: 4 | Q15: 60 | R15: 5 | S15: 10 | T15: 50 | U15: 6 | V15: 15 | W15: 90 | X15: 2 | Y15: 15 | Z15: 30 | AA15: 4 | AB15: 20 | AC15: 80 | AD15: 4 | AE15: 0 | AF15: 60 | AG15: 40 | AH15: 595
B16: 12 | C16: Turks un polis | D16: 4 | E16: 10 | F16: 40 | G16: 4 | H16: 15 | I16: 60 | J16: 5 | K16: 15 | L16: 75 | M16: 5 | N16: 20 | O16: 100 | P16: 2 | Q16: 30 | R16: 4 | S16: 15 | T16: 60 | U16: 3 | V16: 20 | W16: 60 | X16: 3 | Y16: 15 | Z16: 45 | AA16: 3 | AB16: 10 | AC16: 30 | AD16: 3 | AE16: 0 | AF16: 45 | AG16: 36 | AH16: 545
B17: 13 | C17: =#REF! ->  | E17: =VLOOKUP(C17,#REF!,2,FALSE) ->  | F17: =D17*E17 ->  | H17: =VLOOKUP(C17,#REF!,3,FALSE) ->  | I17: =G17*H17 ->  | K17: =VLOOKUP(C17,#REF!,4,FALSE) ->  | L17: =J17*K17 ->  | N17: =VLOOKUP(C17,#REF!,5,FALSE) ->  | O17: =M17*N17 ->  | Q17: =P17*15 -> 0 | S17: =VLOOKUP(C17,#REF!,2,FALSE) ->  | T17: =R17*S17 ->  | V17: =VLOOKUP(C17,#REF!,3,FALSE) ->  | W17: =U17*V17 ->  | Y17: =VLOOKUP(C17,#REF!,4,FALSE) ->  | Z17: =X17*Y17 ->  | AB17: =VLOOKUP(C17,#REF!,5,FALSE) ->  | AC17: =AA17*AB17 ->  | AF17: =AD17*15+AE17*25 -> 0 | AG17: =D17+G17+J17+M17+R17+U17+X17+AA17+AD17+AE17+P17 -> 0 | AH17: =F17+I17+L17+O17+Q17+T17+W17+Z17+AC17+AF17 -> 
B18: 14 | C18: =#REF! ->  | E18: =VLOOKUP(C18,#REF!,2,FALSE) ->  | H18: =VLOOKUP(C18,#REF!,3,FALSE) ->  | K18: =VLOOKUP(C18,#REF!,4,FALSE) ->  | N18: =VLOOKUP(C18,#REF!,5,FALSE) ->  | Q18: 0 | S18: =VLOOKUP(C18,#REF!,2,FALSE) ->  | V18: =VLOOKUP(C18,#REF!,3,FALSE) ->  | Y18: =VLOOKUP(C18,#REF!,4,FALSE) ->  | AB18: =VLOOKUP(C18,#REF!,5,FALSE) ->  | AF18: 0 | AG18: 0
B19: 15 | C19: =#REF! ->  | E19: =VLOOKUP(C19,#REF!,2,FALSE) ->  | H19: =VLOOKUP(C19,#REF!,3,FALSE) ->  | K19: =VLOOKUP(C19,#REF!,4,FALSE) ->  | N19: =VLOOKUP(C19,#REF!,5,FALSE) ->  | Q19: 0 | S19: =VLOOKUP(C19,#REF!,2,FALSE) ->  | V19: =VLOOKUP(C19,#REF!,3,FALSE) ->  | Y19: =VLOOKUP(C19,#REF!,4,FALSE) ->  | AB19: =VLOOKUP(C19,#REF!,5,FALSE) ->  | AF19: 0 | AG19: 0
B20: 16 | C20: =#REF! ->  | E20: =VLOOKUP(C20,#REF!,2,FALSE) ->  | H20: =VLOOKUP(C20,#REF!,3,FALSE) ->  | K20: =VLOOKUP(C20,#REF!,4,FALSE) ->  | N20: =VLOOKUP(C20,#REF!,5,FALSE) ->  | Q20: 0 | S20: =VLOOKUP(C20,#REF!,2,FALSE) ->  | V20: =VLOOKUP(C20,#REF!,3,FALSE) ->  | Y20: =VLOOKUP(C20,#REF!,4,FALSE) ->  | AB20: =VLOOKUP(C20,#REF!,5,FALSE) ->  | AF20: 0 | AG20: 0
B21: 17 | C21: =#REF! ->  | E21: =VLOOKUP(C21,#REF!,2,FALSE) ->  | H21: =VLOOKUP(C21,#REF!,3,FALSE) ->  | K21: =VLOOKUP(C21,#REF!,4,FALSE) ->  | N21: =VLOOKUP(C21,#REF!,5,FALSE) ->  | Q21: 0 | S21: =VLOOKUP(C21,#REF!,2,FALSE) ->  | V21: =VLOOKUP(C21,#REF!,3,FALSE) ->  | Y21: =VLOOKUP(C21,#REF!,4,FALSE) ->  | AB21: =VLOOKUP(C21,#REF!,5,FALSE) ->  | AF21: 0 | AG21: 0
B22: 18 | C22: =#REF! ->  | E22: =VLOOKUP(C22,#REF!,2,FALSE) ->  | H22: =VLOOKUP(C22,#REF!,3,FALSE) ->  | K22: =VLOOKUP(C22,#REF!,4,FALSE) ->  | N22: =VLOOKUP(C22,#REF!,5,FALSE) ->  | Q22: 0 | S22: =VLOOKUP(C22,#REF!,2,FALSE) ->  | V22: =VLOOKUP(C22,#REF!,3,FALSE) ->  | Y22: =VLOOKUP(C22,#REF!,4,FALSE) ->  | AB22: =VLOOKUP(C22,#REF!,5,FALSE) ->  | AF22: 0 | AG22: 0
B23: 19 | C23: =#REF! ->  | E23: =VLOOKUP(C23,#REF!,2,FALSE) ->  | H23: =VLOOKUP(C23,#REF!,3,FALSE) ->  | K23: =VLOOKUP(C23,#REF!,4,FALSE) ->  | N23: =VLOOKUP(C23,#REF!,5,FALSE) ->  | Q23: 0 | S23: =VLOOKUP(C23,#REF!,2,FALSE) ->  | V23: =VLOOKUP(C23,#REF!,3,FALSE) ->  | Y23: =VLOOKUP(C23,#REF!,4,FALSE) ->  | AB23: =VLOOKUP(C23,#REF!,5,FALSE) ->  | AF23: 0 | AG23: 0
B24: 20 | C24: =#REF! ->  | E24: =VLOOKUP(C24,#REF!,2,FALSE) ->  | H24: =VLOOKUP(C24,#REF!,3,FALSE) ->  | K24: =VLOOKUP(C24,#REF!,4,FALSE) ->  | N24: =VLOOKUP(C24,#REF!,5,FALSE) ->  | Q24: 0 | S24: =VLOOKUP(C24,#REF!,2,FALSE) ->  | V24: =VLOOKUP(C24,#REF!,3,FALSE) ->  | Y24: =VLOOKUP(C24,#REF!,4,FALSE) ->  | AB24: =VLOOKUP(C24,#REF!,5,FALSE) ->  | AF24: 0 | AG24: 0
B25: 21 | C25: =#REF! ->  | E25: =VLOOKUP(C25,#REF!,2,FALSE) ->  | H25: =VLOOKUP(C25,#REF!,3,FALSE) ->  | K25: =VLOOKUP(C25,#REF!,4,FALSE) ->  | N25: =VLOOKUP(C25,#REF!,5,FALSE) ->  | Q25: 0 | S25: =VLOOKUP(C25,#REF!,2,FALSE) ->  | V25: =VLOOKUP(C25,#REF!,3,FALSE) ->  | Y25: =VLOOKUP(C25,#REF!,4,FALSE) ->  | AB25: =VLOOKUP(C25,#REF!,5,FALSE) ->  | AF25: 0 | AG25: 0
C26: =#REF! -> 
C27: =#REF! -> 

Sheet aktuala (9) (hidden)
C2: ='F1'!B2 -> Sporta viktorīnas speciālizlaidums | F1 viktorīna | 2025.gada 13.augusts
B4: # | C4: Komandas / Raundi | D4: 1 | G4: 2 | J4: 3 | M4: 4 | P4: Ķēde | R4: 6 | U4: 7 | X4: 8 | AA4: 9 | AD4: 10 | AG4: KOPĀ
B5: 1 | C5: Japānas beisbola izlase | D5: 4 | E5: 10 | F5: 40 | G5: 2 | H5: 15 | I5: 30 | J5: 5 | K5: 15 | L5: 75 | M5: 4 | N5: 20 | O5: 80 | P5: 8 | Q5: 120 | R5: 4 | S5: 15 | T5: 60 | U5: 5 | V5: 20 | W5: 100 | X5: 5 | Y5: 10 | Z5: 50 | AA5: 6 | AB5: 15 | AC5: 90 | AD5: 5 | AE5: 1 | AF5: 100 | AG5: 49 | AH5: 745
B6: 2 | C6: Karaliskais kronis | D6: 4 | E6: 10 | F6: 40 | G6: 5 | H6: 15 | I6: 75 | J6: 4 | K6: 15 | L6: 60 | M6: 4 | N6: 20 | O6: 80 | P6: 5 | Q6: 75 | R6: 5 | S6: 20 | T6: 100 | U6: 6 | V6: 15 | W6: 90 | X6: 4 | Y6: 10 | Z6: 40 | AA6: 3 | AB6: 15 | AC6: 45 | AD6: 5 | AE6: 1 | AF6: 100 | AG6: 46 | AH6: 705
B7: 3 | C7: Jeržābeks | D7: 4 | E7: 15 | F7: 60 | G7: 4 | H7: 10 | I7: 40 | J7: 4 | K7: 20 | L7: 80 | M7: 6 | N7: 15 | O7: 90 | P7: 7 | Q7: 105 | R7: 2.5 | S7: 15 | T7: 37.5 | U7: 4 | V7: 15 | W7: 60 | X7: 4 | Y7: 10 | Z7: 40 | AA7: 3 | AB7: 20 | AC7: 60 | AD7: 7 | AE7: 1 | AF7: 130 | AG7: 46.5 | AH7: 702.5
B8: 4 | C8: Baltais gailis | D8: 4 | E8: 10 | F8: 40 | G8: 2 | H8: 15 | I8: 30 | J8: 6 | K8: 15 | L8: 90 | M8: 6 | N8: 20 | O8: 120 | P8: 8 | Q8: 120 | R8: 3 | S8: 15 | T8: 45 | U8: 2 | V8: 10 | W8: 20 | X8: 4 | Y8: 15 | Z8: 60 | AA8: 5 | AB8: 20 | AC8: 100 | AD8: 5 | AE8: 0 | AF8: 75 | AG8: 45 | AH8: 700
B9: 5 | C9: Džamolidins Abdužaparovs | D9: 4 | E9: 10 | F9: 40 | G9: 3 | H9: 15 | I9: 45 | J9: 3 | K9: 15 | L9: 45 | M9: 6 | N9: 20 | O9: 120 | P9: 8 | Q9: 120 | R9: 3 | S9: 10 | T9: 30 | U9: 5 | V9: 15 | W9: 75 | X9: 4 | Y9: 15 | Z9: 60 | AA9: 5 | AB9: 20 | AC9: 100 | AD9: 3 | AE9: 0 | AF9: 45 | AG9: 44 | AH9: 680
B10: 6 | C10: Rozā krekli un mokasīni | D10: 5 | E10: 15 | F10: 75 | G10: 3 | H10: 15 | I10: 45 | J10: 2 | K10: 10 | L10: 20 | M10: 5 | N10: 20 | O10: 100 | P10: 6 | Q10: 90 | R10: 5 | S10: 20 | T10: 100 | U10: 5 | V10: 15 | W10: 75 | X10: 4 | Y10: 10 | Z10: 40 | AA10: 3 | AB10: 15 | AC10: 45 | AD10: 3 | AE10: 0 | AF10: 45 | AG10: 41 | AH10: 635
B11: 7 | C11: A komanda | D11: 3 | E11: 15 | F11: 45 | G11: 4 | H11: 15 | I11: 60 | J11: 4 | K11: 10 | L11: 40 | M11: 4 | N11: 20 | O11: 80 | P11: 2 | Q11: 30 | R11: 6 | S11: 20 | T11: 120 | U11: 5 | V11: 15 | W11: 75 | X11: 5 | Y11: 10 | Z11: 50 | AA11: 5 | AB11: 15 | AC11: 75 | AD11: 3 | AE11: 0 | AF11: 45 | AG11: 41 | AH11: 620
B12: 8 | C12: Justin Brownlee | D12: 3 | E12: 15 | F12: 45 | G12: 5 | H12: 20 | I12: 100 | J12: 4 | K12: 15 | L12: 60 | M12: 4 | N12: 10 | O12: 40 | P12: 6 | Q12: 90 | R12: 4 | S12: 15 | T12: 60 | U12: 5 | V12: 20 | W12: 100 | X12: 2 | Y12: 10 | Z12: 20 | AA12: 4 | AB12: 15 | AC12: 60 | AD12: 1 | AE12: 0 | AF12: 15 | AG12: 38 | AH12: 590
B13: 9 | C13: Zinātāji | D13: 4 | E13: 10 | F13: 40 | G13: 5 | H13: 20 | I13: 100 | J13: 3 | K13: 15 | L13: 45 | M13: 3 | N13: 15 | O13: 45 | P13: 0 | Q13: 0 | R13: 2 | S13: 15 | T13: 30 | U13: 6 | V13: 10 | W13: 60 | X13: 3 | Y13: 20 | Z13: 60 | AA13: 5 | AB13: 15 | AC13: 75 | AD13: 5 | AE13: 0 | AF13: 75 | AG13: 36 | AH13: 530
B14: 10 | C14: Maurīcijs | D14: 4 | E14: 15 | F14: 60 | G14: 3 | H14: 20 | I14: 60 | J14: 3 | K14: 10 | L14: 30 | M14: 4 | N14: 15 | O14: 60 | P14: 0 | Q14: 0 | R14: 3.5 | S14: 15 | T14: 52.5 | U14: 4 | V14: 15 | W14: 60 | X14: 3 | Y14: 10 | Z14: 30 | AA14: 2 | AB14: 20 | AC14: 40 | AD14: 5 | AE14: 1 | AF14: 100 | AG14: 32.5 | AH14: 492.5
B15: 11 | C15: BallDontLie | D15: 4 | E15: 10 | F15: 40 | G15: 3 | H15: 20 | I15: 60 | J15: 4 | K15: 15 | L15: 60 | M15: 2 | N15: 15 | O15: 30 | P15: 5 | Q15: 75 | R15: 2 | S15: 15 | T15: 30 | U15: 3 | V15: 20 | W15: 60 | X15: 2 | Y15: 10 | Z15: 20 | AA15: 2 | AB15: 15 | AC15: 30 | AD15: 3 | AE15: 0 | AF15: 45 | AG15: 30 | AH15: 450
B16: 12 | C16: Kārļa karaļvalsts | D16: 3 | E16: 10 | F16: 30 | G16: 3 | H16: 15 | I16: 45 | J16: 3 | K16: 15 | L16: 45 | M16: 4 | N16: 20 | O16: 80 | P16: 2 | Q16: 30 | R16: 2.5 | S16: 15 | T16: 37.5 | U16: 2 | V16: 20 | W16: 40 | X16: 2 | Y16: 15 | Z16: 30 | AA16: 2 | AB16: 10 | AC16: 20 | AD16: 0 | AE16: 0 | AF16: 0 | AG16: 23.5 | AH16: 357.5
B17: 13 | C17: =#REF! ->  | E17: =VLOOKUP(C17,#REF!,2,FALSE) ->  | F17: =D17*E17 ->  | H17: =VLOOKUP(C17,#REF!,3,FALSE) ->  | I17: =G17*H17 ->  | K17: =VLOOKUP(C17,#REF!,4,FALSE) ->  | L17: =J17*K17 ->  | N17: =VLOOKUP(C17,#REF!,5,FALSE) ->  | O17: =M17*N17 ->  | Q17: =P17*15 -> 0 | S17: =VLOOKUP(C17,#REF!,2,FALSE) ->  | T17: =R17*S17 ->  | V17: =VLOOKUP(C17,#REF!,3,FALSE) ->  | W17: =U17*V17 ->  | Y17: =VLOOKUP(C17,#REF!,4,FALSE) ->  | Z17: =X17*Y17 ->  | AB17: =VLOOKUP(C17,#REF!,5,FALSE) ->  | AC17: =AA17*AB17 ->  | AF17: =AD17*15+AE17*25 -> 0 | AG17: =D17+G17+J17+M17+R17+U17+X17+AA17+AD17+AE17+P17 -> 0 | AH17: =F17+I17+L17+O17+Q17+T17+W17+Z17+AC17+AF17 -> 
B18: 14 | C18: =#REF! ->  | E18: =VLOOKUP(C18,#REF!,2,FALSE) ->  | H18: =VLOOKUP(C18,#REF!,3,FALSE) ->  | K18: =VLOOKUP(C18,#REF!,4,FALSE) ->  | N18: =VLOOKUP(C18,#REF!,5,FALSE) ->  | Q18: 0 | S18: =VLOOKUP(C18,#REF!,2,FALSE) ->  | V18: =VLOOKUP(C18,#REF!,3,FALSE) ->  | Y18: =VLOOKUP(C18,#REF!,4,FALSE) ->  | AB18: =VLOOKUP(C18,#REF!,5,FALSE) ->  | AF18: 0 | AG18: 0
B19: 15 | C19: =#REF! ->  | E19: =VLOOKUP(C19,#REF!,2,FALSE) ->  | H19: =VLOOKUP(C19,#REF!,3,FALSE) ->  | K19: =VLOOKUP(C19,#REF!,4,FALSE) ->  | N19: =VLOOKUP(C19,#REF!,5,FALSE) ->  | Q19: 0 | S19: =VLOOKUP(C19,#REF!,2,FALSE) ->  | V19: =VLOOKUP(C19,#REF!,3,FALSE) ->  | Y19: =VLOOKUP(C19,#REF!,4,FALSE) ->  | AB19: =VLOOKUP(C19,#REF!,5,FALSE) ->  | AF19: 0 | AG19: 0
B20: 16 | C20: =#REF! ->  | E20: =VLOOKUP(C20,#REF!,2,FALSE) ->  | H20: =VLOOKUP(C20,#REF!,3,FALSE) ->  | K20: =VLOOKUP(C20,#REF!,4,FALSE) ->  | N20: =VLOOKUP(C20,#REF!,5,FALSE) ->  | Q20: 0 | S20: =VLOOKUP(C20,#REF!,2,FALSE) ->  | V20: =VLOOKUP(C20,#REF!,3,FALSE) ->  | Y20: =VLOOKUP(C20,#REF!,4,FALSE) ->  | AB20: =VLOOKUP(C20,#REF!,5,FALSE) ->  | AF20: 0 | AG20: 0
B21: 17 | C21: =#REF! ->  | E21: =VLOOKUP(C21,#REF!,2,FALSE) ->  | H21: =VLOOKUP(C21,#REF!,3,FALSE) ->  | K21: =VLOOKUP(C21,#REF!,4,FALSE) ->  | N21: =VLOOKUP(C21,#REF!,5,FALSE) ->  | Q21: 0 | S21: =VLOOKUP(C21,#REF!,2,FALSE) ->  | V21: =VLOOKUP(C21,#REF!,3,FALSE) ->  | Y21: =VLOOKUP(C21,#REF!,4,FALSE) ->  | AB21: =VLOOKUP(C21,#REF!,5,FALSE) ->  | AF21: 0 | AG21: 0
B22: 18 | C22: =#REF! ->  | E22: =VLOOKUP(C22,#REF!,2,FALSE) ->  | H22: =VLOOKUP(C22,#REF!,3,FALSE) ->  | K22: =VLOOKUP(C22,#REF!,4,FALSE) ->  | N22: =VLOOKUP(C22,#REF!,5,FALSE) ->  | Q22: 0 | S22: =VLOOKUP(C22,#REF!,2,FALSE) ->  | V22: =VLOOKUP(C22,#REF!,3,FALSE) ->  | Y22: =VLOOKUP(C22,#REF!,4,FALSE) ->  | AB22: =VLOOKUP(C22,#REF!,5,FALSE) ->  | AF22: 0 | AG22: 0
B23: 19 | C23: =#REF! ->  | E23: =VLOOKUP(C23,#REF!,2,FALSE) ->  | H23: =VLOOKUP(C23,#REF!,3,FALSE) ->  | K23: =VLOOKUP(C23,#REF!,4,FALSE) ->  | N23: =VLOOKUP(C23,#REF!,5,FALSE) ->  | Q23: 0 | S23: =VLOOKUP(C23,#REF!,2,FALSE) ->  | V23: =VLOOKUP(C23,#REF!,3,FALSE) ->  | Y23: =VLOOKUP(C23,#REF!,4,FALSE) ->  | AB23: =VLOOKUP(C23,#REF!,5,FALSE) ->  | AF23: 0 | AG23: 0
B24: 20 | C24: =#REF! ->  | E24: =VLOOKUP(C24,#REF!,2,FALSE) ->  | H24: =VLOOKUP(C24,#REF!,3,FALSE) ->  | K24: =VLOOKUP(C24,#REF!,4,FALSE) ->  | N24: =VLOOKUP(C24,#REF!,5,FALSE) ->  | Q24: 0 | S24: =VLOOKUP(C24,#REF!,2,FALSE) ->  | V24: =VLOOKUP(C24,#REF!,3,FALSE) ->  | Y24: =VLOOKUP(C24,#REF!,4,FALSE) ->  | AB24: =VLOOKUP(C24,#REF!,5,FALSE) ->  | AF24: 0 | AG24: 0
B25: 21 | C25: =#REF! ->  | E25: =VLOOKUP(C25,#REF!,2,FALSE) ->  | H25: =VLOOKUP(C25,#REF!,3,FALSE) ->  | K25: =VLOOKUP(C25,#REF!,4,FALSE) ->  | N25: =VLOOKUP(C25,#REF!,5,FALSE) ->  | Q25: 0 | S25: =VLOOKUP(C25,#REF!,2,FALSE) ->  | V25: =VLOOKUP(C25,#REF!,3,FALSE) ->  | Y25: =VLOOKUP(C25,#REF!,4,FALSE) ->  | AB25: =VLOOKUP(C25,#REF!,5,FALSE) ->  | AF25: 0 | AG25: 0
C26: =#REF! -> 
C27: =#REF! -> 

Sheet 1grupa (hidden)
C2: ='F1'!B2 -> Sporta viktorīnas speciālizlaidums | F1 viktorīna | 2025.gada 13.augusts
B4: # | C4: Komandas / Raundi | D4: 1 | G4: 2 | J4: 3 | M4: 4 | P4: Ķēde | R4: 6 | U4: 7 | X4: 8 | AA4: 9 | AD4: 10 | AG4: KOPĀ
B5: 1 | C5: Gorbunovi | D5: 6 | E5: 15 | F5: 90 | G5: 5 | H5: 10 | I5: 50 | J5: 5 | K5: 15 | L5: 75 | M5: 6 | N5: 20 | O5: 120 | P5: 8 | Q5: 120 | R5: 5 | S5: 10 | T5: 50 | U5: 6 | V5: 20 | W5: 120 | X5: 4 | Y5: 15 | Z5: 60 | AA5: 6 | AB5: 15 | AC5: 90 | AD5: 7 | AE5: 1 | AF5: 130 | AG5: 59 | AH5: 905
B6: 2 | C6: Lapsas | D6: 6 | E6: 15 | F6: 90 | G6: 4 | H6: 10 | I6: 40 | J6: 6 | K6: 20 | L6: 120 | M6: 5 | N6: 15 | O6: 75 | P6: 8 | Q6: 120 | R6: 4 | S6: 15 | T6: 60 | U6: 6 | V6: 20 | W6: 120 | X6: 4 | Y6: 15 | Z6: 60 | AA6: 5 | AB6: 10 | AC6: 50 | AD6: 7 | AE6: 1 | AF6: 130 | AG6: 56 | AH6: 865
B7: 3 | C7: Fireball | D7: 5 | E7: 15 | F7: 75 | G7: 5 | H7: 15 | I7: 75 | J7: 4 | K7: 10 | L7: 40 | M7: 5 | N7: 20 | O7: 100 | P7: 8 | Q7: 120 | R7: 3 | S7: 10 | T7: 30 | U7: 6 | V7: 20 | W7: 120 | X7: 5 | Y7: 15 | Z7: 75 | AA7: 6 | AB7: 15 | AC7: 90 | AD7: 7 | AE7: 1 | AF7: 130 | AG7: 55 | AH7: 855
B8: 4 | C8: Alus zaldāti | D8: 6 | E8: 15 | F8: 90 | G8: 2 | H8: 10 | I8: 20 | J8: 5 | K8: 15 | L8: 75 | M8: 5 | N8: 20 | O8: 100 | P8: 8 | Q8: 120 | R8: 3 | S8: 10 | T8: 30 | U8: 6 | V8: 20 | W8: 120 | X8: 4 | Y8: 15 | Z8: 60 | AA8: 5 | AB8: 15 | AC8: 75 | AD8: 7 | AE8: 1 | AF8: 130 | AG8: 52 | AH8: 820
B9: 5 | C9: Apskaidrība | D9: 6 | E9: 15 | F9: 90 | G9: 5 | H9: 15 | I9: 75 | J9: 5 | K9: 10 | L9: 50 | M9: 5 | N9: 20 | O9: 100 | P9: 7 | Q9: 105 | R9: 3 | S9: 20 | T9: 60 | U9: 6 | V9: 15 | W9: 90 | X9: 4 | Y9: 15 | Z9: 60 | AA9: 5 | AB9: 10 | AC9: 50 | AD9: 7 | AE9: 1 | AF9: 130 | AG9: 54 | AH9: 810
B10: 6 | C10: Nasing spešal | D10: 6 | E10: 20 | F10: 120 | G10: 6 | H10: 15 | I10: 90 | J10: 4 | K10: 10 | L10: 40 | M10: 5 | N10: 15 | O10: 75 | P10: 8 | Q10: 120 | R10: 3 | S10: 15 | T10: 45 | U10: 4 | V10: 20 | W10: 80 | X10: 3 | Y10: 10 | Z10: 30 | AA10: 6 | AB10: 15 | AC10: 90 | AD10: 6 | AE10: 1 | AF10: 115 | AG10: 52 | AH10: 805
B11: 7 | C11: Rozā krekli un mokasīni | D11: 6 | E11: 10 | F11: 60 | G11: 6 | H11: 20 | I11: 120 | J11: 5 | K11: 15 | L11: 75 | M11: 4 | N11: 15 | O11: 60 | P11: 7 | Q11: 105 | R11: 3 | S11: 15 | T11: 45 | U11: 6 | V11: 10 | W11: 60 | X11: 3 | Y11: 15 | Z11: 45 | AA11: 5 | AB11: 20 | AC11: 100 | AD11: 7 | AE11: 1 | AF11: 130 | AG11: 53 | AH11: 800
B12: 8 | C12: Prāta eklektika | D12: 4 | E12: 15 | F12: 60 | G12: 6 | H12: 15 | I12: 90 | J12: 6 | K12: 20 | L12: 120 | M12: 5 | N12: 10 | O12: 50 | P12: 6 | Q12: 90 | R12: 2 | S12: 15 | T12: 30 | U12: 6 | V12: 20 | W12: 120 | X12: 4 | Y12: 15 | Z12: 60 | AA12: 4 | AB12: 10 | AC12: 40 | AD12: 6 | AE12: 1 | AF12: 115 | AG12: 50 | AH12: 775
B13: 9 | C13: Bez Agritas | D13: 6 | E13: 20 | F13: 120 | G13: 5 | H13: 15 | I13: 75 | J13: 4 | K13: 10 | L13: 40 | M13: 2 | N13: 15 | O13: 30 | P13: 8 | Q13: 120 | R13: 2 | S13: 10 | T13: 20 | U13: 4 | V13: 15 | W13: 60 | X13: 5 | Y13: 20 | Z13: 100 | AA13: 5 | AB13: 15 | AC13: 75 | AD13: 6.5 | AE13: 1 | AF13: 122.5 | AG13: 48.5 | AH13: 762.5
B14: 10 | C14: Ansamblis X | D14: 5 | E14: 15 | F14: 75 | G14: 4 | H14: 10 | I14: 40 | J14: 5 | K14: 15 | L14: 75 | M14: 5 | N14: 20 | O14: 100 | P14: 5 | Q14: 75 | R14: 3 | S14: 15 | T14: 45 | U14: 5 | V14: 10 | W14: 50 | X14: 4 | Y14: 15 | Z14: 60 | AA14: 6 | AB14: 20 | AC14: 120 | AD14: 5 | AE14: 1 | AF14: 100 | AG14: 48 | AH14: 740
B15: 11 | C15: Baltijas jūras izsmelšanas b. | D15: 4 | E15: 10 | F15: 40 | G15: 5 | H15: 20 | I15: 100 | J15: 4 | K15: 15 | L15: 60 | M15: 5 | N15: 15 | O15: 75 | P15: 6 | Q15: 90 | R15: 2 | S15: 20 | T15: 40 | U15: 6 | V15: 10 | W15: 60 | X15: 4 | Y15: 15 | Z15: 60 | AA15: 6 | AB15: 15 | AC15: 90 | AD15: 6 | AE15: 1 | AF15: 115 | AG15: 49 | AH15: 730
B16: 12 | C16: Te tikai Dieviņš palīdzēs | D16: 5 | E16: 15 | F16: 75 | G16: 4 | H16: 15 | I16: 60 | J16: 4 | K16: 10 | L16: 40 | M16: 4 | N16: 20 | O16: 80 | P16: 8 | Q16: 120 | R16: 3 | S16: 20 | T16: 60 | U16: 4 | V16: 15 | W16: 60 | X16: 3 | Y16: 15 | Z16: 45 | AA16: 4 | AB16: 10 | AC16: 40 | AD16: 7 | AE16: 1 | AF16: 130 | AG16: 47 | AH16: 710
B17: 13 | C17: Mežpils miglā | D17: 6 | E17: 20 | F17: 120 | G17: 5 | H17: 15 | I17: 75 | J17: 5 | K17: 15 | L17: 75 | M17: 3 | N17: 10 | O17: 30 | P17: 0 | Q17: 0 | R17: 5 | S17: 20 | T17: 100 | U17: 6 | V17: 15 | W17: 90 | X17: 4 | Y17: 15 | Z17: 60 | AA17: 4 | AB17: 10 | AC17: 40 | AD17: 6 | AE17: 1 | AF17: 115 | AG17: 45 | AH17: 705
B18: 14 | C18: Vinaņars Pūkašvilli | D18: 3 | E18: 10 | F18: 30 | G18: 3 | H18: 15 | I18: 45 | J18: 4 | K18: 15 | L18: 60 | M18: 4 | N18: 20 | O18: 80 | P18: 8 | Q18: 120 | R18: 2 | S18: 15 | T18: 30 | U18: 6 | V18: 20 | W18: 120 | X18: 4 | Y18: 15 | Z18: 60 | AA18: 5 | AB18: 10 | AC18: 50 | AD18: 5 | AE18: 1 | AF18: 100 | AG18: 45 | AH18: 695
B19: 15 | C19: Sfinksa | D19: 6 | E19: 20 | F19: 120 | G19: 3 | H19: 10 | I19: 30 | J19: 5 | K19: 15 | L19: 75 | M19: 5 | N19: 15 | O19: 75 | P19: 2 | Q19: 30 | R19: 1 | S19: 10 | T19: 10 | U19: 6 | V19: 20 | W19: 120 | X19: 3 | Y19: 15 | Z19: 45 | AA19: 5 | AB19: 15 | AC19: 75 | AD19: 5 | AE19: 1 | AF19: 100 | AG19: 42 | AH19: 680
B20: 16 | C20: Kukuržņi | D20: 5 | E20: 15 | F20: 75 | G20: 5 | H20: 20 | I20: 100 | J20: 2 | K20: 10 | L20: 20 | M20: 3 | N20: 15 | O20: 45 | P20: 2 | Q20: 30 | R20: 2 | S20: 10 | T20: 20 | U20: 4 | V20: 15 | W20: 60 | X20: 4 | Y20: 15 | Z20: 60 | AA20: 5 | AB20: 20 | AC20: 100 | AD20: 6 | AE20: 1 | AF20: 115 | AG20: 39 | AH20: 625
B21: 17 | C21: Mind Machines | D21: 4 | E21: 15 | F21: 60 | G21: 4 | H21: 20 | I21: 80 | J21: 3 | K21: 10 | L21: 30 | M21: 4 | N21: 15 | O21: 60 | P21: 5 | Q21: 75 | R21: 1 | S21: 15 | T21: 15 | U21: 3 | V21: 10 | W21: 30 | X21: 3 | Y21: 15 | Z21: 45 | AA21: 4 | AB21: 20 | AC21: 80 | AD21: 7 | AE21: 1 | AF21: 130 | AG21: 39 | AH21: 605
B22: 18 | C22: Marvels | D22: 3 | E22: 10 | F22: 30 | G22: 2 | H22: 15 | I22: 30 | J22: 3 | K22: 15 | L22: 45 | M22: 3 | N22: 20 | O22: 60 | P22: 5 | Q22: 75 | R22: 3 | S22: 20 | T22: 60 | U22: 3 | V22: 15 | W22: 45 | X22: 3 | Y22: 15 | Z22: 45 | AA22: 3 | AB22: 10 | AC22: 30 | AD22: 6 | AE22: 1 | AF22: 115 | AG22: 35 | AH22: 535
B23: 19 | C23: Negatīvs eksponenciāls | D23: 2 | E23: 15 | F23: 30 | G23: 4 | H23: 20 | I23: 80 | J23: 0 | K23: 10 | L23: 0 | M23: 4 | N23: 15 | O23: 60 | P23: 1 | Q23: 15 | R23: 1 | S23: 15 | T23: 15 | U23: 3 | V23: 10 | W23: 30 | X23: 1 | Y23: 20 | Z23: 20 | AA23: 3 | AB23: 15 | AC23: 45 | AD23: 5.5 | AE23: 1 | AF23: 107.5 | AG23: 25.5 | AH23: 402.5
B24: 20 | C24: =#REF! ->  | E24: =VLOOKUP(C24,#REF!,2,FALSE) ->  | F24: =D24*E24 ->  | H24: =VLOOKUP(C24,#REF!,3,FALSE) ->  | I24: =G24*H24 ->  | K24: =VLOOKUP(C24,#REF!,4,FALSE) ->  | L24: =J24*K24 ->  | N24: =VLOOKUP(C24,#REF!,5,FALSE) ->  | O24: =M24*N24 ->  | Q24: =P24*15 -> 0 | S24: =VLOOKUP(C24,#REF!,2,FALSE) ->  | T24: =R24*S24 ->  | V24: =VLOOKUP(C24,#REF!,3,FALSE) ->  | W24: =U24*V24 ->  | Y24: =VLOOKUP(C24,#REF!,4,FALSE) ->  | Z24: =X24*Y24 ->  | AB24: =VLOOKUP(C24,#REF!,5,FALSE) ->  | AC24: =AA24*AB24 ->  | AF24: =AD24*15+AE24*25 -> 0 | AG24: =D24+G24+J24+M24+R24+U24+X24+AA24+AD24+AE24+P24 -> 0 | AH24: =F24+I24+L24+O24+Q24+T24+W24+Z24+AC24+AF24 -> 
B25: 21 | C25: =#REF! ->  | E25: =VLOOKUP(C25,#REF!,2,FALSE) ->  | H25: =VLOOKUP(C25,#REF!,3,FALSE) ->  | K25: =VLOOKUP(C25,#REF!,4,FALSE) ->  | N25: =VLOOKUP(C25,#REF!,5,FALSE) ->  | Q25: 0 | S25: =VLOOKUP(C25,#REF!,2,FALSE) ->  | V25: =VLOOKUP(C25,#REF!,3,FALSE) ->  | Y25: =VLOOKUP(C25,#REF!,4,FALSE) ->  | AB25: =VLOOKUP(C25,#REF!,5,FALSE) ->  | AF25: 0 | AG25: 0

Sheet 2grupa (hidden)
C2: ='F1'!B2 -> Sporta viktorīnas speciālizlaidums | F1 viktorīna | 2025.gada 13.augusts
B4: # | C4: Komandas / Raundi | D4: 1 | G4: 2 | J4: 3 | M4: 4 | P4: Ķēde | R4: 6 | U4: 7 | X4: 8 | AA4: 9 | AD4: 10 | AG4: KOPĀ
B5: 1 | C5: Štepselētāju atgriešanās | D5: 6 | E5: 15 | F5: 90 | G5: 4 | H5: 10 | I5: 40 | J5: 5 | K5: 15 | L5: 75 | M5: 6 | N5: 20 | O5: 120 | P5: 8 | Q5: 120 | R5: 4 | S5: 10 | T5: 40 | U5: 6 | V5: 15 | W5: 90 | X5: 5 | Y5: 20 | Z5: 100 | AA5: 5 | AB5: 15 | AC5: 75 | AD5: 7 | AE5: 1 | AF5: 130 | AG5: 57 | AH5: 880
B6: 2 | C6: Lācēni | D6: 6 | E6: 15 | F6: 90 | G6: 3 | H6: 10 | I6: 30 | J6: 5 | K6: 15 | L6: 75 | M6: 5 | N6: 20 | O6: 100 | P6: 8 | Q6: 120 | R6: 1 | S6: 10 | T6: 10 | U6: 6 | V6: 20 | W6: 120 | X6: 4 | Y6: 15 | Z6: 60 | AA6: 6 | AB6: 15 | AC6: 90 | AD6: 7 | AE6: 1 | AF6: 130 | AG6: 52 | AH6: 825
B7: 3 | C7: Zinātāji | D7: 6 | E7: 15 | F7: 90 | G7: 2 | H7: 10 | I7: 20 | J7: 6 | K7: 20 | L7: 120 | M7: 6 | N7: 15 | O7: 90 | P7: 6 | Q7: 90 | R7: 1 | S7: 15 | T7: 15 | U7: 5 | V7: 15 | W7: 75 | X7: 4 | Y7: 20 | Z7: 80 | AA7: 6 | AB7: 10 | AC7: 60 | AD7: 7 | AE7: 1 | AF7: 130 | AG7: 50 | AH7: 770
B8: 4 | C8: Brāķis bez metāla | D8: 6 | E8: 15 | F8: 90 | G8: 3 | H8: 15 | I8: 45 | J8: 4 | K8: 10 | L8: 40 | M8: 4 | N8: 20 | O8: 80 | P8: 6 | Q8: 90 | R8: 3 | S8: 15 | T8: 45 | U8: 5 | V8: 10 | W8: 50 | X8: 3 | Y8: 15 | Z8: 45 | AA8: 6 | AB8: 20 | AC8: 120 | AD8: 7 | AE8: 1 | AF8: 130 | AG8: 48 | AH8: 735
B9: 5 | C9: Animāļi | D9: 3 | E9: 10 | F9: 30 | G9: 4 | H9: 20 | I9: 80 | J9: 6 | K9: 15 | L9: 90 | M9: 3 | N9: 15 | O9: 45 | P9: 7 | Q9: 105 | R9: 2 | S9: 10 | T9: 20 | U9: 5 | V9: 20 | W9: 100 | X9: 4 | Y9: 15 | Z9: 60 | AA9: 4 | AB9: 15 | AC9: 60 | AD9: 7 | AE9: 1 | AF9: 130 | AG9: 46 | AH9: 720
B10: 6 | C10: BioBio Guiņas | D10: 6 | E10: 20 | F10: 120 | G10: 5 | H10: 15 | I10: 75 | J10: 5 | K10: 10 | L10: 50 | M10: 4 | N10: 15 | O10: 60 | P10: 1 | Q10: 15 | R10: 3 | S10: 15 | T10: 45 | U10: 6 | V10: 20 | W10: 120 | X10: 3 | Y10: 10 | Z10: 30 | AA10: 5 | AB10: 15 | AC10: 75 | AD10: 7 | AE10: 1 | AF10: 130 | AG10: 46 | AH10: 720
B11: 7 | C11: Alternative facts | D11: 5 | E11: 10 | F11: 50 | G11: 5 | H11: 20 | I11: 100 | J11: 5 | K11: 15 | L11: 75 | M11: 3 | N11: 15 | O11: 45 | P11: 4 | Q11: 60 | R11: 3 | S11: 10 | T11: 30 | U11: 5 | V11: 20 | W11: 100 | X11: 4 | Y11: 15 | Z11: 60 | AA11: 5 | AB11: 15 | AC11: 75 | AD11: 6.5 | AE11: 1 | AF11: 122.5 | AG11: 46.5 | AH11: 717.5
B12: 8 | C12: Cukurfabrika | D12: 4 | E12: 20 | F12: 80 | G12: 3 | H12: 15 | I12: 45 | J12: 4 | K12: 10 | L12: 40 | M12: 3 | N12: 15 | O12: 45 | P12: 8 | Q12: 120 | R12: 1 | S12: 20 | T12: 20 | U12: 6 | V12: 10 | W12: 60 | X12: 4 | Y12: 15 | Z12: 60 | AA12: 6 | AB12: 15 | AC12: 90 | AD12: 6 | AE12: 1 | AF12: 115 | AG12: 46 | AH12: 675
B13: 9 | C13: Slagūnes Metalurgs | D13: 6 | E13: 15 | F13: 90 | G13: 5 | H13: 15 | I13: 75 | J13: 3 | K13: 10 | L13: 30 | M13: 4 | N13: 20 | O13: 80 | P13: 0 | Q13: 0 | R13: 2 | S13: 10 | T13: 20 | U13: 5 | V13: 20 | W13: 100 | X13: 3 | Y13: 15 | Z13: 45 | AA13: 6 | AB13: 15 | AC13: 90 | AD13: 6 | AE13: 1 | AF13: 115 | AG13: 41 | AH13: 645
B14: 10 | C14: Vortusiņš | D14: 6 | E14: 15 | F14: 90 | G14: 3 | H14: 15 | I14: 45 | J14: 5 | K14: 10 | L14: 50 | M14: 2 | N14: 20 | O14: 40 | P14: 5 | Q14: 75 | R14: 2 | S14: 20 | T14: 40 | U14: 6 | V14: 10 | W14: 60 | X14: 5 | Y14: 15 | Z14: 75 | AA14: 4 | AB14: 15 | AC14: 60 | AD14: 5.5 | AE14: 1 | AF14: 107.5 | AG14: 44.5 | AH14: 642.5
B15: 11 | C15: Mūsdienu jaunatne | D15: 0 | E15: 20 | F15: 0 | G15: 4 | H15: 15 | I15: 60 | J15: 2 | K15: 15 | L15: 30 | M15: 4 | N15: 10 | O15: 40 | P15: 4 | Q15: 60 | R15: 5 | S15: 15 | T15: 75 | U15: 4 | V15: 10 | W15: 40 | X15: 5 | Y15: 20 | Z15: 100 | AA15: 4 | AB15: 15 | AC15: 60 | AD15: 5.5 | AE15: 1 | AF15: 107.5 | AG15: 38.5 | AH15: 572.5
B16: 12 | C16: No one | D16: 5 | E16: 10 | F16: 50 | G16: 5 | H16: 20 | I16: 100 | J16: 2 | K16: 15 | L16: 30 | M16: 4 | N16: 15 | O16: 60 | P16: 0 | Q16: 0 | R16: 2 | S16: 15 | T16: 30 | U16: 5 | V16: 20 | W16: 100 | X16: 3 | Y16: 15 | Z16: 45 | AA16: 4 | AB16: 10 | AC16: 40 | AD16: 6 | AE16: 1 | AF16: 115 | AG16: 37 | AH16: 570
B17: 13 | C17: SPSS | D17: 2 | E17: 15 | F17: 30 | G17: 4 | H17: 15 | I17: 60 | J17: 5 | K17: 20 | L17: 100 | M17: 4 | N17: 10 | O17: 40 | P17: 1 | Q17: 15 | R17: 3 | S17: 20 | T17: 60 | U17: 4 | V17: 15 | W17: 60 | X17: 1 | Y17: 10 | Z17: 10 | AA17: 2 | AB17: 15 | AC17: 30 | AD17: 3 | AE17: 0 | AF17: 45 | AG17: 29 | AH17: 450
B18: 14 | C18: =#REF! ->  | E18: =VLOOKUP(C18,#REF!,2,FALSE) ->  | F18: =D18*E18 ->  | H18: =VLOOKUP(C18,#REF!,3,FALSE) ->  | I18: =G18*H18 ->  | K18: =VLOOKUP(C18,#REF!,4,FALSE) ->  | L18: =J18*K18 ->  | N18: =VLOOKUP(C18,#REF!,5,FALSE) ->  | O18: =M18*N18 ->  | Q18: =P18*15 -> 0 | S18: =VLOOKUP(C18,#REF!,2,FALSE) ->  | T18: =R18*S18 ->  | V18: =VLOOKUP(C18,#REF!,3,FALSE) ->  | W18: =U18*V18 ->  | Y18: =VLOOKUP(C18,#REF!,4,FALSE) ->  | Z18: =X18*Y18 ->  | AB18: =VLOOKUP(C18,#REF!,5,FALSE) ->  | AC18: =AA18*AB18 ->  | AF18: =AD18*15+AE18*25 -> 0 | AG18: =D18+G18+J18+M18+R18+U18+X18+AA18+AD18+AE18+P18 -> 0 | AH18: =F18+I18+L18+O18+Q18+T18+W18+Z18+AC18+AF18 -> 
B19: 15 | C19: =#REF! ->  | E19: =VLOOKUP(C19,#REF!,2,FALSE) ->  | H19: =VLOOKUP(C19,#REF!,3,FALSE) ->  | K19: =VLOOKUP(C19,#REF!,4,FALSE) ->  | N19: =VLOOKUP(C19,#REF!,5,FALSE) ->  | Q19: 0 | S19: =VLOOKUP(C19,#REF!,2,FALSE) ->  | V19: =VLOOKUP(C19,#REF!,3,FALSE) ->  | Y19: =VLOOKUP(C19,#REF!,4,FALSE) ->  | AB19: =VLOOKUP(C19,#REF!,5,FALSE) ->  | AF19: 0 | AG19: 0
B20: 16 | C20: =#REF! ->  | E20: =VLOOKUP(C20,#REF!,2,FALSE) ->  | H20: =VLOOKUP(C20,#REF!,3,FALSE) ->  | K20: =VLOOKUP(C20,#REF!,4,FALSE) ->  | N20: =VLOOKUP(C20,#REF!,5,FALSE) ->  | Q20: 0 | S20: =VLOOKUP(C20,#REF!,2,FALSE) ->  | V20: =VLOOKUP(C20,#REF!,3,FALSE) ->  | Y20: =VLOOKUP(C20,#REF!,4,FALSE) ->  | AB20: =VLOOKUP(C20,#REF!,5,FALSE) ->  | AF20: 0 | AG20: 0
B21: 17 | C21: =#REF! ->  | E21: =VLOOKUP(C21,#REF!,2,FALSE) ->  | H21: =VLOOKUP(C21,#REF!,3,FALSE) ->  | K21: =VLOOKUP(C21,#REF!,4,FALSE) ->  | N21: =VLOOKUP(C21,#REF!,5,FALSE) ->  | Q21: 0 | S21: =VLOOKUP(C21,#REF!,2,FALSE) ->  | V21: =VLOOKUP(C21,#REF!,3,FALSE) ->  | Y21: =VLOOKUP(C21,#REF!,4,FALSE) ->  | AB21: =VLOOKUP(C21,#REF!,5,FALSE) ->  | AF21: 0 | AG21: 0
B22: 18 | C22: =#REF! ->  | E22: =VLOOKUP(C22,#REF!,2,FALSE) ->  | H22: =VLOOKUP(C22,#REF!,3,FALSE) ->  | K22: =VLOOKUP(C22,#REF!,4,FALSE) ->  | N22: =VLOOKUP(C22,#REF!,5,FALSE) ->  | Q22: 0 | S22: =VLOOKUP(C22,#REF!,2,FALSE) ->  | V22: =VLOOKUP(C22,#REF!,3,FALSE) ->  | Y22: =VLOOKUP(C22,#REF!,4,FALSE) ->  | AB22: =VLOOKUP(C22,#REF!,5,FALSE) ->  | AF22: 0 | AG22: 0
B23: 19 | C23: =#REF! ->  | E23: =VLOOKUP(C23,#REF!,2,FALSE) ->  | H23: =VLOOKUP(C23,#REF!,3,FALSE) ->  | K23: =VLOOKUP(C23,#REF!,4,FALSE) ->  | N23: =VLOOKUP(C23,#REF!,5,FALSE) ->  | Q23: 0 | S23: =VLOOKUP(C23,#REF!,2,FALSE) ->  | V23: =VLOOKUP(C23,#REF!,3,FALSE) ->  | Y23: =VLOOKUP(C23,#REF!,4,FALSE) ->  | AB23: =VLOOKUP(C23,#REF!,5,FALSE) ->  | AF23: 0 | AG23: 0
B24: 20 | C24: =#REF! ->  | E24: =VLOOKUP(C24,#REF!,2,FALSE) ->  | H24: =VLOOKUP(C24,#REF!,3,FALSE) ->  | K24: =VLOOKUP(C24,#REF!,4,FALSE) ->  | N24: =VLOOKUP(C24,#REF!,5,FALSE) ->  | Q24: 0 | S24: =VLOOKUP(C24,#REF!,2,FALSE) ->  | V24: =VLOOKUP(C24,#REF!,3,FALSE) ->  | Y24: =VLOOKUP(C24,#REF!,4,FALSE) ->  | AB24: =VLOOKUP(C24,#REF!,5,FALSE) ->  | AF24: 0 | AG24: 0
B25: 21 | C25: =#REF! ->  | E25: =VLOOKUP(C25,#REF!,2,FALSE) ->  | H25: =VLOOKUP(C25,#REF!,3,FALSE) ->  | K25: =VLOOKUP(C25,#REF!,4,FALSE) ->  | N25: =VLOOKUP(C25,#REF!,5,FALSE) ->  | Q25: 0 | S25: =VLOOKUP(C25,#REF!,2,FALSE) ->  | V25: =VLOOKUP(C25,#REF!,3,FALSE) ->  | Y25: =VLOOKUP(C25,#REF!,4,FALSE) ->  | AB25: =VLOOKUP(C25,#REF!,5,FALSE) ->  | AF25: 0 | AG25: 0

Sheet 3grupa (hidden)
C2: ='F1'!B2 -> Sporta viktorīnas speciālizlaidums | F1 viktorīna | 2025.gada 13.augusts
B4: # | C4: Komandas / Raundi | D4: 1 | G4: 2 | J4: 3 | M4: 4 | P4: Ķēde | R4: 6 | U4: 7 | X4: 8 | AA4: 9 | AD4: 10 | AG4: KOPĀ
B5: 1 | C5: Āreče | D5: 6 | E5: 20 | F5: 120 | G5: 6 | H5: 15 | I5: 90 | J5: 4 | K5: 10 | L5: 40 | M5: 6 | N5: 15 | O5: 90 | P5: 8 | Q5: 120 | R5: 4 | S5: 15 | T5: 60 | U5: 6 | V5: 15 | W5: 90 | X5: 5 | Y5: 20 | Z5: 100 | AA5: 6 | AB5: 10 | AC5: 60 | AD5: 7 | AE5: 1 | AF5: 130 | AG5: 59 | AH5: 900
B6: 2 | C6: Sestais lieks | D6: 6 | E6: 20 | F6: 120 | G6: 6 | H6: 10 | I6: 60 | J6: 6 | K6: 15 | L6: 90 | M6: 6 | N6: 15 | O6: 90 | P6: 8 | Q6: 120 | R6: 2 | S6: 15 | T6: 30 | U6: 6 | V6: 20 | W6: 120 | X6: 3 | Y6: 10 | Z6: 30 | AA6: 5 | AB6: 15 | AC6: 75 | AD6: 7 | AE6: 1 | AF6: 130 | AG6: 56 | AH6: 865
B7: 3 | C7: Hektora apustuļi | D7: 5 | E7: 15 | F7: 75 | G7: 4 | H7: 10 | I7: 40 | J7: 5 | K7: 15 | L7: 75 | M7: 6 | N7: 20 | O7: 120 | P7: 8 | Q7: 120 | R7: 3 | S7: 10 | T7: 30 | U7: 6 | V7: 15 | W7: 90 | X7: 4 | Y7: 20 | Z7: 80 | AA7: 6 | AB7: 15 | AC7: 90 | AD7: 6 | AE7: 1 | AF7: 115 | AG7: 54 | AH7: 835
B8: 4 | C8: Bunkurs_13 | D8: 6 | E8: 20 | F8: 120 | G8: 4 | H8: 10 | I8: 40 | J8: 6 | K8: 15 | L8: 90 | M8: 5 | N8: 15 | O8: 75 | P8: 8 | Q8: 120 | R8: 3 | S8: 15 | T8: 45 | U8: 6 | V8: 20 | W8: 120 | X8: 3 | Y8: 15 | Z8: 45 | AA8: 5 | AB8: 10 | AC8: 50 | AD8: 7 | AE8: 1 | AF8: 130 | AG8: 54 | AH8: 835
B9: 5 | C9: RAĢ Pīķi & Co | D9: 5 | E9: 15 | F9: 75 | G9: 6 | H9: 15 | I9: 90 | J9: 4 | K9: 10 | L9: 40 | M9: 5 | N9: 20 | O9: 100 | P9: 7 | Q9: 105 | R9: 6 | S9: 20 | T9: 120 | U9: 4 | V9: 10 | W9: 40 | X9: 4 | Y9: 15 | Z9: 60 | AA9: 5 | AB9: 15 | AC9: 75 | AD9: 7 | AE9: 1 | AF9: 130 | AG9: 54 | AH9: 835
B10: 6 | C10: kOzis | D10: 5 | E10: 15 | F10: 75 | G10: 5 | H10: 20 | I10: 100 | J10: 5 | K10: 10 | L10: 50 | M10: 5 | N10: 15 | O10: 75 | P10: 8 | Q10: 120 | R10: 4 | S10: 20 | T10: 80 | U10: 5 | V10: 15 | W10: 75 | X10: 4 | Y10: 15 | Z10: 60 | AA10: 5 | AB10: 10 | AC10: 50 | AD10: 7 | AE10: 1 | AF10: 130 | AG10: 54 | AH10: 815
B11: 7 | C11: Mordanga | D11: 6 | E11: 15 | F11: 90 | G11: 3 | H11: 15 | I11: 45 | J11: 4 | K11: 10 | L11: 40 | M11: 5 | N11: 20 | O11: 100 | P11: 8 | Q11: 120 | R11: 2 | S11: 10 | T11: 20 | U11: 6 | V11: 20 | W11: 120 | X11: 6 | Y11: 15 | Z11: 90 | AA11: 4 | AB11: 15 | AC11: 60 | AD11: 7 | AE11: 1 | AF11: 130 | AG11: 52 | AH11: 815
B12: 8 | C12: Žeņšeņa borščs | D12: 5 | E12: 10 | F12: 50 | G12: 6 | H12: 15 | I12: 90 | J12: 5 | K12: 15 | L12: 75 | M12: 5 | N12: 20 | O12: 100 | P12: 8 | Q12: 120 | R12: 4 | S12: 20 | T12: 80 | U12: 5 | V12: 10 | W12: 50 | X12: 3 | Y12: 15 | Z12: 45 | AA12: 4 | AB12: 15 | AC12: 60 | AD12: 7 | AE12: 1 | AF12: 130 | AG12: 53 | AH12: 800
B13: 9 | C13: AC Seda | D13: 6 | E13: 15 | F13: 90 | G13: 6 | H13: 15 | I13: 90 | J13: 4 | K13: 10 | L13: 40 | M13: 5 | N13: 20 | O13: 100 | P13: 2 | Q13: 30 | R13: 2 | S13: 10 | T13: 20 | U13: 5 | V13: 20 | W13: 100 | X13: 4 | Y13: 15 | Z13: 60 | AA13: 5 | AB13: 15 | AC13: 75 | AD13: 5.5 | AE13: 1 | AF13: 107.5 | AG13: 45.5 | AH13: 712.5
B14: 10 | C14: Atkal Mēs | D14: 5 | E14: 10 | F14: 50 | G14: 3 | H14: 15 | I14: 45 | J14: 4 | K14: 15 | L14: 60 | M14: 4 | N14: 20 | O14: 80 | P14: 7 | Q14: 105 | R14: 2 | S14: 15 | T14: 30 | U14: 3 | V14: 15 | W14: 45 | X14: 3 | Y14: 10 | Z14: 30 | AA14: 6 | AB14: 20 | AC14: 120 | AD14: 6 | AE14: 1 | AF14: 115 | AG14: 44 | AH14: 680
B15: 11 | C15: Pa zoino | D15: 3 | E15: 15 | F15: 45 | G15: 5 | H15: 20 | I15: 100 | J15: 4 | K15: 10 | L15: 40 | M15: 4 | N15: 15 | O15: 60 | P15: 5 | Q15: 75 | R15: 3 | S15: 20 | T15: 60 | U15: 4 | V15: 15 | W15: 60 | X15: 3 | Y15: 10 | Z15: 30 | AA15: 4 | AB15: 15 | AC15: 60 | AD15: 7 | AE15: 1 | AF15: 130 | AG15: 43 | AH15: 660
B16: 12 | C16: Gurinētie Marķīši | D16: 3 | E16: 10 | F16: 30 | G16: 2 | H16: 15 | I16: 30 | J16: 4 | K16: 15 | L16: 60 | M16: 4 | N16: 20 | O16: 80 | P16: 7 | Q16: 105 | R16: 2 | S16: 15 | T16: 30 | U16: 4 | V16: 10 | W16: 40 | X16: 4 | Y16: 20 | Z16: 80 | AA16: 5 | AB16: 15 | AC16: 75 | AD16: 6.5 | AE16: 1 | AF16: 122.5 | AG16: 42.5 | AH16: 652.5
B17: 13 | C17: Bugatti Veyron | D17: 5 | E17: 15 | F17: 75 | G17: 2 | H17: 15 | I17: 30 | J17: 4 | K17: 10 | L17: 40 | M17: 4 | N17: 20 | O17: 80 | P17: 2 | Q17: 30 | R17: 3 | S17: 20 | T17: 60 | U17: 4 | V17: 15 | W17: 60 | X17: 2 | Y17: 10 | Z17: 20 | AA17: 4 | AB17: 15 | AC17: 60 | AD17: 6 | AE17: 1 | AF17: 115 | AG17: 37 | AH17: 570
B18: 14 | C18: Hektora saime | D18: 4 | E18: 15 | F18: 60 | G18: 5 | H18: 20 | I18: 100 | J18: 4 | K18: 10 | L18: 40 | M18: 4 | N18: 15 | O18: 60 | P18: 0 | Q18: 0 | R18: 2 | S18: 15 | T18: 30 | U18: 3 | V18: 10 | W18: 30 | X18: 3 | Y18: 20 | Z18: 60 | AA18: 5 | AB18: 15 | AC18: 75 | AD18: 5.5 | AE18: 1 | AF18: 107.5 | AG18: 36.5 | AH18: 562.5
B19: 15 | C19: Badijs spēlē viktorīnu | D19: 4 | E19: 10 | F19: 40 | G19: 3 | H19: 15 | I19: 45 | J19: 5 | K19: 20 | L19: 100 | M19: 4 | N19: 15 | O19: 60 | P19: 1 | Q19: 15 | R19: 3 | S19: 20 | T19: 60 | U19: 2 | V19: 15 | W19: 30 | X19: 2 | Y19: 10 | Z19: 20 | AA19: 4 | AB19: 15 | AC19: 60 | AD19: 5 | AE19: 1 | AF19: 100 | AG19: 34 | AH19: 530
B20: 16 | C20: Labi, ka nav tiešraide | D20: 3 | E20: 15 | F20: 45 | G20: 3 | H20: 15 | I20: 45 | J20: 5 | K20: 20 | L20: 100 | M20: 4 | N20: 10 | O20: 40 | P20: 2 | Q20: 30 | R20: 2 | S20: 20 | T20: 40 | U20: 4 | V20: 15 | W20: 60 | X20: 2 | Y20: 15 | Z20: 30 | AA20: 1 | AB20: 10 | AC20: 10 | AD20: 5 | AE20: 1 | AF20: 100 | AG20: 32 | AH20: 500
B21: 17 | C21: =#REF! ->  | E21: =VLOOKUP(C21,#REF!,2,FALSE) ->  | F21: =D21*E21 ->  | H21: =VLOOKUP(C21,#REF!,3,FALSE) ->  | I21: =G21*H21 ->  | K21: =VLOOKUP(C21,#REF!,4,FALSE) ->  | L21: =J21*K21 ->  | N21: =VLOOKUP(C21,#REF!,5,FALSE) ->  | O21: =M21*N21 ->  | Q21: =P21*15 -> 0 | S21: =VLOOKUP(C21,#REF!,2,FALSE) ->  | T21: =R21*S21 ->  | V21: =VLOOKUP(C21,#REF!,3,FALSE) ->  | W21: =U21*V21 ->  | Y21: =VLOOKUP(C21,#REF!,4,FALSE) ->  | Z21: =X21*Y21 ->  | AB21: =VLOOKUP(C21,#REF!,5,FALSE) ->  | AC21: =AA21*AB21 ->  | AF21: =AD21*15+AE21*25 -> 0 | AG21: =D21+G21+J21+M21+R21+U21+X21+AA21+AD21+AE21+P21 -> 0 | AH21: =F21+I21+L21+O21+Q21+T21+W21+Z21+AC21+AF21 -> 
B22: 18 | C22: =#REF! ->  | E22: =VLOOKUP(C22,#REF!,2,FALSE) ->  | H22: =VLOOKUP(C22,#REF!,3,FALSE) ->  | K22: =VLOOKUP(C22,#REF!,4,FALSE) ->  | N22: =VLOOKUP(C22,#REF!,5,FALSE) ->  | Q22: 0 | S22: =VLOOKUP(C22,#REF!,2,FALSE) ->  | V22: =VLOOKUP(C22,#REF!,3,FALSE) ->  | Y22: =VLOOKUP(C22,#REF!,4,FALSE) ->  | AB22: =VLOOKUP(C22,#REF!,5,FALSE) ->  | AF22: 0 | AG22: 0
B23: 19 | C23: =#REF! ->  | E23: =VLOOKUP(C23,#REF!,2,FALSE) ->  | H23: =VLOOKUP(C23,#REF!,3,FALSE) ->  | K23: =VLOOKUP(C23,#REF!,4,FALSE) ->  | N23: =VLOOKUP(C23,#REF!,5,FALSE) ->  | Q23: 0 | S23: =VLOOKUP(C23,#REF!,2,FALSE) ->  | V23: =VLOOKUP(C23,#REF!,3,FALSE) ->  | Y23: =VLOOKUP(C23,#REF!,4,FALSE) ->  | AB23: =VLOOKUP(C23,#REF!,5,FALSE) ->  | AF23: 0 | AG23: 0
B24: 20 | C24: =#REF! ->  | E24: =VLOOKUP(C24,#REF!,2,FALSE) ->  | H24: =VLOOKUP(C24,#REF!,3,FALSE) ->  | K24: =VLOOKUP(C24,#REF!,4,FALSE) ->  | N24: =VLOOKUP(C24,#REF!,5,FALSE) ->  | Q24: 0 | S24: =VLOOKUP(C24,#REF!,2,FALSE) ->  | V24: =VLOOKUP(C24,#REF!,3,FALSE) ->  | Y24: =VLOOKUP(C24,#REF!,4,FALSE) ->  | AB24: =VLOOKUP(C24,#REF!,5,FALSE) ->  | AF24: 0 | AG24: 0
B25: 21 | C25: =#REF! ->  | E25: =VLOOKUP(C25,#REF!,2,FALSE) ->  | H25: =VLOOKUP(C25,#REF!,3,FALSE) ->  | K25: =VLOOKUP(C25,#REF!,4,FALSE) ->  | N25: =VLOOKUP(C25,#REF!,5,FALSE) ->  | Q25: 0 | S25: =VLOOKUP(C25,#REF!,2,FALSE) ->  | V25: =VLOOKUP(C25,#REF!,3,FALSE) ->  | Y25: =VLOOKUP(C25,#REF!,4,FALSE) ->  | AB25: =VLOOKUP(C25,#REF!,5,FALSE) ->  | AF25: 0 | AG25: 0

Sheet 4grupa (hidden)
C2: ='F1'!B2 -> Sporta viktorīnas speciālizlaidums | F1 viktorīna | 2025.gada 13.augusts
B4: # | C4: Komandas / Raundi | D4: 1 | G4: 2 | J4: 3 | M4: 4 | P4: Ķēde | R4: 6 | U4: 7 | X4: 8 | AA4: 9 | AD4: 10 | AG4: KOPĀ
B5: 1 | C5: Jon BorJomi | D5: 6 | E5: 15 | F5: 90 | G5: 5 | H5: 15 | I5: 75 | J5: 6 | K5: 10 | L5: 60 | M5: 6 | N5: 20 | O5: 120 | P5: 8 | Q5: 120 | R5: 4 | S5: 15 | T5: 60 | U5: 6 | V5: 10 | W5: 60 | X5: 3 | Y5: 20 | Z5: 60 | AA5: 5 | AB5: 15 | AC5: 75 | AD5: 6 | AE5: 1 | AF5: 115 | AG5: 56 | AH5: 835
B6: 2 | C6: Trombons un citas problēmas | D6: 6 | E6: 20 | F6: 120 | G6: 4 | H6: 10 | I6: 40 | J6: 6 | K6: 15 | L6: 90 | M6: 4 | N6: 15 | O6: 60 | P6: 8 | Q6: 120 | R6: 4 | S6: 10 | T6: 40 | U6: 5 | V6: 20 | W6: 100 | X6: 4 | Y6: 15 | Z6: 60 | AA6: 5 | AB6: 15 | AC6: 75 | AD6: 7 | AE6: 1 | AF6: 130 | AG6: 54 | AH6: 835
B7: 3 | C7: DeJaVu | D7: 5 | E7: 15 | F7: 75 | G7: 5 | H7: 15 | I7: 75 | J7: 5 | K7: 10 | L7: 50 | M7: 6 | N7: 20 | O7: 120 | P7: 8 | Q7: 120 | R7: 2 | S7: 15 | T7: 30 | U7: 6 | V7: 20 | W7: 120 | X7: 4 | Y7: 10 | Z7: 40 | AA7: 5 | AB7: 15 | AC7: 75 | AD7: 7 | AE7: 1 | AF7: 130 | AG7: 54 | AH7: 834.99
B8: 4 | C8: Žīdam ir taisnība | D8: 5 | E8: 15 | F8: 75 | G8: 6 | H8: 20 | I8: 120 | J8: 4 | K8: 10 | L8: 40 | M8: 4 | N8: 15 | O8: 60 | P8: 8 | Q8: 120 | R8: 2 | S8: 10 | T8: 20 | U8: 6 | V8: 15 | W8: 90 | X8: 5 | Y8: 20 | Z8: 100 | AA8: 3 | AB8: 15 | AC8: 45 | AD8: 7 | AE8: 1 | AF8: 130 | AG8: 51 | AH8: 800
B9: 5 | C9: Aģenti | D9: 6 | E9: 20 | F9: 120 | G9: 5 | H9: 10 | I9: 50 | J9: 6 | K9: 15 | L9: 90 | M9: 4 | N9: 15 | O9: 60 | P9: 1 | Q9: 15 | R9: 6 | S9: 20 | T9: 120 | U9: 6 | V9: 15 | W9: 90 | X9: 4 | Y9: 15 | Z9: 60 | AA9: 5 | AB9: 10 | AC9: 50 | AD9: 7 | AE9: 1 | AF9: 130 | AG9: 51 | AH9: 785
B10: 6 | C10: Džokers un pieci dūži | D10: 6 | E10: 20 | F10: 120 | G10: 3 | H10: 10 | I10: 30 | J10: 5 | K10: 15 | L10: 75 | M10: 6 | N10: 15 | O10: 90 | P10: 4 | Q10: 60 | R10: 1 | S10: 10 | T10: 10 | U10: 6 | V10: 20 | W10: 120 | X10: 4 | Y10: 15 | Z10: 60 | AA10: 5 | AB10: 15 | AC10: 75 | AD10: 7 | AE10: 1 | AF10: 130 | AG10: 48 | AH10: 770
B11: 7 | C11: Gaujas hiēnas | D11: 5 | E11: 20 | F11: 100 | G11: 4 | H11: 15 | I11: 60 | J11: 4 | K11: 10 | L11: 40 | M11: 4 | N11: 15 | O11: 60 | P11: 4 | Q11: 60 | R11: 2 | S11: 10 | T11: 20 | U11: 6 | V11: 15 | W11: 90 | X11: 5 | Y11: 15 | Z11: 75 | AA11: 5 | AB11: 20 | AC11: 100 | AD11: 6 | AE11: 1 | AF11: 115 | AG11: 46 | AH11: 720
B12: 8 | C12: Kavētāji | D12: 6 | E12: 15 | F12: 90 | G12: 4 | H12: 10 | I12: 40 | J12: 3 | K12: 15 | L12: 45 | M12: 4 | N12: 20 | O12: 80 | P12: 4 | Q12: 60 | R12: 2 | S12: 10 | T12: 20 | U12: 5 | V12: 15 | W12: 75 | X12: 4 | Y12: 20 | Z12: 80 | AA12: 4 | AB12: 15 | AC12: 60 | AD12: 6.5 | AE12: 1 | AF12: 122.5 | AG12: 43.5 | AH12: 672.5
B13: 9 | C13: BunS | D13: 4 | E13: 10 | F13: 40 | G13: 4 | H13: 15 | I13: 60 | J13: 5 | K13: 20 | L13: 100 | M13: 5 | N13: 15 | O13: 75 | P13: 5 | Q13: 75 | R13: 3 | S13: 10 | T13: 30 | U13: 5 | V13: 20 | W13: 100 | X13: 2 | Y13: 15 | Z13: 30 | AA13: 3 | AB13: 15 | AC13: 45 | AD13: 6 | AE13: 1 | AF13: 115 | AG13: 43 | AH13: 670
B14: 10 | C14: Faceless Victorians | D14: 4 | E14: 15 | F14: 60 | G14: 2 | H14: 15 | I14: 30 | J14: 5 | K14: 10 | L14: 50 | M14: 5 | N14: 20 | O14: 100 | P14: 6 | Q14: 90 | R14: 3 | S14: 15 | T14: 45 | U14: 4 | V14: 15 | W14: 60 | X14: 3 | Y14: 20 | Z14: 60 | AA14: 4 | AB14: 10 | AC14: 40 | AD14: 7 | AE14: 1 | AF14: 130 | AG14: 44 | AH14: 665
B15: 11 | C15: MĒS | D15: 4 | E15: 15 | F15: 60 | G15: 5 | H15: 10 | I15: 50 | J15: 5 | K15: 15 | L15: 75 | M15: 5 | N15: 20 | O15: 100 | P15: 1 | Q15: 15 | R15: 1 | S15: 10 | T15: 10 | U15: 6 | V15: 15 | W15: 90 | X15: 3 | Y15: 20 | Z15: 60 | AA15: 4 | AB15: 15 | AC15: 60 | AD15: 7 | AE15: 1 | AF15: 130 | AG15: 42 | AH15: 650
B16: 12 | C16: =#REF! ->  | E16: =VLOOKUP(C16,#REF!,2,FALSE) ->  | F16: =D16*E16 ->  | H16: =VLOOKUP(C16,#REF!,3,FALSE) ->  | I16: =G16*H16 ->  | K16: =VLOOKUP(C16,#REF!,4,FALSE) ->  | L16: =J16*K16 ->  | N16: =VLOOKUP(C16,#REF!,5,FALSE) ->  | O16: =M16*N16 ->  | Q16: =P16*15 -> 0 | S16: =VLOOKUP(C16,#REF!,2,FALSE) ->  | T16: =R16*S16 ->  | V16: =VLOOKUP(C16,#REF!,3,FALSE) ->  | W16: =U16*V16 ->  | Y16: =VLOOKUP(C16,#REF!,4,FALSE) ->  | Z16: =X16*Y16 ->  | AB16: =VLOOKUP(C16,#REF!,5,FALSE) ->  | AC16: =AA16*AB16 ->  | AF16: =AD16*15+AE16*25 -> 0 | AG16: =D16+G16+J16+M16+R16+U16+X16+AA16+AD16+AE16+P16 -> 0 | AH16: =F16+I16+L16+O16+Q16+T16+W16+Z16+AC16+AF16 -> 
B17: 13 | C17: =#REF! ->  | E17: =VLOOKUP(C17,#REF!,2,FALSE) ->  | H17: =VLOOKUP(C17,#REF!,3,FALSE) ->  | K17: =VLOOKUP(C17,#REF!,4,FALSE) ->  | N17: =VLOOKUP(C17,#REF!,5,FALSE) ->  | Q17: 0 | S17: =VLOOKUP(C17,#REF!,2,FALSE) ->  | V17: =VLOOKUP(C17,#REF!,3,FALSE) ->  | Y17: =VLOOKUP(C17,#REF!,4,FALSE) ->  | AB17: =VLOOKUP(C17,#REF!,5,FALSE) ->  | AF17: 0 | AG17: 0
B18: 14 | C18: =#REF! ->  | E18: =VLOOKUP(C18,#REF!,2,FALSE) ->  | H18: =VLOOKUP(C18,#REF!,3,FALSE) ->  | K18: =VLOOKUP(C18,#REF!,4,FALSE) ->  | N18: =VLOOKUP(C18,#REF!,5,FALSE) ->  | Q18: 0 | S18: =VLOOKUP(C18,#REF!,2,FALSE) ->  | V18: =VLOOKUP(C18,#REF!,3,FALSE) ->  | Y18: =VLOOKUP(C18,#REF!,4,FALSE) ->  | AB18: =VLOOKUP(C18,#REF!,5,FALSE) ->  | AF18: 0 | AG18: 0
B19: 15 | C19: =#REF! ->  | E19: =VLOOKUP(C19,#REF!,2,FALSE) ->  | H19: =VLOOKUP(C19,#REF!,3,FALSE) ->  | K19: =VLOOKUP(C19,#REF!,4,FALSE) ->  | N19: =VLOOKUP(C19,#REF!,5,FALSE) ->  | Q19: 0 | S19: =VLOOKUP(C19,#REF!,2,FALSE) ->  | V19: =VLOOKUP(C19,#REF!,3,FALSE) ->  | Y19: =VLOOKUP(C19,#REF!,4,FALSE) ->  | AB19: =VLOOKUP(C19,#REF!,5,FALSE) ->  | AF19: 0 | AG19: 0
B20: 16 | C20: =#REF! ->  | E20: =VLOOKUP(C20,#REF!,2,FALSE) ->  | H20: =VLOOKUP(C20,#REF!,3,FALSE) ->  | K20: =VLOOKUP(C20,#REF!,4,FALSE) ->  | N20: =VLOOKUP(C20,#REF!,5,FALSE) ->  | Q20: 0 | S20: =VLOOKUP(C20,#REF!,2,FALSE) ->  | V20: =VLOOKUP(C20,#REF!,3,FALSE) ->  | Y20: =VLOOKUP(C20,#REF!,4,FALSE) ->  | AB20: =VLOOKUP(C20,#REF!,5,FALSE) ->  | AF20: 0 | AG20: 0
B21: 17 | C21: =#REF! ->  | E21: =VLOOKUP(C21,#REF!,2,FALSE) ->  | H21: =VLOOKUP(C21,#REF!,3,FALSE) ->  | K21: =VLOOKUP(C21,#REF!,4,FALSE) ->  | N21: =VLOOKUP(C21,#REF!,5,FALSE) ->  | Q21: 0 | S21: =VLOOKUP(C21,#REF!,2,FALSE) ->  | V21: =VLOOKUP(C21,#REF!,3,FALSE) ->  | Y21: =VLOOKUP(C21,#REF!,4,FALSE) ->  | AB21: =VLOOKUP(C21,#REF!,5,FALSE) ->  | AF21: 0 | AG21: 0
B22: 18 | C22: =#REF! ->  | E22: =VLOOKUP(C22,#REF!,2,FALSE) ->  | H22: =VLOOKUP(C22,#REF!,3,FALSE) ->  | K22: =VLOOKUP(C22,#REF!,4,FALSE) ->  | N22: =VLOOKUP(C22,#REF!,5,FALSE) ->  | Q22: 0 | S22: =VLOOKUP(C22,#REF!,2,FALSE) ->  | V22: =VLOOKUP(C22,#REF!,3,FALSE) ->  | Y22: =VLOOKUP(C22,#REF!,4,FALSE) ->  | AB22: =VLOOKUP(C22,#REF!,5,FALSE) ->  | AF22: 0 | AG22: 0
B23: 19 | C23: =#REF! ->  | E23: =VLOOKUP(C23,#REF!,2,FALSE) ->  | H23: =VLOOKUP(C23,#REF!,3,FALSE) ->  | K23: =VLOOKUP(C23,#REF!,4,FALSE) ->  | N23: =VLOOKUP(C23,#REF!,5,FALSE) ->  | Q23: 0 | S23: =VLOOKUP(C23,#REF!,2,FALSE) ->  | V23: =VLOOKUP(C23,#REF!,3,FALSE) ->  | Y23: =VLOOKUP(C23,#REF!,4,FALSE) ->  | AB23: =VLOOKUP(C23,#REF!,5,FALSE) ->  | AF23: 0 | AG23: 0
B24: 20 | C24: =#REF! ->  | E24: =VLOOKUP(C24,#REF!,2,FALSE) ->  | H24: =VLOOKUP(C24,#REF!,3,FALSE) ->  | K24: =VLOOKUP(C24,#REF!,4,FALSE) ->  | N24: =VLOOKUP(C24,#REF!,5,FALSE) ->  | Q24: 0 | S24: =VLOOKUP(C24,#REF!,2,FALSE) ->  | V24: =VLOOKUP(C24,#REF!,3,FALSE) ->  | Y24: =VLOOKUP(C24,#REF!,4,FALSE) ->  | AB24: =VLOOKUP(C24,#REF!,5,FALSE) ->  | AF24: 0 | AG24: 0
B25: 21 | C25: =#REF! ->  | E25: =VLOOKUP(C25,#REF!,2,FALSE) ->  | H25: =VLOOKUP(C25,#REF!,3,FALSE) ->  | K25: =VLOOKUP(C25,#REF!,4,FALSE) ->  | N25: =VLOOKUP(C25,#REF!,5,FALSE) ->  | Q25: 0 | S25: =VLOOKUP(C25,#REF!,2,FALSE) ->  | V25: =VLOOKUP(C25,#REF!,3,FALSE) ->  | Y25: =VLOOKUP(C25,#REF!,4,FALSE) ->  | AB25: =VLOOKUP(C25,#REF!,5,FALSE) ->  | AF25: 0 | AG25: 0

Sheet prikols (hidden)
D2: "Sporta viktorīna" | 6.kārta - 1.grupa
B4: # | C4: # grupā | D4: Komandas / Raundi | AH4: KOPĀ
B5: 1 | C5: 1 | D5: Alus zaldāti | E5: 4 | F5: 15 | G5: 60 | H5: 4 | I5: 10 | J5: 40 | K5: 5 | L5: 15 | M5: 75 | N5: 6 | O5: 20 | P5: 120 | Q5: 8 | R5: 120 | S5: 5 | T5: 15 | U5: 75 | V5: 5 | W5: 20 | X5: 100 | Y5: 4 | Z5: 10 | AA5: 40 | AB5: 4 | AC5: 15 | AD5: 60 | AE5: 6 | AF5: 1 | AG5: 115 | AH5: 52 | AI5: =AH5*15 -> 780
B6: 2 | C6: 2 | D6: Diskusiju klubiņš | E6: 5.5 | F6: 15 | G6: 82.5 | H6: 2 | I6: 10 | J6: 20 | K6: 4 | L6: 15 | M6: 60 | N6: 6 | O6: 20 | P6: 120 | Q6: 2 | R6: 30 | S6: 6 | T6: 20 | U6: 120 | V6: 5 | W6: 10 | X6: 50 | Y6: 5 | Z6: 15 | AA6: 75 | AB6: 5 | AC6: 15 | AD6: 75 | AE6: 5 | AF6: 0 | AG6: 75 | AH6: 45.5 | AI6: =AH6*15 -> 682.5
B7: 3 | C7: 3 | D7: Stosi | E7: 6 | F7: 15 | G7: 90 | H7: 3 | I7: 15 | J7: 45 | K7: 2 | L7: 10 | M7: 20 | N7: 6 | O7: 20 | P7: 120 | Q7: 3 | R7: 45 | S7: 2 | T7: 10 | U7: 20 | V7: 4 | W7: 15 | X7: 60 | Y7: 6 | Z7: 20 | AA7: 120 | AB7: 4 | AC7: 15 | AD7: 60 | AE7: 6 | AF7: 1 | AG7: 115 | AH7: 43 | AI7: 645
B8: 4 | C8: 4 | D8: Baltais gailis | E8: 6 | F8: 15 | G8: 90 | H8: 5 | I8: 10 | J8: 50 | K8: 4 | L8: 15 | M8: 60 | N8: 5 | O8: 20 | P8: 100 | Q8: 3 | R8: 45 | S8: 6 | T8: 20 | U8: 120 | V8: 3 | W8: 10 | X8: 30 | Y8: 4 | Z8: 15 | AA8: 60 | AB8: 3 | AC8: 15 | AD8: 45 | AE8: 5 | AF8: 0 | AG8: 75 | AH8: 42 | AI8: 630
B9: 5 | C9: 5 | D9: A komanda | E9: 5.5 | F9: 15 | G9: 82.5 | H9: 4 | I9: 10 | J9: 40 | K9: 4 | L9: 15 | M9: 60 | N9: 5 | O9: 20 | P9: 100 | Q9: 3 | R9: 45 | S9: 4 | T9: 10 | U9: 40 | V9: 5 | W9: 15 | X9: 75 | Y9: 5 | Z9: 15 | AA9: 75 | AB9: 4 | AC9: 20 | AD9: 80 | AE9: 4 | AF9: 0 | AG9: 60 | AH9: 39 | AI9: 585
B10: 6 | C10: 6 | D10: Jeržābeks | E10: 6 | F10: 10 | G10: 60 | H10: 4 | I10: 15 | J10: 60 | K10: 4 | L10: 15 | M10: 60 | N10: 5 | O10: 20 | P10: 100 | Q10: 0 | R10: 0 | S10: 5 | T10: 10 | U10: 50 | V10: 3 | W10: 15 | X10: 45 | Y10: 5 | Z10: 20 | AA10: 100 | AB10: 5 | AC10: 15 | AD10: 75 | AE10: 4 | AF10: 0 | AG10: 60 | AH10: 35 | AI10: 525
B11: 7 | C11: 7 | D11: Fireball | E11: 5.5 | F11: 10 | G11: 55 | H11: 4 | I11: 15 | J11: 60 | K11: 2 | L11: 15 | M11: 30 | N11: 5 | O11: 20 | P11: 100 | Q11: 0 | R11: 0 | S11: 5 | T11: 15 | U11: 75 | V11: 3 | W11: 15 | X11: 45 | Y11: 2 | Z11: 10 | AA11: 20 | AB11: 5 | AC11: 20 | AD11: 100 | AE11: 6 | AF11: 1 | AG11: 115 | AH11: 31 | AI11: 465
B12: 8 | C12: 8 | D12: Turks un polis | E12: 4.5 | F12: 10 | G12: 45 | H12: 4 | I12: 15 | J12: 60 | K12: 2 | L12: 15 | M12: 30 | N12: 4 | O12: 20 | P12: 80 | Q12: 1 | R12: 15 | S12: 3 | T12: 10 | U12: 30 | V12: 3 | W12: 15 | X12: 45 | Y12: 2 | Z12: 15 | AA12: 30 | AB12: 4 | AC12: 20 | AD12: 80 | AE12: 3 | AF12: 0 | AG12: 45 | AH12: 28 | AI12: 420
B13: 9 | C13: 9 | D13: Maurīcijs | AH13: 18 | AI13: 270
B14: 10
B15: 11
B16: 12
B17: 13
B18: 14
B19: 15
B20: 16
B21: 17
B22: 18
B23: 19
B24: 20
B25: 21
B26: 22
B27: 23
B28: 24
B29: 25
B30: 26

Sheet LV2k1g (hidden)
C2: "Lielā viktorīna" | 2.kārta | 1.grupa - 2025.gada 3.februāris
B4: # | C4: Komandas / Raundi | D4: 1 | G4: 2 | J4: 3 | M4: 4 | P4: 5 | R4: 6 | U4: 7 | X4: 8 | AA4: 9 | AD4: 10 | AG4: KOPĀ
B5: 1 | C5: Brāķis bez metāla | D5: 5 | E5: 15 | F5: 75 | G5: 4 | H5: 15 | I5: 60 | J5: 5 | K5: 10 | L5: 50 | M5: 5 | N5: 20 | O5: 100 | P5: 8 | Q5: 120 | R5: 5 | S5: 15 | T5: 75 | U5: 3 | V5: 10 | W5: 30 | X5: 5 | Y5: 15 | Z5: 75 | AA5: 5 | AB5: 20 | AC5: 100 | AD5: 7 | AE5: 1 | AF5: 130 | AG5: 53 | AH5: 815
B6: 2 | C6: Laimes rācenis | D6: 5 | E6: 20 | F6: 100 | G6: 2.5 | H6: 10 | I6: 25 | J6: 6 | K6: 15 | L6: 90 | M6: 4 | N6: 15 | O6: 60 | P6: 8 | Q6: 120 | R6: 5 | S6: 15 | T6: 75 | U6: 5 | V6: 20 | W6: 100 | X6: 6 | Y6: 15 | Z6: 90 | AA6: 4 | AB6: 10 | AC6: 40 | AD6: 6 | AE6: 1 | AF6: 115 | AG6: 52.5 | AH6: 815
B7: 3 | C7: Alus zaldāti | D7: 3 | E7: 15 | F7: 45 | G7: 3 | H7: 10 | I7: 30 | J7: 4 | K7: 15 | L7: 60 | M7: 6 | N7: 20 | O7: 120 | P7: 8 | Q7: 120 | R7: 5 | S7: 15 | T7: 75 | U7: 5 | V7: 20 | W7: 100 | X7: 5 | Y7: 15 | Z7: 75 | AA7: 5 | AB7: 10 | AC7: 50 | AD7: 7 | AE7: 1 | AF7: 130 | AG7: 52 | AH7: 805
B8: 4 | C8: Apskaidrība | D8: 4 | E8: 15 | F8: 60 | G8: 3.5 | H8: 15 | I8: 52.5 | J8: 3 | K8: 10 | L8: 30 | M8: 6 | N8: 20 | O8: 120 | P8: 7 | Q8: 105 | R8: 5 | S8: 20 | T8: 100 | U8: 5 | V8: 15 | W8: 75 | X8: 5 | Y8: 10 | Z8: 50 | AA8: 5 | AB8: 15 | AC8: 75 | AD8: 7 | AE8: 1 | AF8: 130 | AG8: 51.5 | AH8: 797.5
B9: 5 | C9: Gorbunovi | D9: 4 | E9: 10 | F9: 40 | G9: 3.5 | H9: 15 | I9: 52.5 | J9: 5 | K9: 15 | L9: 75 | M9: 5 | N9: 20 | O9: 100 | P9: 8 | Q9: 120 | R9: 4 | S9: 10 | T9: 40 | U9: 4 | V9: 20 | W9: 80 | X9: 6 | Y9: 15 | Z9: 90 | AA9: 4 | AB9: 15 | AC9: 60 | AD9: 7 | AE9: 1 | AF9: 130 | AG9: 51.5 | AH9: 787.5
B10: 6 | C10: Nasing spešal | D10: 4 | E10: 15 | F10: 60 | G10: 5 | H10: 15 | I10: 75 | J10: 3 | K10: 10 | L10: 30 | M10: 6 | N10: 20 | O10: 120 | P10: 8 | Q10: 120 | R10: 5 | S10: 10 | T10: 50 | U10: 3 | V10: 20 | W10: 60 | X10: 4 | Y10: 15 | Z10: 60 | AA10: 5 | AB10: 15 | AC10: 75 | AD10: 7 | AE10: 1 | AF10: 130 | AG10: 51 | AH10: 780
B11: 7 | C11: Rozā krekli un mokasīni | D11: 3 | E11: 15 | F11: 45 | G11: 4 | H11: 10 | I11: 40 | J11: 5 | K11: 15 | L11: 75 | M11: 5 | N11: 20 | O11: 100 | P11: 7 | Q11: 105 | R11: 5 | S11: 20 | T11: 100 | U11: 2 | V11: 15 | W11: 30 | X11: 6 | Y11: 10 | Z11: 60 | AA11: 5 | AB11: 15 | AC11: 75 | AD11: 7 | AE11: 1 | AF11: 130 | AG11: 50 | AH11: 760
B12: 8 | C12: Fireball | D12: 4 | E12: 15 | F12: 60 | G12: 5 | H12: 10 | I12: 50 | J12: 6 | K12: 15 | L12: 90 | M12: 6 | N12: 20 | O12: 120 | P12: 8 | Q12: 120 | R12: 5 | S12: 15 | T12: 75 | U12: 4 | V12: 15 | W12: 60 | X12: 6 | Y12: 20 | Z12: 120 | AA12: 0 | AB12: 10 | AC12: 0 | AD12: 4 | AE12: 0 | AF12: 60 | AG12: 48 | AH12: 755
B13: 9 | C13: Lapsas | D13: 5 | E13: 15 | F13: 75 | G13: 5 | H13: 10 | I13: 50 | J13: 2 | K13: 15 | L13: 30 | M13: 6 | N13: 20 | O13: 120 | P13: 7 | Q13: 105 | R13: 5 | S13: 15 | T13: 75 | U13: 3 | V13: 20 | W13: 60 | X13: 6 | Y13: 10 | Z13: 60 | AA13: 4 | AB13: 15 | AC13: 60 | AD13: 6 | AE13: 1 | AF13: 115 | AG13: 50 | AH13: 750
B14: 10 | C14: Zēniņi sports nav priekš jums | D14: 3 | E14: 15 | F14: 45 | G14: 4.5 | H14: 15 | I14: 67.5 | J14: 3 | K14: 10 | L14: 30 | M14: 4 | N14: 20 | O14: 80 | P14: 7 | Q14: 105 | R14: 5 | S14: 20 | T14: 100 | U14: 3 | V14: 10 | W14: 30 | X14: 4 | Y14: 15 | Z14: 60 | AA14: 5 | AB14: 15 | AC14: 75 | AD14: 6 | AE14: 1 | AF14: 115 | AG14: 45.5 | AH14: 707.5
B15: 11 | C15: RAĢ Pīķi & Co | D15: 3 | E15: 15 | F15: 45 | G15: 2.5 | H15: 15 | I15: 37.5 | J15: 3 | K15: 10 | L15: 30 | M15: 5 | N15: 20 | O15: 100 | P15: 6 | Q15: 90 | R15: 5 | S15: 15 | T15: 75 | U15: 2 | V15: 10 | W15: 20 | X15: 5 | Y15: 15 | Z15: 75 | AA15: 6 | AB15: 20 | AC15: 120 | AD15: 6 | AE15: 1 | AF15: 115 | AG15: 44.5 | AH15: 707.5
B16: 12 | C16: Sfinksa | D16: 5 | E16: 10 | F16: 50 | G16: 4 | H16: 15 | I16: 60 | J16: 4 | K16: 20 | L16: 80 | M16: 5 | N16: 15 | O16: 75 | P16: 8 | Q16: 120 | R16: 3 | S16: 10 | T16: 30 | U16: 5 | V16: 20 | W16: 100 | X16: 3 | Y16: 15 | Z16: 45 | AA16: 1 | AB16: 15 | AC16: 15 | AD16: 7 | AE16: 1 | AF16: 130 | AG16: 46 | AH16: 705
B17: 13 | C17: Žīdam ir taisnība | D17: 4 | E17: 15 | F17: 60 | G17: 3.5 | H17: 15 | I17: 52.5 | J17: 3 | K17: 10 | L17: 30 | M17: 5 | N17: 20 | O17: 100 | P17: 8 | Q17: 120 | R17: 5 | S17: 20 | T17: 100 | U17: 2 | V17: 15 | W17: 30 | X17: 5 | Y17: 15 | Z17: 75 | AA17: 4 | AB17: 10 | AC17: 40 | AD17: 4 | AE17: 1 | AF17: 85 | AG17: 44.5 | AH17: 692.5
B18: 14 | C18: Mind Machines | D18: 2 | E18: 15 | F18: 30 | G18: 4 | H18: 15 | I18: 60 | J18: 1 | K18: 10 | L18: 10 | M18: 6 | N18: 20 | O18: 120 | P18: 4 | Q18: 60 | R18: 5 | S18: 15 | T18: 75 | U18: 3 | V18: 10 | W18: 30 | X18: 5 | Y18: 20 | Z18: 100 | AA18: 5 | AB18: 15 | AC18: 75 | AD18: 6 | AE18: 1 | AF18: 115 | AG18: 42 | AH18: 675
B19: 15 | C19: Vortusiņš | D19: 2 | E19: 15 | F19: 30 | G19: 3 | H19: 15 | I19: 45 | J19: 1 | K19: 10 | L19: 10 | M19: 4 | N19: 20 | O19: 80 | P19: 6 | Q19: 90 | R19: 5 | S19: 15 | T19: 75 | U19: 3 | V19: 15 | W19: 45 | X19: 5 | Y19: 20 | Z19: 100 | AA19: 5 | AB19: 10 | AC19: 50 | AD19: 2 | AE19: 0 | AF19: 30 | AG19: 36 | AH19: 555
B20: 16 | C20: Marvels | D20: 1 | E20: 15 | F20: 15 | G20: 3.5 | H20: 15 | I20: 52.5 | J20: 2 | K20: 10 | L20: 20 | M20: 5 | N20: 20 | O20: 100 | P20: 2 | Q20: 30 | R20: 4 | S20: 15 | T20: 60 | U20: 1 | V20: 10 | W20: 10 | X20: 4 | Y20: 20 | Z20: 80 | AA20: 4 | AB20: 15 | AC20: 60 | AD20: 4 | AE20: 0 | AF20: 60 | AG20: 30.5 | AH20: 487.5
B21: 17 | C21: =#REF! ->  | E21: =VLOOKUP(C21,#REF!,2,FALSE) ->  | F21: =D21*E21 ->  | H21: =VLOOKUP(C21,#REF!,3,FALSE) ->  | I21: =G21*H21 ->  | K21: =VLOOKUP(C21,#REF!,4,FALSE) ->  | L21: =J21*K21 ->  | N21: =VLOOKUP(C21,#REF!,5,FALSE) ->  | O21: =M21*N21 ->  | Q21: =P21*15 -> 0 | S21: =VLOOKUP(C21,#REF!,2,FALSE) ->  | T21: =R21*S21 ->  | V21: =VLOOKUP(C21,#REF!,3,FALSE) ->  | W21: =U21*V21 ->  | Y21: =VLOOKUP(C21,#REF!,4,FALSE) ->  | Z21: =X21*Y21 ->  | AB21: =VLOOKUP(C21,#REF!,5,FALSE) ->  | AC21: =AA21*AB21 ->  | AF21: =AD21*15+AE21*25 -> 0 | AG21: =D21+G21+J21+M21+R21+U21+X21+AA21+AD21+AE21+P21 -> 0 | AH21: =F21+I21+L21+O21+Q21+T21+W21+Z21+AC21+AF21 -> 
B22: 18 | C22: =#REF! ->  | E22: =VLOOKUP(C22,#REF!,2,FALSE) ->  | H22: =VLOOKUP(C22,#REF!,3,FALSE) ->  | K22: =VLOOKUP(C22,#REF!,4,FALSE) ->  | N22: =VLOOKUP(C22,#REF!,5,FALSE) ->  | Q22: 0 | S22: =VLOOKUP(C22,#REF!,2,FALSE) ->  | V22: =VLOOKUP(C22,#REF!,3,FALSE) ->  | Y22: =VLOOKUP(C22,#REF!,4,FALSE) ->  | AB22: =VLOOKUP(C22,#REF!,5,FALSE) ->  | AF22: 0 | AG22: 0
B23: 19 | C23: =#REF! ->  | E23: =VLOOKUP(C23,#REF!,2,FALSE) ->  | H23: =VLOOKUP(C23,#REF!,3,FALSE) ->  | K23: =VLOOKUP(C23,#REF!,4,FALSE) ->  | N23: =VLOOKUP(C23,#REF!,5,FALSE) ->  | Q23: 0 | S23: =VLOOKUP(C23,#REF!,2,FALSE) ->  | V23: =VLOOKUP(C23,#REF!,3,FALSE) ->  | Y23: =VLOOKUP(C23,#REF!,4,FALSE) ->  | AB23: =VLOOKUP(C23,#REF!,5,FALSE) ->  | AF23: 0 | AG23: 0
B24: 20 | C24: =#REF! ->  | E24: =VLOOKUP(C24,#REF!,2,FALSE) ->  | H24: =VLOOKUP(C24,#REF!,3,FALSE) ->  | K24: =VLOOKUP(C24,#REF!,4,FALSE) ->  | N24: =VLOOKUP(C24,#REF!,5,FALSE) ->  | Q24: 0 | S24: =VLOOKUP(C24,#REF!,2,FALSE) ->  | V24: =VLOOKUP(C24,#REF!,3,FALSE) ->  | Y24: =VLOOKUP(C24,#REF!,4,FALSE) ->  | AB24: =VLOOKUP(C24,#REF!,5,FALSE) ->  | AF24: 0 | AG24: 0
B25: 21 | C25: =#REF! ->  | E25: =VLOOKUP(C25,#REF!,2,FALSE) ->  | H25: =VLOOKUP(C25,#REF!,3,FALSE) ->  | K25: =VLOOKUP(C25,#REF!,4,FALSE) ->  | N25: =VLOOKUP(C25,#REF!,5,FALSE) ->  | Q25: 0 | S25: =VLOOKUP(C25,#REF!,2,FALSE) ->  | V25: =VLOOKUP(C25,#REF!,3,FALSE) ->  | Y25: =VLOOKUP(C25,#REF!,4,FALSE) ->  | AB25: =VLOOKUP(C25,#REF!,5,FALSE) ->  | AF25: 0 | AG25: 0

Sheet LV2k2g (hidden)
C2: "Lielā viktorīna" | 2.kārta | 2.grupa - 2025.gada 4.februāris
B4: # | C4: Komandas / Raundi | D4: 1 | G4: 2 | J4: 3 | M4: 4 | P4: 5 | R4: 6 | U4: 7 | X4: 8 | AA4: 9 | AD4: 10 | AG4: KOPĀ
B5: 1 | C5: Štepselētāju atgriešanās | D5: 6 | E5: 15 | F5: 90 | G5: 5 | H5: 10 | I5: 50 | J5: 4 | K5: 15 | L5: 60 | M5: 6 | N5: 20 | O5: 120 | P5: 8 | Q5: 120 | R5: 5 | S5: 15 | T5: 75 | U5: 5 | V5: 15 | W5: 75 | X5: 6 | Y5: 20 | Z5: 120 | AA5: 4 | AB5: 10 | AC5: 40 | AD5: 7 | AE5: 1 | AF5: 130 | AG5: 57 | AH5: 880
B6: 2 | C6: Hektora apustuļi | D6: 6 | E6: 15 | F6: 90 | G6: 3.5 | H6: 10 | I6: 35 | J6: 5 | K6: 15 | L6: 75 | M6: 6 | N6: 20 | O6: 120 | P6: 7 | Q6: 105 | R6: 5 | S6: 15 | T6: 75 | U6: 4 | V6: 20 | W6: 80 | X6: 6 | Y6: 15 | Z6: 90 | AA6: 5 | AB6: 10 | AC6: 50 | AD6: 5 | AE6: 1 | AF6: 100 | AG6: 53.5 | AH6: 820
B7: 3 | C7: Bunkurs_13 | D7: 4 | E7: 15 | F7: 60 | G7: 3 | H7: 15 | I7: 45 | J7: 4 | K7: 10 | L7: 40 | M7: 5 | N7: 20 | O7: 100 | P7: 8 | Q7: 120 | R7: 6 | S7: 10 | T7: 60 | U7: 5 | V7: 15 | W7: 75 | X7: 6 | Y7: 20 | Z7: 120 | AA7: 4 | AB7: 15 | AC7: 60 | AD7: 7 | AE7: 1 | AF7: 130 | AG7: 53 | AH7: 810
B8: 4 | C8: Sestais lieks | D8: 3 | E8: 15 | F8: 45 | G8: 4 | H8: 15 | I8: 60 | J8: 4 | K8: 10 | L8: 40 | M8: 6 | N8: 20 | O8: 120 | P8: 8 | Q8: 120 | R8: 5 | S8: 20 | T8: 100 | U8: 3 | V8: 15 | W8: 45 | X8: 6 | Y8: 10 | Z8: 60 | AA8: 6 | AB8: 15 | AC8: 90 | AD8: 7 | AE8: 1 | AF8: 130 | AG8: 53 | AH8: 810
B9: 5 | C9: Mordanga | D9: 4 | E9: 15 | F9: 60 | G9: 4 | H9: 15 | I9: 60 | J9: 4 | K9: 10 | L9: 40 | M9: 4 | N9: 20 | O9: 80 | P9: 8 | Q9: 120 | R9: 5 | S9: 15 | T9: 75 | U9: 5 | V9: 20 | W9: 100 | X9: 5 | Y9: 15 | Z9: 75 | AA9: 5 | AB9: 10 | AC9: 50 | AD9: 7 | AE9: 1 | AF9: 130 | AG9: 52 | AH9: 790
B10: 6 | C10: Lācēni | D10: 4 | E10: 15 | F10: 60 | G10: 5 | H10: 10 | I10: 50 | J10: 4 | K10: 15 | L10: 60 | M10: 4 | N10: 20 | O10: 80 | P10: 8 | Q10: 120 | R10: 5 | S10: 15 | T10: 75 | U10: 4 | V10: 20 | W10: 80 | X10: 5 | Y10: 15 | Z10: 75 | AA10: 4 | AB10: 10 | AC10: 40 | AD10: 7 | AE10: 1 | AF10: 130 | AG10: 51 | AH10: 770
B11: 7 | C11: DeJaVu | D11: 5 | E11: 10 | F11: 50 | G11: 4.5 | H11: 15 | I11: 67.5 | J11: 2 | K11: 15 | L11: 30 | M11: 6 | N11: 20 | O11: 120 | P11: 8 | Q11: 120 | R11: 5 | S11: 10 | T11: 50 | U11: 6 | V11: 20 | W11: 120 | X11: 4 | Y11: 15 | Z11: 60 | AA11: 1 | AB11: 15 | AC11: 15 | AD11: 7 | AE11: 1 | AF11: 130 | AG11: 49.5 | AH11: 762.5
B12: 8 | C12: Faceless Victorians | D12: 2 | E12: 15 | F12: 30 | G12: 3 | H12: 15 | I12: 45 | J12: 3 | K12: 10 | L12: 30 | M12: 5 | N12: 20 | O12: 100 | P12: 8 | Q12: 120 | R12: 5 | S12: 20 | T12: 100 | U12: 5 | V12: 10 | W12: 50 | X12: 5 | Y12: 15 | Z12: 75 | AA12: 5 | AB12: 15 | AC12: 75 | AD12: 6 | AE12: 1 | AF12: 115 | AG12: 48 | AH12: 740
B13: 9 | C13: 5AM | D13: 3 | E13: 15 | F13: 45 | G13: 3.5 | H13: 15 | I13: 52.5 | J13: 4 | K13: 10 | L13: 40 | M13: 5 | N13: 20 | O13: 100 | P13: 8 | Q13: 120 | R13: 5 | S13: 15 | T13: 75 | U13: 3 | V13: 15 | W13: 45 | X13: 3 | Y13: 10 | Z13: 30 | AA13: 5 | AB13: 20 | AC13: 100 | AD13: 7 | AE13: 1 | AF13: 130 | AG13: 47.5 | AH13: 737.5
B14: 10 | C14: Atkal Mēs | D14: 3 | E14: 15 | F14: 45 | G14: 4 | H14: 15 | I14: 60 | J14: 3 | K14: 10 | L14: 30 | M14: 6 | N14: 20 | O14: 120 | P14: 8 | Q14: 120 | R14: 4 | S14: 15 | T14: 60 | U14: 4 | V14: 15 | W14: 60 | X14: 4 | Y14: 20 | Z14: 80 | AA14: 2 | AB14: 10 | AC14: 20 | AD14: 6 | AE14: 1 | AF14: 115 | AG14: 45 | AH14: 710
B15: 11 | C15: Cukurfabrika | D15: 2 | E15: 15 | F15: 30 | G15: 4 | H15: 10 | I15: 40 | J15: 3 | K15: 15 | L15: 45 | M15: 5 | N15: 20 | O15: 100 | P15: 7 | Q15: 105 | R15: 5 | S15: 15 | T15: 75 | U15: 3 | V15: 10 | W15: 30 | X15: 6 | Y15: 20 | Z15: 120 | AA15: 6 | AB15: 15 | AC15: 90 | AD15: 4 | AE15: 0 | AF15: 60 | AG15: 45 | AH15: 695
B16: 12 | C16: MĒS | D16: 5 | E16: 15 | F16: 75 | G16: 4 | H16: 15 | I16: 60 | J16: 3 | K16: 10 | L16: 30 | M16: 6 | N16: 20 | O16: 120 | P16: 7 | Q16: 105 | R16: 3 | S16: 15 | T16: 45 | U16: 2 | V16: 15 | W16: 30 | X16: 4 | Y16: 20 | Z16: 80 | AA16: 1 | AB16: 10 | AC16: 10 | AD16: 7 | AE16: 1 | AF16: 130 | AG16: 43 | AH16: 685
B17: 13 | C17: Alternative facts | D17: 2 | E17: 20 | F17: 40 | G17: 4 | H17: 10 | I17: 40 | J17: 2 | K17: 15 | L17: 30 | M17: 5 | N17: 15 | O17: 75 | P17: 7 | Q17: 105 | R17: 5 | S17: 20 | T17: 100 | U17: 4 | V17: 15 | W17: 60 | X17: 5 | Y17: 15 | Z17: 75 | AA17: 2 | AB17: 10 | AC17: 20 | AD17: 6 | AE17: 1 | AF17: 115 | AG17: 43 | AH17: 660
B18: 14 | C18: BunS | D18: 5 | E18: 10 | F18: 50 | G18: 3.5 | H18: 20 | I18: 70 | J18: 2 | K18: 15 | L18: 30 | M18: 5 | N18: 15 | O18: 75 | P18: 7 | Q18: 105 | R18: 5 | S18: 15 | T18: 75 | U18: 2 | V18: 15 | W18: 30 | X18: 2 | Y18: 20 | Z18: 40 | AA18: 0 | AB18: 10 | AC18: 0 | AD18: 6 | AE18: 1 | AF18: 115 | AG18: 38.5 | AH18: 590
B19: 15 | C19: Netīrs netīrs | D19: 3 | E19: 15 | F19: 45 | G19: 3 | H19: 15 | I19: 45 | J19: 1 | K19: 10 | L19: 10 | M19: 5 | N19: 20 | O19: 100 | P19: 6 | Q19: 90 | R19: 5 | S19: 20 | T19: 100 | U19: 4 | V19: 10 | W19: 40 | X19: 6 | Y19: 15 | Z19: 90 | AA19: 2 | AB19: 15 | AC19: 30 | AD19: 2 | AE19: 0 | AF19: 30 | AG19: 37 | AH19: 580
B20: 16 | C20: =#REF! ->  | E20: =VLOOKUP(C20,#REF!,2,FALSE) ->  | F20: =D20*E20 ->  | H20: =VLOOKUP(C20,#REF!,3,FALSE) ->  | I20: =G20*H20 ->  | K20: =VLOOKUP(C20,#REF!,4,FALSE) ->  | L20: =J20*K20 ->  | N20: =VLOOKUP(C20,#REF!,5,FALSE) ->  | O20: =M20*N20 ->  | Q20: =P20*15 -> 0 | S20: =VLOOKUP(C20,#REF!,2,FALSE) ->  | T20: =R20*S20 ->  | V20: =VLOOKUP(C20,#REF!,3,FALSE) ->  | W20: =U20*V20 ->  | Y20: =VLOOKUP(C20,#REF!,4,FALSE) ->  | Z20: =X20*Y20 ->  | AB20: =VLOOKUP(C20,#REF!,5,FALSE) ->  | AC20: =AA20*AB20 ->  | AF20: =AD20*15+AE20*25 -> 0 | AG20: =D20+G20+J20+M20+R20+U20+X20+AA20+AD20+AE20+P20 -> 0 | AH20: =F20+I20+L20+O20+Q20+T20+W20+Z20+AC20+AF20 -> 
B21: 17 | C21: =#REF! ->  | E21: =VLOOKUP(C21,#REF!,2,FALSE) ->  | H21: =VLOOKUP(C21,#REF!,3,FALSE) ->  | K21: =VLOOKUP(C21,#REF!,4,FALSE) ->  | N21: =VLOOKUP(C21,#REF!,5,FALSE) ->  | Q21: 0 | S21: =VLOOKUP(C21,#REF!,2,FALSE) ->  | V21: =VLOOKUP(C21,#REF!,3,FALSE) ->  | Y21: =VLOOKUP(C21,#REF!,4,FALSE) ->  | AB21: =VLOOKUP(C21,#REF!,5,FALSE) ->  | AF21: 0 | AG21: 0
B22: 18 | C22: =#REF! ->  | E22: =VLOOKUP(C22,#REF!,2,FALSE) ->  | H22: =VLOOKUP(C22,#REF!,3,FALSE) ->  | K22: =VLOOKUP(C22,#REF!,4,FALSE) ->  | N22: =VLOOKUP(C22,#REF!,5,FALSE) ->  | Q22: 0 | S22: =VLOOKUP(C22,#REF!,2,FALSE) ->  | V22: =VLOOKUP(C22,#REF!,3,FALSE) ->  | Y22: =VLOOKUP(C22,#REF!,4,FALSE) ->  | AB22: =VLOOKUP(C22,#REF!,5,FALSE) ->  | AF22: 0 | AG22: 0
B23: 19 | C23: =#REF! ->  | E23: =VLOOKUP(C23,#REF!,2,FALSE) ->  | H23: =VLOOKUP(C23,#REF!,3,FALSE) ->  | K23: =VLOOKUP(C23,#REF!,4,FALSE) ->  | N23: =VLOOKUP(C23,#REF!,5,FALSE) ->  | Q23: 0 | S23: =VLOOKUP(C23,#REF!,2,FALSE) ->  | V23: =VLOOKUP(C23,#REF!,3,FALSE) ->  | Y23: =VLOOKUP(C23,#REF!,4,FALSE) ->  | AB23: =VLOOKUP(C23,#REF!,5,FALSE) ->  | AF23: 0 | AG23: 0
B24: 20 | C24: =#REF! ->  | E24: =VLOOKUP(C24,#REF!,2,FALSE) ->  | H24: =VLOOKUP(C24,#REF!,3,FALSE) ->  | K24: =VLOOKUP(C24,#REF!,4,FALSE) ->  | N24: =VLOOKUP(C24,#REF!,5,FALSE) ->  | Q24: 0 | S24: =VLOOKUP(C24,#REF!,2,FALSE) ->  | V24: =VLOOKUP(C24,#REF!,3,FALSE) ->  | Y24: =VLOOKUP(C24,#REF!,4,FALSE) ->  | AB24: =VLOOKUP(C24,#REF!,5,FALSE) ->  | AF24: 0 | AG24: 0
B25: 21 | C25: =#REF! ->  | E25: =VLOOKUP(C25,#REF!,2,FALSE) ->  | H25: =VLOOKUP(C25,#REF!,3,FALSE) ->  | K25: =VLOOKUP(C25,#REF!,4,FALSE) ->  | N25: =VLOOKUP(C25,#REF!,5,FALSE) ->  | Q25: 0 | S25: =VLOOKUP(C25,#REF!,2,FALSE) ->  | V25: =VLOOKUP(C25,#REF!,3,FALSE) ->  | Y25: =VLOOKUP(C25,#REF!,4,FALSE) ->  | AB25: =VLOOKUP(C25,#REF!,5,FALSE) ->  | AF25: 0 | AG25: 0

Sheet LV2k3g (hidden)
C2: "Lielā viktorīna" | 2.kārta | 3.grupa - 2025.gada 5.februāris
B4: # | C4: Komandas / Raundi | D4: 1 | G4: 2 | J4: 3 | M4: 4 | P4: 5 | R4: 6 | U4: 7 | X4: 8 | AA4: 9 | AD4: 10 | AG4: KOPĀ
B5: 1 | C5: Baltijas jūras izsmelšanas b. | D5: 6 | E5: 15 | F5: 90 | G5: 4 | H5: 15 | I5: 60 | J5: 4 | K5: 10 | L5: 40 | M5: 5 | N5: 20 | O5: 100 | P5: 8 | Q5: 120 | R5: 6 | S5: 15 | T5: 90 | U5: 4 | V5: 15 | W5: 60 | X5: 6 | Y5: 10 | Z5: 60 | AA5: 5 | AB5: 20 | AC5: 100 | AD5: 4 | AE5: 1 | AF5: 85 | AG5: 53 | AH5: 805
B6: 2 | C6: Jon BorJomi | D6: 5 | E6: 15 | F6: 75 | G6: 3.5 | H6: 10 | I6: 35 | J6: 4 | K6: 15 | L6: 60 | M6: 5 | N6: 20 | O6: 100 | P6: 8 | Q6: 120 | R6: 5 | S6: 15 | T6: 75 | U6: 4 | V6: 15 | W6: 60 | X6: 6 | Y6: 20 | Z6: 120 | AA6: 4 | AB6: 10 | AC6: 40 | AD6: 5 | AE6: 1 | AF6: 100 | AG6: 50.5 | AH6: 785
B7: 3 | C7: Mežpils miglā | D7: 5 | E7: 15 | F7: 75 | G7: 5 | H7: 15 | I7: 75 | J7: 6 | K7: 10 | L7: 60 | M7: 5 | N7: 20 | O7: 100 | P7: 8 | Q7: 120 | R7: 5 | S7: 20 | T7: 100 | U7: 2 | V7: 15 | W7: 30 | X7: 4 | Y7: 15 | Z7: 60 | AA7: 3 | AB7: 10 | AC7: 30 | AD7: 6 | AE7: 1 | AF7: 115 | AG7: 50 | AH7: 765
B8: 4 | C8: Zinātāji | D8: 5 | E8: 15 | F8: 75 | G8: 4 | H8: 15 | I8: 60 | J8: 3 | K8: 10 | L8: 30 | M8: 4 | N8: 20 | O8: 80 | P8: 8 | Q8: 120 | R8: 5 | S8: 15 | T8: 75 | U8: 4 | V8: 20 | W8: 80 | X8: 5 | Y8: 15 | Z8: 75 | AA8: 1 | AB8: 10 | AC8: 10 | AD8: 7 | AE8: 1 | AF8: 130 | AG8: 47 | AH8: 735
B9: 5 | C9: Ansamblis X | D9: 2 | E9: 15 | F9: 30 | G9: 4.5 | H9: 15 | I9: 67.5 | J9: 4 | K9: 10 | L9: 40 | M9: 5 | N9: 20 | O9: 100 | P9: 8 | Q9: 120 | R9: 5 | S9: 15 | T9: 75 | U9: 3 | V9: 15 | W9: 45 | X9: 5 | Y9: 20 | Z9: 100 | AA9: 1 | AB9: 10 | AC9: 10 | AD9: 7 | AE9: 1 | AF9: 130 | AG9: 45.5 | AH9: 717.5
B10: 6 | C10: Animāļi | D10: 3 | E10: 15 | F10: 45 | G10: 4 | H10: 15 | I10: 60 | J10: 5 | K10: 10 | L10: 50 | M10: 5 | N10: 20 | O10: 100 | P10: 8 | Q10: 120 | R10: 6 | S10: 15 | T10: 90 | U10: 2 | V10: 20 | W10: 40 | X10: 6 | Y10: 15 | Z10: 90 | AA10: 4 | AB10: 10 | AC10: 40 | AD10: 5 | AE10: 0 | AF10: 75 | AG10: 48 | AH10: 710
B11: 7 | C11: Slagūnes Metalurgs | D11: 4 | E11: 15 | F11: 60 | G11: 4 | H11: 15 | I11: 60 | J11: 1 | K11: 10 | L11: 10 | M11: 5 | N11: 20 | O11: 100 | P11: 6 | Q11: 90 | R11: 5 | S11: 15 | T11: 75 | U11: 3 | V11: 20 | W11: 60 | X11: 6 | Y11: 15 | Z11: 90 | AA11: 5 | AB11: 10 | AC11: 50 | AD11: 5 | AE11: 1 | AF11: 100 | AG11: 45 | AH11: 695
B12: 8 | C12: Bugatti Veyron | D12: 1 | E12: 15 | F12: 15 | G12: 2 | H12: 15 | I12: 30 | J12: 3 | K12: 10 | L12: 30 | M12: 5 | N12: 20 | O12: 100 | P12: 8 | Q12: 120 | R12: 4 | S12: 15 | T12: 60 | U12: 4 | V12: 10 | W12: 40 | X12: 6 | Y12: 15 | Z12: 90 | AA12: 4 | AB12: 20 | AC12: 80 | AD12: 6 | AE12: 1 | AF12: 115 | AG12: 44 | AH12: 680
B13: 9 | C13: Putekļi uz grāmatām | D13: 4 | E13: 15 | F13: 60 | G13: 5.5 | H13: 15 | I13: 82.5 | J13: 4 | K13: 10 | L13: 40 | M13: 5 | N13: 20 | O13: 100 | P13: 4 | Q13: 60 | R13: 4 | S13: 15 | T13: 60 | U13: 3 | V13: 15 | W13: 45 | X13: 6 | Y13: 20 | Z13: 120 | AA13: 5 | AB13: 10 | AC13: 50 | AD13: 4 | AE13: 0 | AF13: 60 | AG13: 44.5 | AH13: 677.5
B14: 10 | C14: Hektora saime | D14: 2 | E14: 15 | F14: 30 | G14: 4 | H14: 15 | I14: 60 | J14: 1 | K14: 10 | L14: 10 | M14: 6 | N14: 20 | O14: 120 | P14: 5 | Q14: 75 | R14: 5 | S14: 15 | T14: 75 | U14: 2 | V14: 15 | W14: 30 | X14: 5 | Y14: 20 | Z14: 100 | AA14: 3 | AB14: 10 | AC14: 30 | AD14: 2 | AE14: 1 | AF14: 55 | AG14: 36 | AH14: 585
B15: 11 | C15: Bez Agritas | D15: 2 | E15: 20 | F15: 40 | G15: 2 | H15: 15 | I15: 30 | J15: 1 | K15: 10 | L15: 10 | M15: 5 | N15: 15 | O15: 75 | P15: 5 | Q15: 75 | R15: 5 | S15: 20 | T15: 100 | U15: 3 | V15: 15 | W15: 45 | X15: 5 | Y15: 15 | Z15: 75 | AA15: 3 | AB15: 10 | AC15: 30 | AD15: 5 | AE15: 1 | AF15: 100 | AG15: 37 | AH15: 580
B16: 12 | C16: Fiasko | D16: 3 | E16: 15 | F16: 45 | G16: 2 | H16: 15 | I16: 30 | J16: 2 | K16: 10 | L16: 20 | M16: 4 | N16: 20 | O16: 80 | P16: 3 | Q16: 45 | R16: 6 | S16: 20 | T16: 120 | U16: 2 | V16: 15 | W16: 30 | X16: 5 | Y16: 15 | Z16: 75 | AA16: 3 | AB16: 10 | AC16: 30 | AD16: 3 | AE16: 1 | AF16: 70 | AG16: 34 | AH16: 545
B17: 13 | C17: Te tikai Dieviņš palīdzēs | D17: 3 | E17: 10 | F17: 30 | G17: 2 | H17: 15 | I17: 30 | J17: 1 | K17: 15 | L17: 15 | M17: 4 | N17: 20 | O17: 80 | P17: 4 | Q17: 60 | R17: 5 | S17: 15 | T17: 75 | U17: 2 | V17: 10 | W17: 20 | X17: 5 | Y17: 15 | Z17: 75 | AA17: 6 | AB17: 20 | AC17: 120 | AD17: 2 | AE17: 0 | AF17: 30 | AG17: 34 | AH17: 535
B18: 14 | C18: No one | D18: 2 | E18: 15 | F18: 30 | G18: 2 | H18: 10 | I18: 20 | J18: 3 | K18: 15 | L18: 45 | M18: 3 | N18: 20 | O18: 60 | P18: 1 | Q18: 15 | R18: 5 | S18: 15 | T18: 75 | U18: 1 | V18: 10 | W18: 10 | X18: 5 | Y18: 20 | Z18: 100 | AA18: 0 | AB18: 15 | AC18: 0 | AD18: 2 | AE18: 0 | AF18: 30 | AG18: 24 | AH18: 385
B19: 15 | C19: =#REF! ->  | E19: =VLOOKUP(C19,#REF!,2,FALSE) ->  | F19: =D19*E19 ->  | H19: =VLOOKUP(C19,#REF!,3,FALSE) ->  | I19: =G19*H19 ->  | K19: =VLOOKUP(C19,#REF!,4,FALSE) ->  | L19: =J19*K19 ->  | N19: =VLOOKUP(C19,#REF!,5,FALSE) ->  | O19: =M19*N19 ->  | Q19: =P19*15 -> 0 | S19: =VLOOKUP(C19,#REF!,2,FALSE) ->  | T19: =R19*S19 ->  | V19: =VLOOKUP(C19,#REF!,3,FALSE) ->  | W19: =U19*V19 ->  | Y19: =VLOOKUP(C19,#REF!,4,FALSE) ->  | Z19: =X19*Y19 ->  | AB19: =VLOOKUP(C19,#REF!,5,FALSE) ->  | AC19: =AA19*AB19 ->  | AF19: =AD19*15+AE19*25 -> 0 | AG19: =D19+G19+J19+M19+R19+U19+X19+AA19+AD19+AE19+P19 -> 0 | AH19: =F19+I19+L19+O19+Q19+T19+W19+Z19+AC19+AF19 -> 
B20: 16 | C20: =#REF! ->  | E20: =VLOOKUP(C20,#REF!,2,FALSE) ->  | H20: =VLOOKUP(C20,#REF!,3,FALSE) ->  | K20: =VLOOKUP(C20,#REF!,4,FALSE) ->  | N20: =VLOOKUP(C20,#REF!,5,FALSE) ->  | Q20: 0 | S20: =VLOOKUP(C20,#REF!,2,FALSE) ->  | V20: =VLOOKUP(C20,#REF!,3,FALSE) ->  | Y20: =VLOOKUP(C20,#REF!,4,FALSE) ->  | AB20: =VLOOKUP(C20,#REF!,5,FALSE) ->  | AF20: 0 | AG20: 0
B21: 17 | C21: =#REF! ->  | E21: =VLOOKUP(C21,#REF!,2,FALSE) ->  | H21: =VLOOKUP(C21,#REF!,3,FALSE) ->  | K21: =VLOOKUP(C21,#REF!,4,FALSE) ->  | N21: =VLOOKUP(C21,#REF!,5,FALSE) ->  | Q21: 0 | S21: =VLOOKUP(C21,#REF!,2,FALSE) ->  | V21: =VLOOKUP(C21,#REF!,3,FALSE) ->  | Y21: =VLOOKUP(C21,#REF!,4,FALSE) ->  | AB21: =VLOOKUP(C21,#REF!,5,FALSE) ->  | AF21: 0 | AG21: 0
B22: 18 | C22: =#REF! ->  | E22: =VLOOKUP(C22,#REF!,2,FALSE) ->  | H22: =VLOOKUP(C22,#REF!,3,FALSE) ->  | K22: =VLOOKUP(C22,#REF!,4,FALSE) ->  | N22: =VLOOKUP(C22,#REF!,5,FALSE) ->  | Q22: 0 | S22: =VLOOKUP(C22,#REF!,2,FALSE) ->  | V22: =VLOOKUP(C22,#REF!,3,FALSE) ->  | Y22: =VLOOKUP(C22,#REF!,4,FALSE) ->  | AB22: =VLOOKUP(C22,#REF!,5,FALSE) ->  | AF22: 0 | AG22: 0
B23: 19 | C23: =#REF! ->  | E23: =VLOOKUP(C23,#REF!,2,FALSE) ->  | H23: =VLOOKUP(C23,#REF!,3,FALSE) ->  | K23: =VLOOKUP(C23,#REF!,4,FALSE) ->  | N23: =VLOOKUP(C23,#REF!,5,FALSE) ->  | Q23: 0 | S23: =VLOOKUP(C23,#REF!,2,FALSE) ->  | V23: =VLOOKUP(C23,#REF!,3,FALSE) ->  | Y23: =VLOOKUP(C23,#REF!,4,FALSE) ->  | AB23: =VLOOKUP(C23,#REF!,5,FALSE) ->  | AF23: 0 | AG23: 0
B24: 20 | C24: =#REF! ->  | E24: =VLOOKUP(C24,#REF!,2,FALSE) ->  | H24: =VLOOKUP(C24,#REF!,3,FALSE) ->  | K24: =VLOOKUP(C24,#REF!,4,FALSE) ->  | N24: =VLOOKUP(C24,#REF!,5,FALSE) ->  | Q24: 0 | S24: =VLOOKUP(C24,#REF!,2,FALSE) ->  | V24: =VLOOKUP(C24,#REF!,3,FALSE) ->  | Y24: =VLOOKUP(C24,#REF!,4,FALSE) ->  | AB24: =VLOOKUP(C24,#REF!,5,FALSE) ->  | AF24: 0 | AG24: 0
B25: 21 | C25: =#REF! ->  | E25: =VLOOKUP(C25,#REF!,2,FALSE) ->  | H25: =VLOOKUP(C25,#REF!,3,FALSE) ->  | K25: =VLOOKUP(C25,#REF!,4,FALSE) ->  | N25: =VLOOKUP(C25,#REF!,5,FALSE) ->  | Q25: 0 | S25: =VLOOKUP(C25,#REF!,2,FALSE) ->  | V25: =VLOOKUP(C25,#REF!,3,FALSE) ->  | Y25: =VLOOKUP(C25,#REF!,4,FALSE) ->  | AB25: =VLOOKUP(C25,#REF!,5,FALSE) ->  | AF25: 0 | AG25: 0

Sheet Lv2k4g (hidden)
C2: ='F1'!B2 -> Sporta viktorīnas speciālizlaidums | F1 viktorīna | 2025.gada 13.augusts
B4: # | C4: Komandas / Raundi | D4: 1 | G4: 2 | J4: 3 | M4: 4 | P4: 5 | R4: 6 | U4: 7 | X4: 8 | AA4: 9 | AD4: 10 | AG4: KOPĀ
B5: 1 | C5: Trombons un citas problēmas | D5: 6 | E5: 15 | F5: 90 | G5: 3 | H5: 10 | I5: 30 | J5: 3 | K5: 15 | L5: 45 | M5: 6 | N5: 20 | O5: 120 | P5: 8 | Q5: 120 | R5: 6 | S5: 10 | T5: 60 | U5: 5 | V5: 15 | W5: 75 | X5: 6 | Y5: 20 | Z5: 120 | AA5: 5 | AB5: 15 | AC5: 75 | AD5: 7 | AE5: 1 | AF5: 130 | AG5: 56 | AH5: 865
B6: 2 | C6: Žeņšeņa borščs | D6: 5 | E6: 15 | F6: 75 | G6: 5 | H6: 10 | I6: 50 | J6: 4 | K6: 15 | L6: 60 | M6: 6 | N6: 20 | O6: 120 | P6: 8 | Q6: 120 | R6: 5 | S6: 15 | T6: 75 | U6: 3 | V6: 15 | W6: 45 | X6: 6 | Y6: 10 | Z6: 60 | AA6: 6 | AB6: 20 | AC6: 120 | AD6: 7 | AE6: 1 | AF6: 130 | AG6: 56 | AH6: 855
B7: 3 | C7: Āreče | D7: 6 | E7: 20 | F7: 120 | G7: 4.5 | H7: 15 | I7: 67.5 | J7: 4 | K7: 10 | L7: 40 | M7: 5 | N7: 15 | O7: 75 | P7: 8 | Q7: 120 | R7: 6 | S7: 10 | T7: 60 | U7: 3 | V7: 15 | W7: 45 | X7: 6 | Y7: 20 | Z7: 120 | AA7: 5 | AB7: 15 | AC7: 75 | AD7: 7 | AE7: 1 | AF7: 130 | AG7: 55.5 | AH7: 852.5
B8: 4 | C8: Aģenti | D8: 3 | E8: 15 | F8: 45 | G8: 3.5 | H8: 10 | I8: 35 | J8: 4 | K8: 15 | L8: 60 | M8: 5 | N8: 20 | O8: 100 | P8: 8 | Q8: 120 | R8: 5 | S8: 15 | T8: 75 | U8: 6 | V8: 15 | W8: 90 | X8: 5 | Y8: 10 | Z8: 50 | AA8: 6 | AB8: 20 | AC8: 120 | AD8: 7 | AE8: 1 | AF8: 130 | AG8: 53.5 | AH8: 825
B9: 5 | C9: AC Seda | D9: 5 | E9: 15 | F9: 75 | G9: 5.5 | H9: 10 | I9: 55 | J9: 4 | K9: 15 | L9: 60 | M9: 6 | N9: 20 | O9: 120 | P9: 8 | Q9: 120 | R9: 5 | S9: 15 | T9: 75 | U9: 3 | V9: 15 | W9: 45 | X9: 5 | Y9: 20 | Z9: 100 | AA9: 4 | AB9: 10 | AC9: 40 | AD9: 7 | AE9: 1 | AF9: 130 | AG9: 53.5 | AH9: 820
B10: 6 | C10: kOzis | D10: 2 | E10: 15 | F10: 30 | G10: 4 | H10: 15 | I10: 60 | J10: 5 | K10: 10 | L10: 50 | M10: 6 | N10: 20 | O10: 120 | P10: 8 | Q10: 120 | R10: 6 | S10: 20 | T10: 120 | U10: 2 | V10: 15 | W10: 30 | X10: 5 | Y10: 10 | Z10: 50 | AA10: 6 | AB10: 15 | AC10: 90 | AD10: 4 | AE10: 1 | AF10: 85 | AG10: 49 | AH10: 755
B11: 7 | C11: Gaujas hiēnas | D11: 5 | E11: 10 | F11: 50 | G11: 3.5 | H11: 15 | I11: 52.5 | J11: 3 | K11: 15 | L11: 45 | M11: 6 | N11: 20 | O11: 120 | P11: 7 | Q11: 105 | R11: 5 | S11: 15 | T11: 75 | U11: 2 | V11: 15 | W11: 30 | X11: 5 | Y11: 20 | Z11: 100 | AA11: 4 | AB11: 10 | AC11: 40 | AD11: 7 | AE11: 1 | AF11: 130 | AG11: 48.5 | AH11: 747.5
B12: 8 | C12: Amatieru pietura | D12: 2 | E12: 15 | F12: 30 | G12: 4 | H12: 10 | I12: 40 | J12: 4 | K12: 20 | L12: 80 | M12: 5 | N12: 15 | O12: 75 | P12: 7 | Q12: 105 | R12: 5 | S12: 15 | T12: 75 | U12: 5 | V12: 20 | W12: 100 | X12: 5 | Y12: 10 | Z12: 50 | AA12: 4 | AB12: 15 | AC12: 60 | AD12: 6 | AE12: 1 | AF12: 115 | AG12: 48 | AH12: 730
B13: 9 | C13: Prāta eklektika | D13: 5 | E13: 15 | F13: 75 | G13: 3.5 | H13: 10 | I13: 35 | J13: 4 | K13: 20 | L13: 80 | M13: 4 | N13: 15 | O13: 60 | P13: 8 | Q13: 120 | R13: 6 | S13: 15 | T13: 90 | U13: 3 | V13: 20 | W13: 60 | X13: 4 | Y13: 15 | Z13: 60 | AA13: 2 | AB13: 10 | AC13: 20 | AD13: 7 | AE13: 1 | AF13: 130 | AG13: 47.5 | AH13: 730
B14: 10 | C14: Džokers un pieci dūži | D14: 5 | E14: 15 | F14: 75 | G14: 4 | H14: 10 | I14: 40 | J14: 4 | K14: 15 | L14: 60 | M14: 4 | N14: 20 | O14: 80 | P14: 8 | Q14: 120 | R14: 5 | S14: 15 | T14: 75 | U14: 4 | V14: 15 | W14: 60 | X14: 4 | Y14: 20 | Z14: 80 | AA14: 1 | AB14: 10 | AC14: 10 | AD14: 7 | AE14: 1 | AF14: 130 | AG14: 47 | AH14: 730
B15: 11 | C15: Gurinētie Marķīši | D15: 5 | E15: 15 | F15: 75 | G15: 3.5 | H15: 20 | I15: 70 | J15: 3 | K15: 10 | L15: 30 | M15: 6 | N15: 15 | O15: 90 | P15: 4 | Q15: 60 | R15: 5 | S15: 15 | T15: 75 | U15: 2 | V15: 10 | W15: 20 | X15: 6 | Y15: 20 | Z15: 120 | AA15: 4 | AB15: 15 | AC15: 60 | AD15: 7 | AE15: 1 | AF15: 130 | AG15: 46.5 | AH15: 730
B16: 12 | C16: Atbilde ir 42 | D16: 0.5 | E16: 15 | F16: 7.5 | G16: 4 | H16: 15 | I16: 60 | J16: 4 | K16: 10 | L16: 40 | M16: 5 | N16: 20 | O16: 100 | P16: 8 | Q16: 120 | R16: 5 | S16: 20 | T16: 100 | U16: 4 | V16: 15 | W16: 60 | X16: 4 | Y16: 15 | Z16: 60 | AA16: 4 | AB16: 10 | AC16: 40 | AD16: 6 | AE16: 1 | AF16: 115 | AG16: 45.5 | AH16: 702.5
B17: 13 | C17: Kukuržņi | D17: 2.5 | E17: 20 | F17: 50 | G17: 4 | H17: 15 | I17: 60 | J17: 0 | K17: 10 | L17: 0 | M17: 4 | N17: 15 | O17: 60 | P17: 7 | Q17: 105 | R17: 5 | S17: 15 | T17: 75 | U17: 2 | V17: 15 | W17: 30 | X17: 5 | Y17: 20 | Z17: 100 | AA17: 4 | AB17: 10 | AC17: 40 | AD17: 5 | AE17: 1 | AF17: 100 | AG17: 39.5 | AH17: 620
B18: 14 | C18: Domājam nosaukumu | D18: 3 | E18: 20 | F18: 60 | G18: 2.5 | H18: 10 | I18: 25 | J18: 3 | K18: 15 | L18: 45 | M18: 4 | N18: 15 | O18: 60 | P18: 4 | Q18: 60 | R18: 5 | S18: 15 | T18: 75 | U18: 3 | V18: 20 | W18: 60 | X18: 2 | Y18: 15 | Z18: 30 | AA18: 3 | AB18: 10 | AC18: 30 | AD18: 7 | AE18: 1 | AF18: 130 | AG18: 37.5 | AH18: 575
B19: 15 | C19: Pa zoino | D19: 3 | E19: 15 | F19: 45 | G19: 5.5 | H19: 15 | I19: 82.5 | J19: 1 | K19: 10 | L19: 10 | M19: 5 | N19: 20 | O19: 100 | P19: 5 | Q19: 75 | R19: 5 | S19: 15 | T19: 75 | U19: 2 | V19: 15 | W19: 30 | X19: 1 | Y19: 10 | Z19: 10 | AA19: 4 | AB19: 20 | AC19: 80 | AD19: 3 | AE19: 0 | AF19: 45 | AG19: 34.5 | AH19: 552.5
B20: 16 | C20: =#REF! ->  | E20: =VLOOKUP(C20,#REF!,2,FALSE) ->  | F20: =D20*E20 ->  | H20: =VLOOKUP(C20,#REF!,3,FALSE) ->  | I20: =G20*H20 ->  | K20: =VLOOKUP(C20,#REF!,4,FALSE) ->  | L20: =J20*K20 ->  | N20: =VLOOKUP(C20,#REF!,5,FALSE) ->  | O20: =M20*N20 ->  | Q20: =P20*15 -> 0 | S20: =VLOOKUP(C20,#REF!,2,FALSE) ->  | T20: =R20*S20 ->  | V20: =VLOOKUP(C20,#REF!,3,FALSE) ->  | W20: =U20*V20 ->  | Y20: =VLOOKUP(C20,#REF!,4,FALSE) ->  | Z20: =X20*Y20 ->  | AB20: =VLOOKUP(C20,#REF!,5,FALSE) ->  | AC20: =AA20*AB20 ->  | AF20: =AD20*15+AE20*25 -> 0 | AG20: =D20+G20+J20+M20+R20+U20+X20+AA20+AD20+AE20+P20 -> 0 | AH20: =F20+I20+L20+O20+Q20+T20+W20+Z20+AC20+AF20 -> 
B21: 17 | C21: =#REF! ->  | E21: =VLOOKUP(C21,#REF!,2,FALSE) ->  | H21: =VLOOKUP(C21,#REF!,3,FALSE) ->  | K21: =VLOOKUP(C21,#REF!,4,FALSE) ->  | N21: =VLOOKUP(C21,#REF!,5,FALSE) ->  | Q21: 0 | S21: =VLOOKUP(C21,#REF!,2,FALSE) ->  | V21: =VLOOKUP(C21,#REF!,3,FALSE) ->  | Y21: =VLOOKUP(C21,#REF!,4,FALSE) ->  | AB21: =VLOOKUP(C21,#REF!,5,FALSE) ->  | AF21: 0 | AG21: 0
B22: 18 | C22: =#REF! ->  | E22: =VLOOKUP(C22,#REF!,2,FALSE) ->  | H22: =VLOOKUP(C22,#REF!,3,FALSE) ->  | K22: =VLOOKUP(C22,#REF!,4,FALSE) ->  | N22: =VLOOKUP(C22,#REF!,5,FALSE) ->  | Q22: 0 | S22: =VLOOKUP(C22,#REF!,2,FALSE) ->  | V22: =VLOOKUP(C22,#REF!,3,FALSE) ->  | Y22: =VLOOKUP(C22,#REF!,4,FALSE) ->  | AB22: =VLOOKUP(C22,#REF!,5,FALSE) ->  | AF22: 0 | AG22: 0
B23: 19 | C23: =#REF! ->  | E23: =VLOOKUP(C23,#REF!,2,FALSE) ->  | H23: =VLOOKUP(C23,#REF!,3,FALSE) ->  | K23: =VLOOKUP(C23,#REF!,4,FALSE) ->  | N23: =VLOOKUP(C23,#REF!,5,FALSE) ->  | Q23: 0 | S23: =VLOOKUP(C23,#REF!,2,FALSE) ->  | V23: =VLOOKUP(C23,#REF!,3,FALSE) ->  | Y23: =VLOOKUP(C23,#REF!,4,FALSE) ->  | AB23: =VLOOKUP(C23,#REF!,5,FALSE) ->  | AF23: 0 | AG23: 0
B24: 20 | C24: =#REF! ->  | E24: =VLOOKUP(C24,#REF!,2,FALSE) ->  | H24: =VLOOKUP(C24,#REF!,3,FALSE) ->  | K24: =VLOOKUP(C24,#REF!,4,FALSE) ->  | N24: =VLOOKUP(C24,#REF!,5,FALSE) ->  | Q24: 0 | S24: =VLOOKUP(C24,#REF!,2,FALSE) ->  | V24: =VLOOKUP(C24,#REF!,3,FALSE) ->  | Y24: =VLOOKUP(C24,#REF!,4,FALSE) ->  | AB24: =VLOOKUP(C24,#REF!,5,FALSE) ->  | AF24: 0 | AG24: 0
B25: 21 | C25: =#REF! ->  | E25: =VLOOKUP(C25,#REF!,2,FALSE) ->  | H25: =VLOOKUP(C25,#REF!,3,FALSE) ->  | K25: =VLOOKUP(C25,#REF!,4,FALSE) ->  | N25: =VLOOKUP(C25,#REF!,5,FALSE) ->  | Q25: 0 | S25: =VLOOKUP(C25,#REF!,2,FALSE) ->  | V25: =VLOOKUP(C25,#REF!,3,FALSE) ->  | Y25: =VLOOKUP(C25,#REF!,4,FALSE) ->  | AB25: =VLOOKUP(C25,#REF!,5,FALSE) ->  | AF25: 0 | AG25: 0

Sheet 2kkopv (hidden)
C2: 2.kārtas kopvērtējums | 27. un 28.janvāris
B4: # | C4: Komandas / Raundi | D4: Valstis uz K, Ķ burta | G4: Latviešu hokejisti | J4: Video | M4: Profesionālām mājsaimniecēm | P4: Ķēde | R4: Sporta karalis | U4: Eirolīgas NBA džeki | X4: Ārpus kastes | AA4: Neolimpiskie sporta veidi | AD4: Anagramma | AG4: KOPĀ
B5: 1 | C5: Japānas beisbola izlase | D5: 6 | E5: 15 | F5: 90 | G5: 6 | H5: 20 | I5: 120 | J5: 4 | K5: 10 | L5: 40 | M5: 5 | N5: 15 | O5: 75 | P5: 8 | Q5: 120 | R5: 5 | S5: 20 | T5: 100 | U5: 5 | V5: 10 | W5: 50 | X5: 5 | Y5: 15 | Z5: 75 | AA5: 5.5 | AB5: 15 | AC5: 82.5 | AD5: 7 | AE5: 1 | AF5: 130 | AG5: 57.5 | AH5: 882.5
B6: 2 | C6: Diskusiju klubiņš | D6: 5.5 | E6: 15 | F6: 82.5 | G6: 4.5 | H6: 10 | I6: 45 | J6: 5 | K6: 15 | L6: 75 | M6: 5 | N6: 20 | O6: 100 | P6: 8 | Q6: 120 | R6: 3 | S6: 10 | T6: 30 | U6: 6 | V6: 15 | W6: 90 | X6: 5 | Y6: 15 | Z6: 75 | AA6: 5 | AB6: 20 | AC6: 100 | AD6: 7 | AE6: 1 | AF6: 130 | AG6: 55 | AH6: 847.5
B7: 3 | C7: Stosi | D7: 6 | E7: 15 | F7: 90 | G7: 5 | H7: 15 | I7: 75 | J7: 5 | K7: 10 | L7: 50 | M7: 6 | N7: 20 | O7: 120 | P7: 8 | Q7: 120 | R7: 4 | S7: 15 | T7: 60 | U7: 6 | V7: 15 | W7: 90 | X7: 4 | Y7: 10 | Z7: 40 | AA7: 6 | AB7: 20 | AC7: 120 | AD7: 5 | AE7: 0 | AF7: 75 | AG7: 55 | AH7: 840
B8: 4 | C8: Zigfrīds Muktupāvels | D8: 6 | E8: 15 | F8: 90 | G8: 4.5 | H8: 20 | I8: 90 | J8: 5 | K8: 10 | L8: 50 | M8: 5 | N8: 15 | O8: 75 | P8: 8 | Q8: 120 | R8: 5 | S8: 15 | T8: 75 | U8: 5 | V8: 10 | W8: 50 | X8: 5 | Y8: 15 | Z8: 75 | AA8: 5 | AB8: 20 | AC8: 100 | AD8: 6 | AE8: 0 | AF8: 90 | AG8: 54.5 | AH8: 815
B9: 5 | C9: Dīvānueksperti.lv | D9: 6 | E9: 15 | F9: 90 | G9: 5 | H9: 10 | I9: 50 | J9: 5 | K9: 15 | L9: 75 | M9: 6 | N9: 20 | O9: 120 | P9: 7 | Q9: 105 | R9: 5 | S9: 15 | T9: 75 | U9: 5 | V9: 15 | W9: 75 | X9: 5 | Y9: 20 | Z9: 100 | AA9: 5 | AB9: 10 | AC9: 50 | AD9: 5 | AE9: 0 | AF9: 75 | AG9: 54 | AH9: 815
B10: 6 | C10: Alus zaldāti | D10: 5 | E10: 10 | F10: 50 | G10: 5 | H10: 15 | I10: 75 | J10: 6 | K10: 15 | L10: 90 | M10: 6 | N10: 20 | O10: 120 | P10: 8 | Q10: 120 | R10: 3 | S10: 15 | T10: 45 | U10: 6 | V10: 20 | W10: 120 | X10: 4 | Y10: 15 | Z10: 60 | AA10: 4 | AB10: 10 | AC10: 40 | AD10: 6 | AE10: 0 | AF10: 90 | AG10: 53 | AH10: 810
B11: 7 | C11: Baltais gailis | D11: 4 | E11: 15 | F11: 60 | G11: 2 | H11: 10 | I11: 20 | J11: 4 | K11: 15 | L11: 60 | M11: 4 | N11: 20 | O11: 80 | P11: 8 | Q11: 120 | R11: 5 | S11: 15 | T11: 75 | U11: 5 | V11: 15 | W11: 75 | X11: 3 | Y11: 10 | Z11: 30 | AA11: 6 | AB11: 20 | AC11: 120 | AD11: 7 | AE11: 1 | AF11: 130 | AG11: 49 | AH11: 770
B12: 8 | C12: Karaliskais kronis | D12: 4.5 | E12: 15 | F12: 67.5 | G12: 4.5 | H12: 20 | I12: 90 | J12: 4 | K12: 10 | L12: 40 | M12: 5 | N12: 15 | O12: 75 | P12: 8 | Q12: 120 | R12: 3 | S12: 20 | T12: 60 | U12: 5 | V12: 15 | W12: 75 | X12: 4 | Y12: 15 | Z12: 60 | AA12: 5 | AB12: 10 | AC12: 50 | AD12: 7 | AE12: 1 | AF12: 130 | AG12: 51 | AH12: 767.5
B13: 9 | C13: Katlakalns / KKK | D13: 4.5 | E13: 15 | F13: 67.5 | G13: 3.5 | H13: 10 | I13: 35 | J13: 6 | K13: 20 | L13: 120 | M13: 5 | N13: 15 | O13: 75 | P13: 7 | Q13: 105 | R13: 2 | S13: 15 | T13: 30 | U13: 5 | V13: 20 | W13: 100 | X13: 5 | Y13: 10 | Z13: 50 | AA13: 4.5 | AB13: 15 | AC13: 67.5 | AD13: 6 | AE13: 1 | AF13: 115 | AG13: 49.5 | AH13: 765
B14: 10 | C14: Melnstrādnieki | D14: 5 | E14: 10 | F14: 50 | G14: 5 | H14: 20 | I14: 100 | J14: 6 | K14: 15 | L14: 90 | M14: 4.5 | N14: 15 | O14: 67.5 | P14: 7 | Q14: 105 | R14: 2 | S14: 15 | T14: 30 | U14: 6 | V14: 10 | W14: 60 | X14: 2 | Y14: 15 | Z14: 30 | AA14: 5 | AB14: 20 | AC14: 100 | AD14: 7 | AE14: 1 | AF14: 130 | AG14: 50.5 | AH14: 762.5
B15: 11 | C15: Jeržābeks | D15: 3 | E15: 20 | F15: 60 | G15: 3 | H15: 10 | I15: 30 | J15: 4 | K15: 15 | L15: 60 | M15: 5 | N15: 15 | O15: 75 | P15: 6 | Q15: 90 | R15: 4 | S15: 20 | T15: 80 | U15: 4 | V15: 10 | W15: 40 | X15: 6 | Y15: 15 | Z15: 90 | AA15: 6 | AB15: 15 | AC15: 90 | AD15: 7 | AE15: 1 | AF15: 130 | AG15: 49 | AH15: 745
B16: 12 | C16: 0%Apskaidrība | D16: 5 | E16: 15 | F16: 75 | G16: 4.5 | H16: 10 | I16: 45 | J16: 5 | K16: 15 | L16: 75 | M16: 5 | N16: 20 | O16: 100 | P16: 7 | Q16: 105 | R16: 4 | S16: 20 | T16: 80 | U16: 4 | V16: 10 | W16: 40 | X16: 3 | Y16: 15 | Z16: 45 | AA16: 5.5 | AB16: 15 | AC16: 82.5 | AD16: 6 | AE16: 0 | AF16: 90 | AG16: 49 | AH16: 737.5
B17: 13 | C17: Fireball | D17: 4.5 | E17: 10 | F17: 45 | G17: 2.5 | H17: 15 | I17: 37.5 | J17: 5 | K17: 20 | L17: 100 | M17: 5 | N17: 15 | O17: 75 | P17: 8 | Q17: 120 | R17: 2 | S17: 15 | T17: 30 | U17: 6 | V17: 15 | W17: 90 | X17: 3 | Y17: 10 | Z17: 30 | AA17: 3.5 | AB17: 20 | AC17: 70 | AD17: 7 | AE17: 1 | AF17: 130 | AG17: 47.5 | AH17: 727.5
B18: 14 | C18: kOzis | D18: 3.5 | E18: 10 | F18: 35 | G18: 3 | H18: 15 | I18: 45 | J18: 5 | K18: 15 | L18: 75 | M18: 6 | N18: 20 | O18: 120 | P18: 4 | Q18: 60 | R18: 6 | S18: 15 | T18: 90 | U18: 6 | V18: 20 | W18: 120 | X18: 3 | Y18: 15 | Z18: 45 | AA18: 4 | AB18: 10 | AC18: 40 | AD18: 5 | AE18: 0 | AF18: 75 | AG18: 45.5 | AH18: 705
B19: 15 | C19: Džamolidins Abdužaparovs | D19: 6 | E19: 15 | F19: 90 | G19: 4 | H19: 10 | I19: 40 | J19: 4 | K19: 15 | L19: 60 | M19: 4.5 | N19: 20 | O19: 90 | P19: 4 | Q19: 60 | R19: 5 | S19: 15 | T19: 75 | U19: 2 | V19: 15 | W19: 30 | X19: 5 | Y19: 10 | Z19: 50 | AA19: 6 | AB19: 20 | AC19: 120 | AD19: 5 | AE19: 0 | AF19: 75 | AG19: 45.5 | AH19: 690
B20: 16 | C20: Arigo Toro | D20: 4.5 | E20: 10 | F20: 45 | G20: 6 | H20: 20 | I20: 120 | J20: 5 | K20: 15 | L20: 75 | M20: 4 | N20: 15 | O20: 60 | P20: 3 | Q20: 45 | R20: 2 | S20: 15 | T20: 30 | U20: 6 | V20: 20 | W20: 120 | X20: 4 | Y20: 15 | Z20: 60 | AA20: 4.5 | AB20: 10 | AC20: 45 | AD20: 5 | AE20: 0 | AF20: 75 | AG20: 44 | AH20: 675
B21: 17 | C21: Rozā krekli un mokasīni | D21: 5 | E21: 20 | F21: 100 | G21: 1.5 | H21: 15 | I21: 22.5 | J21: 3 | K21: 10 | L21: 30 | M21: 5 | N21: 15 | O21: 75 | P21: 8 | Q21: 120 | R21: 2 | S21: 10 | T21: 20 | U21: 4 | V21: 20 | W21: 80 | X21: 5 | Y21: 15 | Z21: 75 | AA21: 4 | AB21: 15 | AC21: 60 | AD21: 6 | AE21: 0 | AF21: 90 | AG21: 43.5 | AH21: 672.5
B22: 18 | C22: Lai Top | D22: 3.5 | E22: 10 | F22: 35 | G22: 4.5 | H22: 15 | I22: 67.5 | J22: 6 | K22: 20 | L22: 120 | M22: 5.5 | N22: 15 | O22: 82.5 | P22: 5 | Q22: 75 | R22: 2 | S22: 20 | T22: 40 | U22: 6 | V22: 15 | W22: 90 | X22: 3 | Y22: 15 | Z22: 45 | AA22: 3 | AB22: 10 | AC22: 30 | AD22: 5 | AE22: 0 | AF22: 75 | AG22: 43.5 | AH22: 660
B23: 19 | C23: =#REF! ->  | E23: =VLOOKUP(C23,#REF!,2,FALSE) ->  | F23: =D23*E23 ->  | H23: =VLOOKUP(C23,#REF!,3,FALSE) ->  | I23: =G23*H23 ->  | K23: =VLOOKUP(C23,#REF!,4,FALSE) ->  | L23: =J23*K23 ->  | N23: =VLOOKUP(C23,#REF!,5,FALSE) ->  | O23: =M23*N23 ->  | Q23: =P23*15 -> 0 | S23: =VLOOKUP(C23,#REF!,2,FALSE) ->  | T23: =R23*S23 ->  | V23: =VLOOKUP(C23,#REF!,3,FALSE) ->  | W23: =U23*V23 ->  | Y23: =VLOOKUP(C23,#REF!,4,FALSE) ->  | Z23: =X23*Y23 ->  | AB23: =VLOOKUP(C23,#REF!,5,FALSE) ->  | AC23: =AA23*AB23 ->  | AF23: =AD23*15+AE23*25 -> 0 | AG23: =D23+G23+J23+M23+R23+U23+X23+AA23+AD23+AE23+P23 -> 0 | AH23: =F23+I23+L23+O23+Q23+T23+W23+Z23+AC23+AF23 -> 
B24: 20 | C24: =#REF! ->  | E24: =VLOOKUP(C24,#REF!,2,FALSE) ->  | F24: =D24*E24 ->  | H24: =VLOOKUP(C24,#REF!,3,FALSE) ->  | I24: =G24*H24 ->  | K24: =VLOOKUP(C24,#REF!,4,FALSE) ->  | L24: =J24*K24 ->  | N24: =VLOOKUP(C24,#REF!,5,FALSE) ->  | O24: =M24*N24 ->  | Q24: =P24*15 -> 0 | S24: =VLOOKUP(C24,#REF!,2,FALSE) ->  | T24: =R24*S24 ->  | V24: =VLOOKUP(C24,#REF!,3,FALSE) ->  | W24: =U24*V24 ->  | Y24: =VLOOKUP(C24,#REF!,4,FALSE) ->  | Z24: =X24*Y24 ->  | AB24: =VLOOKUP(C24,#REF!,5,FALSE) ->  | AC24: =AA24*AB24 ->  | AF24: =AD24*15+AE24*25 -> 0 | AG24: =D24+G24+J24+M24+R24+U24+X24+AA24+AD24+AE24+P24 -> 0 | AH24: =F24+I24+L24+O24+Q24+T24+W24+Z24+AC24+AF24 -> 
B25: 21 | C25: =#REF! ->  | E25: =VLOOKUP(C25,#REF!,2,FALSE) ->  | F25: =D25*E25 ->  | H25: =VLOOKUP(C25,#REF!,3,FALSE) ->  | I25: =G25*H25 ->  | K25: =VLOOKUP(C25,#REF!,4,FALSE) ->  | L25: =J25*K25 ->  | N25: =VLOOKUP(C25,#REF!,5,FALSE) ->  | O25: =M25*N25 ->  | Q25: =P25*15 -> 0 | S25: =VLOOKUP(C25,#REF!,2,FALSE) ->  | T25: =R25*S25 ->  | V25: =VLOOKUP(C25,#REF!,3,FALSE) ->  | W25: =U25*V25 ->  | Y25: =VLOOKUP(C25,#REF!,4,FALSE) ->  | Z25: =X25*Y25 ->  | AB25: =VLOOKUP(C25,#REF!,5,FALSE) ->  | AC25: =AA25*AB25 ->  | AF25: =AD25*15+AE25*25 -> 0 | AG25: =D25+G25+J25+M25+R25+U25+X25+AA25+AD25+AE25+P25 -> 0 | AH25: =F25+I25+L25+O25+Q25+T25+W25+Z25+AC25+AF25 -> 
B26: 22 | C26: Zinātāji | D26: 4.5 | E26: 15 | F26: 67.5 | G26: 1.5 | H26: 10 | I26: 15 | J26: 3 | K26: 15 | L26: 45 | M26: 5 | N26: 20 | O26: 100 | P26: 5 | Q26: 75 | R26: 3 | S26: 15 | T26: 45 | U26: 2 | V26: 10 | W26: 20 | X26: 5 | Y26: 15 | Z26: 75 | AA26: 5 | AB26: 20 | AC26: 100 | AD26: 6 | AE26: 1 | AF26: 115 | AG26: 41 | AH26: 657.5
B27: 23 | C27: A komanda | D27: 4 | E27: 15 | F27: 60 | G27: 6 | H27: 20 | I27: 120 | J27: 2 | K27: 10 | L27: 20 | M27: 5 | N27: 15 | O27: 75 | P27: 4 | Q27: 60 | R27: 5 | S27: 15 | T27: 75 | U27: 5 | V27: 15 | W27: 75 | X27: 1 | Y27: 20 | Z27: 20 | AA27: 2.5 | AB27: 10 | AC27: 25 | AD27: 6 | AE27: 0 | AF27: 90 | AG27: 40.5 | AH27: 620
B28: 24 | C28: Enkurs rauj ezerā | D28: 4 | E28: 15 | F28: 60 | G28: 4.5 | H28: 20 | I28: 90 | J28: 3 | K28: 10 | L28: 30 | M28: 4 | N28: 15 | O28: 60 | P28: 4 | Q28: 60 | R28: 4 | S28: 15 | T28: 60 | U28: 5 | V28: 20 | W28: 100 | X28: 2 | Y28: 15 | Z28: 30 | AA28: 3.5 | AB28: 10 | AC28: 35 | AD28: 6 | AE28: 0 | AF28: 90 | AG28: 40 | AH28: 615
B29: 25 | C29: BallDontLie | D29: 5.5 | E29: 15 | F29: 82.5 | G29: 4 | H29: 20 | I29: 80 | J29: 4 | K29: 10 | L29: 40 | M29: 4 | N29: 15 | O29: 60 | P29: 3 | Q29: 45 | R29: 3 | S29: 15 | T29: 45 | U29: 6 | V29: 20 | W29: 120 | X29: 2 | Y29: 10 | Z29: 20 | AA29: 4.5 | AB29: 15 | AC29: 67.5 | AD29: 3 | AE29: 0 | AF29: 45 | AG29: 39 | AH29: 605
B30: 26 | C30: Maurīcijs | D30: 3 | E30: 10 | F30: 30 | G30: 2.5 | H30: 20 | I30: 50 | J30: 5 | K30: 15 | L30: 75 | M30: 5 | N30: 15 | O30: 75 | P30: 7 | Q30: 105 | R30: 3 | S30: 15 | T30: 45 | U30: 4 | V30: 20 | W30: 80 | X30: 3 | Y30: 10 | Z30: 30 | AA30: 3.5 | AB30: 15 | AC30: 52.5 | AD30: 4 | AE30: 0 | AF30: 60 | AG30: 40 | AH30: 602.5
B31: 27 | C31: Amatieru pietura | D31: 5 | E31: 15 | F31: 75 | G31: 4 | H31: 15 | I31: 60 | J31: 4 | K31: 10 | L31: 40 | M31: 4 | N31: 20 | O31: 80 | P31: 2 | Q31: 30 | R31: 3 | S31: 15 | T31: 45 | U31: 5 | V31: 20 | W31: 100 | X31: 3 | Y31: 10 | Z31: 30 | AA31: 4.5 | AB31: 15 | AC31: 67.5 | AD31: 4 | AE31: 0 | AF31: 60 | AG31: 38.5 | AH31: 587.5
B32: 28 | C32: Rozetes un kabeļi | D32: 2.5 | E32: 15 | F32: 37.5 | G32: 2.5 | H32: 20 | I32: 50 | J32: 4 | K32: 10 | L32: 40 | M32: 5 | N32: 15 | O32: 75 | P32: 4 | Q32: 60 | R32: 3 | S32: 15 | T32: 45 | U32: 6 | V32: 20 | W32: 120 | X32: 2 | Y32: 15 | Z32: 30 | AA32: 1.5 | AB32: 10 | AC32: 15 | AD32: 2 | AE32: 0 | AF32: 30 | AG32: 32.5 | AH32: 502.5
B33: 29 | C33: Lācēni | D33: 3 | E33: 15 | F33: 45 | G33: 2.5 | H33: 15 | I33: 37.5 | J33: 2 | K33: 10 | L33: 20 | M33: 3 | N33: 20 | O33: 60 | P33: 3 | Q33: 45 | R33: 2 | S33: 15 | T33: 30 | U33: 1 | V33: 10 | W33: 10 | X33: 5 | Y33: 20 | Z33: 100 | AA33: 4 | AB33: 15 | AC33: 60 | AD33: 3 | AE33: 0 | AF33: 45 | AG33: 28.5 | AH33: 452.5
B34: 30 | C34: Turks un polis | D34: 5 | E34: 10 | F34: 50 | G34: 5.5 | H34: 20 | I34: 110 | J34: 2 | K34: 15 | L34: 30 | M34: 3.5 | N34: 15 | O34: 52.5 | P34: 0 | Q34: 0 | R34: 2 | S34: 20 | T34: 40 | U34: 3 | V34: 10 | W34: 30 | X34: 2 | Y34: 15 | Z34: 30 | AA34: 3 | AB34: 15 | AC34: 45 | AD34: 4 | AE34: 0 | AF34: 60 | AG34: 30 | AH34: 447.5
B35: 31 | C35: Melnais zirdziņš | D35: 4 | E35: 15 | F35: 60 | G35: 1.5 | H35: 15 | I35: 22.5 | J35: 4 | K35: 10 | L35: 40 | M35: 5 | N35: 20 | O35: 100 | P35: 0 | Q35: 0 | R35: 2 | S35: 20 | T35: 40 | U35: 5 | V35: 15 | W35: 75 | X35: 1 | Y35: 15 | Z35: 15 | AA35: 4 | AB35: 10 | AC35: 40 | AD35: 2 | AE35: 0 | AF35: 30 | AG35: 28.5 | AH35: 422.5
B36: 32 | C36: Ātrie | D36: 1 | E36: 10 | F36: 10 | G36: 3 | H36: 15 | I36: 45 | J36: 3 | K36: 20 | L36: 60 | M36: 1 | N36: 15 | O36: 15 | P36: 3 | Q36: 45 | R36: 1 | S36: 10 | T36: 10 | U36: 4 | V36: 15 | W36: 60 | X36: 3 | Y36: 20 | Z36: 60 | AA36: 3 | AB36: 15 | AC36: 45 | AD36: 2 | AE36: 0 | AF36: 30 | AG36: 24 | AH36: 380

Sheet aktuala (2) (hidden)
C2: ='F1'!B2 -> Sporta viktorīnas speciālizlaidums | F1 viktorīna | 2025.gada 13.augusts
B4: # | C4: Komandas / Raundi | D4: 1 | G4: 2 | J4: 3 | M4: 4 | P4: 5 | R4: 6 | U4: 7 | X4: 8 | AA4: 9 | AD4: 10 | AG4: KOPĀ
B5: 1 | C5: Lapsas | D5: 4 | E5: 15 | F5: 60 | G5: 6 | H5: 20 | I5: 120 | J5: 4 | K5: 10 | L5: 40 | M5: 3.5 | N5: 15 | O5: 52.5 | P5: 7 | Q5: 105 | R5: 6 | S5: 15 | T5: 90 | U5: 5 | V5: 10 | W5: 50 | X5: 5 | Y5: 15 | Z5: 75 | AA5: 4 | AB5: 20 | AC5: 80 | AD5: 6 | AE5: 1 | AF5: 115 | AG5: 51.5 | AH5: 787.5
B6: 2 | C6: Nasing spešal | D6: 6 | E6: 15 | F6: 90 | G6: 4 | H6: 15 | I6: 60 | J6: 3 | K6: 10 | L6: 30 | M6: 5 | N6: 20 | O6: 100 | P6: 7 | Q6: 105 | R6: 3 | S6: 15 | T6: 45 | U6: 5 | V6: 10 | W6: 50 | X6: 6 | Y6: 15 | Z6: 90 | AA6: 5 | AB6: 20 | AC6: 100 | AD6: 6 | AE6: 1 | AF6: 115 | AG6: 51 | AH6: 785
B7: 3 | C7: Alus zaldāti | D7: 6 | E7: 15 | F7: 90 | G7: 5 | H7: 10 | I7: 50 | J7: 2 | K7: 15 | L7: 30 | M7: 6 | N7: 20 | O7: 120 | P7: 8 | Q7: 120 | R7: 3 | S7: 15 | T7: 45 | U7: 5 | V7: 15 | W7: 75 | X7: 5 | Y7: 20 | Z7: 100 | AA7: 2 | AB7: 10 | AC7: 20 | AD7: 7 | AE7: 1 | AF7: 130 | AG7: 50 | AH7: 780
B8: 4 | C8: RAĢ Pīķi & Co | D8: 6 | E8: 15 | F8: 90 | G8: 3 | H8: 15 | I8: 45 | J8: 2 | K8: 10 | L8: 20 | M8: 6 | N8: 20 | O8: 120 | P8: 7 | Q8: 105 | R8: 1 | S8: 15 | T8: 15 | U8: 4 | V8: 10 | W8: 40 | X8: 5 | Y8: 15 | Z8: 75 | AA8: 6 | AB8: 20 | AC8: 120 | AD8: 6 | AE8: 1 | AF8: 115 | AG8: 47 | AH8: 745
B9: 5 | C9: Žeņšeņa borščs | D9: 6 | E9: 10 | F9: 60 | G9: 4 | H9: 15 | I9: 60 | J9: 2 | K9: 15 | L9: 30 | M9: 5 | N9: 20 | O9: 100 | P9: 8 | Q9: 120 | R9: 3 | S9: 15 | T9: 45 | U9: 4 | V9: 10 | W9: 40 | X9: 6 | Y9: 15 | Z9: 90 | AA9: 4 | AB9: 20 | AC9: 80 | AD9: 6 | AE9: 1 | AF9: 115 | AG9: 49 | AH9: 740
B10: 6 | C10: Fireball | D10: 4 | E10: 15 | F10: 60 | G10: 5 | H10: 20 | I10: 100 | J10: 2 | K10: 10 | L10: 20 | M10: 5 | N10: 15 | O10: 75 | P10: 8 | Q10: 120 | R10: 2 | S10: 15 | T10: 30 | U10: 5 | V10: 15 | W10: 75 | X10: 5 | Y10: 20 | Z10: 100 | AA10: 3 | AB10: 10 | AC10: 30 | AD10: 7 | AE10: 1 | AF10: 130 | AG10: 47 | AH10: 740
B11: 7 | C11: Gorbunovi | D11: 4 | E11: 15 | F11: 60 | G11: 5 | H11: 10 | I11: 50 | J11: 2 | K11: 15 | L11: 30 | M11: 3 | N11: 20 | O11: 60 | P11: 8 | Q11: 120 | R11: 5 | S11: 20 | T11: 100 | U11: 5 | V11: 15 | W11: 75 | X11: 6 | Y11: 10 | Z11: 60 | AA11: 4 | AB11: 15 | AC11: 60 | AD11: 5 | AE11: 1 | AF11: 100 | AG11: 48 | AH11: 715
B12: 8 | C12: Rozā krekli un mokasīni | D12: 5 | E12: 20 | F12: 100 | G12: 5 | H12: 10 | I12: 50 | J12: 3 | K12: 15 | L12: 45 | M12: 4 | N12: 15 | O12: 60 | P12: 4 | Q12: 60 | R12: 5 | S12: 15 | T12: 75 | U12: 5 | V12: 10 | W12: 50 | X12: 6 | Y12: 15 | Z12: 90 | AA12: 4 | AB12: 20 | AC12: 80 | AD12: 4 | AE12: 1 | AF12: 85 | AG12: 46 | AH12: 695
B13: 9 | C13: Sfinksa | D13: 3 | E13: 10 | F13: 30 | G13: 5 | H13: 20 | I13: 100 | J13: 2 | K13: 15 | L13: 30 | M13: 4 | N13: 15 | O13: 60 | P13: 7 | Q13: 105 | R13: 4 | S13: 15 | T13: 60 | U13: 5 | V13: 20 | W13: 100 | X13: 6 | Y13: 15 | Z13: 90 | AA13: 2 | AB13: 10 | AC13: 20 | AD13: 5 | AE13: 1 | AF13: 100 | AG13: 44 | AH13: 695
B14: 10 | C14: Mind Machines | D14: 6 | E14: 15 | F14: 90 | G14: 3 | H14: 15 | I14: 45 | J14: 2 | K14: 10 | L14: 20 | M14: 4.5 | N14: 20 | O14: 90 | P14: 7 | Q14: 105 | R14: 4 | S14: 15 | T14: 60 | U14: 5 | V14: 10 | W14: 50 | X14: 6 | Y14: 20 | Z14: 120 | AA14: 2 | AB14: 15 | AC14: 30 | AD14: 4 | AE14: 0 | AF14: 60 | AG14: 43.5 | AH14: 670
B15: 11 | C15: Animāļi | D15: 4 | E15: 15 | F15: 60 | G15: 4 | H15: 15 | I15: 60 | J15: 2 | K15: 10 | L15: 20 | M15: 5 | N15: 20 | O15: 100 | P15: 8 | Q15: 120 | R15: 3 | S15: 10 | T15: 30 | U15: 5 | V15: 20 | W15: 100 | X15: 3 | Y15: 15 | Z15: 45 | AA15: 2 | AB15: 15 | AC15: 30 | AD15: 5 | AE15: 1 | AF15: 100 | AG15: 42 | AH15: 665
B16: 12 | C16: Jon BorJomi | D16: 5 | E16: 15 | F16: 75 | G16: 3 | H16: 10 | I16: 30 | J16: 1 | K16: 15 | L16: 15 | M16: 3.5 | N16: 20 | O16: 70 | P16: 8 | Q16: 120 | R16: 2 | S16: 10 | T16: 20 | U16: 5 | V16: 15 | W16: 75 | X16: 4 | Y16: 20 | Z16: 80 | AA16: 3 | AB16: 15 | AC16: 45 | AD16: 7 | AE16: 1 | AF16: 130 | AG16: 42.5 | AH16: 660
B17: 13 | C17: Vortusiņš | D17: 5 | E17: 15 | F17: 75 | G17: 5 | H17: 15 | I17: 75 | J17: 1 | K17: 10 | L17: 10 | M17: 6 | N17: 20 | O17: 120 | P17: 7 | Q17: 105 | R17: 2 | S17: 15 | T17: 30 | U17: 5 | V17: 10 | W17: 50 | X17: 3 | Y17: 20 | Z17: 60 | AA17: 2 | AB17: 15 | AC17: 30 | AD17: 5 | AE17: 1 | AF17: 100 | AG17: 42 | AH17: 655
B18: 14 | C18: Zēniņi sports nav priekš jums | D18: 5 | E18: 15 | F18: 75 | G18: 4 | H18: 15 | I18: 60 | J18: 3 | K18: 10 | L18: 30 | M18: 6 | N18: 20 | O18: 120 | P18: 1 | Q18: 15 | R18: 4 | S18: 15 | T18: 60 | U18: 3 | V18: 10 | W18: 30 | X18: 5 | Y18: 20 | Z18: 100 | AA18: 3 | AB18: 15 | AC18: 45 | AD18: 5 | AE18: 1 | AF18: 100 | AG18: 40 | AH18: 635
B19: 15 | C19: Laimes rācenis | D19: 5 | E19: 20 | F19: 100 | G19: 4 | H19: 15 | I19: 60 | J19: 2 | K19: 10 | L19: 20 | M19: 4.5 | N19: 15 | O19: 67.5 | P19: 8 | Q19: 120 | R19: 3 | S19: 15 | T19: 45 | U19: 5 | V19: 10 | W19: 50 | X19: 4 | Y19: 20 | Z19: 80 | AA19: 4 | AB19: 15 | AC19: 60 | AD19: 2 | AE19: 0 | AF19: 30 | AG19: 41.5 | AH19: 632.5
B20: 16 | C20: Atbilde ir 42 | D20: 5 | E20: 20 | F20: 100 | G20: 3 | H20: 15 | I20: 45 | J20: 1 | K20: 15 | L20: 15 | M20: 5 | N20: 10 | O20: 50 | P20: 8 | Q20: 120 | R20: 2 | S20: 10 | T20: 20 | U20: 4 | V20: 15 | W20: 60 | X20: 4 | Y20: 15 | Z20: 60 | AA20: 1 | AB20: 20 | AC20: 20 | AD20: 7 | AE20: 1 | AF20: 130 | AG20: 41 | AH20: 620
B21: 17 | C21: Bez Agritas | D21: 5 | E21: 15 | F21: 75 | G21: 3 | H21: 20 | I21: 60 | J21: 3 | K21: 10 | L21: 30 | M21: 6 | N21: 15 | O21: 90 | P21: 4 | Q21: 60 | R21: 2 | S21: 20 | T21: 40 | U21: 4 | V21: 15 | W21: 60 | X21: 3 | Y21: 15 | Z21: 45 | AA21: 3 | AB21: 10 | AC21: 30 | AD21: 6 | AE21: 1 | AF21: 115 | AG21: 40 | AH21: 605
B22: 18 | C22: Marvels | D22: 4 | E22: 15 | F22: 60 | G22: 3 | H22: 10 | I22: 30 | J22: 3 | K22: 15 | L22: 45 | M22: 4 | N22: 20 | O22: 80 | P22: 4 | Q22: 60 | R22: 2 | S22: 15 | T22: 30 | U22: 4 | V22: 10 | W22: 40 | X22: 5 | Y22: 20 | Z22: 100 | AA22: 2 | AB22: 15 | AC22: 30 | AD22: 3 | AE22: 0 | AF22: 45 | AG22: 34 | AH22: 520
B23: 19 | C23: Go3 & Chill | D23: 6 | E23: 20 | F23: 120 | G23: 3 | H23: 15 | I23: 45 | J23: 1 | K23: 10 | L23: 10 | M23: 4 | N23: 15 | O23: 60 | P23: 4 | Q23: 60 | R23: 1 | S23: 15 | T23: 15 | U23: 2 | V23: 10 | W23: 20 | X23: 3 | Y23: 20 | Z23: 60 | AA23: 1 | AB23: 15 | AC23: 15 | AD23: 3 | AE23: 0 | AF23: 45 | AG23: 28 | AH23: 450
B24: 20 | C24: Fiasko | D24: 4 | E24: 15 | F24: 60 | G24: 1 | H24: 15 | I24: 15 | J24: 1 | K24: 20 | L24: 20 | M24: 2.5 | N24: 10 | O24: 25 | P24: 6 | Q24: 90 | R24: 3 | S24: 15 | T24: 45 | U24: 3 | V24: 10 | W24: 30 | X24: 3 | Y24: 20 | Z24: 60 | AA24: 2 | AB24: 15 | AC24: 30 | AD24: 3 | AE24: 0 | AF24: 45 | AG24: 28.5 | AH24: 420
B25: 21 | C25: BunS | D25: 4 | E25: 10 | F25: 40 | G25: 4 | H25: 15 | I25: 60 | J25: 3 | K25: 15 | L25: 45 | M25: 3 | N25: 20 | O25: 60 | P25: 1 | Q25: 15 | R25: 2 | S25: 15 | T25: 30 | U25: 5 | V25: 15 | W25: 75 | X25: 3 | Y25: 20 | Z25: 60 | AA25: 0 | AB25: 10 | AC25: 0 | AD25: 2 | AE25: 0 | AF25: 30 | AG25: 27 | AH25: 415

Sheet aktuala (3) (hidden)
C2: ='F1'!B2 -> Sporta viktorīnas speciālizlaidums | F1 viktorīna | 2025.gada 13.augusts
B4: # | C4: Komandas / Raundi | D4: 1 | G4: 2 | J4: 3 | M4: 4 | P4: 5 | R4: 6 | U4: 7 | X4: 8 | AA4: 9 | AD4: 10 | AG4: KOPĀ
B5: 1 | C5: Lācēni | D5: 5 | E5: 10 | F5: 50 | G5: 6 | H5: 15 | I5: 90 | J5: 3 | K5: 15 | L5: 45 | M5: 6 | N5: 20 | O5: 120 | P5: 8 | Q5: 120 | R5: 5 | S5: 15 | T5: 75 | U5: 5 | V5: 20 | W5: 100 | X5: 6 | Y5: 15 | Z5: 90 | AA5: 1 | AB5: 10 | AC5: 10 | AD5: 7 | AE5: 1 | AF5: 130 | AG5: 53 | AH5: 830
B6: 2 | C6: DeJaVu | D6: 5 | E6: 15 | F6: 75 | G6: 5 | H6: 20 | I6: 100 | J6: 3 | K6: 10 | L6: 30 | M6: 5 | N6: 15 | O6: 75 | P6: 8 | Q6: 120 | R6: 5 | S6: 20 | T6: 100 | U6: 5 | V6: 15 | W6: 75 | X6: 6 | Y6: 10 | Z6: 60 | AA6: 3 | AB6: 15 | AC6: 45 | AD6: 6 | AE6: 1 | AF6: 115 | AG6: 52 | AH6: 795
B7: 3 | C7: Bunkurs_13 | D7: 5 | E7: 15 | F7: 75 | G7: 5 | H7: 15 | I7: 75 | J7: 2 | K7: 10 | L7: 20 | M7: 4 | N7: 20 | O7: 80 | P7: 8 | Q7: 120 | R7: 4 | S7: 15 | T7: 60 | U7: 5 | V7: 10 | W7: 50 | X7: 6 | Y7: 20 | Z7: 120 | AA7: 4 | AB7: 15 | AC7: 60 | AD7: 7 | AE7: 1 | AF7: 130 | AG7: 51 | AH7: 790
B8: 4 | C8: Slagūnes Metalurgs | D8: 5 | E8: 15 | F8: 75 | G8: 3 | H8: 15 | I8: 45 | J8: 1 | K8: 10 | L8: 10 | M8: 6 | N8: 20 | O8: 120 | P8: 8 | Q8: 120 | R8: 4 | S8: 15 | T8: 60 | U8: 6 | V8: 15 | W8: 90 | X8: 6 | Y8: 20 | Z8: 120 | AA8: 2 | AB8: 10 | AC8: 20 | AD8: 6 | AE8: 1 | AF8: 115 | AG8: 48 | AH8: 775
B9: 5 | C9: Štepselētāju atgriešanās | D9: 5 | E9: 15 | F9: 75 | G9: 6 | H9: 15 | I9: 90 | J9: 2 | K9: 10 | L9: 20 | M9: 3.5 | N9: 20 | O9: 70 | P9: 8 | Q9: 120 | R9: 2 | S9: 10 | T9: 20 | U9: 4 | V9: 15 | W9: 60 | X9: 6 | Y9: 20 | Z9: 120 | AA9: 4 | AB9: 15 | AC9: 60 | AD9: 6 | AE9: 1 | AF9: 115 | AG9: 47.5 | AH9: 750
B10: 6 | C10: Mordanga | D10: 5 | E10: 20 | F10: 100 | G10: 5 | H10: 15 | I10: 75 | J10: 2 | K10: 10 | L10: 20 | M10: 5 | N10: 15 | O10: 75 | P10: 5 | Q10: 75 | R10: 4 | S10: 15 | T10: 60 | U10: 5 | V10: 20 | W10: 100 | X10: 6 | Y10: 15 | Z10: 90 | AA10: 2 | AB10: 10 | AC10: 20 | AD10: 7 | AE10: 1 | AF10: 130 | AG10: 47 | AH10: 745
B11: 7 | C11: 5AM | D11: 5 | E11: 15 | F11: 75 | G11: 6 | H11: 15 | I11: 90 | J11: 2 | K11: 10 | L11: 20 | M11: 5.5 | N11: 20 | O11: 110 | P11: 8 | Q11: 120 | R11: 3 | S11: 15 | T11: 45 | U11: 5 | V11: 10 | W11: 50 | X11: 4 | Y11: 15 | Z11: 60 | AA11: 3 | AB11: 20 | AC11: 60 | AD11: 5 | AE11: 1 | AF11: 100 | AG11: 47.5 | AH11: 730
B12: 8 | C12: Atkal Mēs | D12: 6 | E12: 20 | F12: 120 | G12: 4 | H12: 15 | I12: 60 | J12: 4 | K12: 10 | L12: 40 | M12: 6 | N12: 15 | O12: 90 | P12: 8 | Q12: 120 | R12: 3 | S12: 15 | T12: 45 | U12: 4 | V12: 10 | W12: 40 | X12: 6 | Y12: 20 | Z12: 120 | AA12: 2 | AB12: 15 | AC12: 30 | AD12: 4 | AE12: 0 | AF12: 60 | AG12: 47 | AH12: 725
B13: 9 | C13: Alternative facts | D13: 6 | E13: 20 | F13: 120 | G13: 4 | H13: 15 | I13: 60 | J13: 2 | K13: 10 | L13: 20 | M13: 4 | N13: 15 | O13: 60 | P13: 7 | Q13: 105 | R13: 5 | S13: 15 | T13: 75 | U13: 5 | V13: 10 | W13: 50 | X13: 4 | Y13: 20 | Z13: 80 | AA13: 2 | AB13: 15 | AC13: 30 | AD13: 5 | AE13: 1 | AF13: 100 | AG13: 45 | AH13: 700
B14: 10 | C14: Hektora apustuļi | D14: 4 | E14: 15 | F14: 60 | G14: 4 | H14: 15 | I14: 60 | J14: 3 | K14: 10 | L14: 30 | M14: 6 | N14: 20 | O14: 120 | P14: 4 | Q14: 60 | R14: 6 | S14: 20 | T14: 120 | U14: 3 | V14: 10 | W14: 30 | X14: 4 | Y14: 15 | Z14: 60 | AA14: 2 | AB14: 15 | AC14: 30 | AD14: 5 | AE14: 1 | AF14: 100 | AG14: 42 | AH14: 670
B15: 11 | C15: kOzis | D15: 6 | E15: 15 | F15: 90 | G15: 4 | H15: 15 | I15: 60 | J15: 1 | K15: 10 | L15: 10 | M15: 3 | N15: 20 | O15: 60 | P15: 6 | Q15: 90 | R15: 1 | S15: 10 | T15: 10 | U15: 5 | V15: 20 | W15: 100 | X15: 4 | Y15: 15 | Z15: 60 | AA15: 4 | AB15: 15 | AC15: 60 | AD15: 7 | AE15: 1 | AF15: 130 | AG15: 42 | AH15: 670
B16: 12 | C16: MĒS | D16: 4 | E16: 15 | F16: 60 | G16: 4 | H16: 15 | I16: 60 | J16: 1 | K16: 10 | L16: 10 | M16: 4 | N16: 20 | O16: 80 | P16: 5 | Q16: 75 | R16: 5 | S16: 15 | T16: 75 | U16: 5 | V16: 15 | W16: 75 | X16: 5 | Y16: 20 | Z16: 100 | AA16: 2 | AB16: 10 | AC16: 20 | AD16: 5 | AE16: 1 | AF16: 100 | AG16: 41 | AH16: 655
B17: 13 | C17: Cukurfabrika | D17: 6 | E17: 20 | F17: 120 | G17: 4 | H17: 15 | I17: 60 | J17: 2 | K17: 10 | L17: 20 | M17: 4 | N17: 15 | O17: 60 | P17: 5 | Q17: 75 | R17: 4 | S17: 20 | T17: 80 | U17: 5 | V17: 10 | W17: 50 | X17: 3 | Y17: 15 | Z17: 45 | AA17: 4 | AB17: 15 | AC17: 60 | AD17: 5 | AE17: 0 | AF17: 75 | AG17: 42 | AH17: 645
B18: 14 | C18: Faceless Victorians | D18: 6 | E18: 20 | F18: 120 | G18: 4 | H18: 15 | I18: 60 | J18: 1 | K18: 10 | L18: 10 | M18: 4.5 | N18: 15 | O18: 67.5 | P18: 5 | Q18: 75 | R18: 3 | S18: 15 | T18: 45 | U18: 3 | V18: 10 | W18: 30 | X18: 6 | Y18: 20 | Z18: 120 | AA18: 2 | AB18: 15 | AC18: 30 | AD18: 5 | AE18: 0 | AF18: 75 | AG18: 39.5 | AH18: 632.5
B19: 15 | C19: Džimenes ārsts | D19: 4 | E19: 15 | F19: 60 | G19: 2 | H19: 15 | I19: 30 | J19: 1 | K19: 10 | L19: 10 | M19: 5 | N19: 20 | O19: 100 | P19: 8 | Q19: 120 | R19: 1 | S19: 15 | T19: 15 | U19: 5 | V19: 10 | W19: 50 | X19: 3 | Y19: 15 | Z19: 45 | AA19: 3 | AB19: 20 | AC19: 60 | AD19: 3 | AE19: 1 | AF19: 70 | AG19: 36 | AH19: 560
B20: 16 | C20: Netīrs netīrs | D20: 4 | E20: 20 | F20: 80 | G20: 3 | H20: 15 | I20: 45 | J20: 1 | K20: 10 | L20: 10 | M20: 5 | N20: 15 | O20: 75 | P20: 1 | Q20: 15 | R20: 3 | S20: 15 | T20: 45 | U20: 4 | V20: 10 | W20: 40 | X20: 6 | Y20: 15 | Z20: 90 | AA20: 3 | AB20: 20 | AC20: 60 | AD20: 3 | AE20: 0 | AF20: 45 | AG20: 33 | AH20: 505
B21: 17 | C21: Plānā galdiņa urbējas | D21: 1 | E21: 15 | F21: 15 | G21: 1 | H21: 10 | I21: 10 | J21: 1 | K21: 15 | L21: 15 | M21: 3.5 | N21: 20 | O21: 70 | P21: 4 | Q21: 60 | R21: 3 | S21: 10 | T21: 30 | U21: 1 | V21: 15 | W21: 15 | X21: 3 | Y21: 20 | Z21: 60 | AA21: 0 | AB21: 15 | AC21: 0 | AD21: 4 | AE21: 0 | AF21: 60 | AG21: 21.5 | AH21: 335
B22: 18 | C22: =#REF! ->  | E22: =VLOOKUP(C22,#REF!,2,FALSE) ->  | F22: =D22*E22 ->  | H22: =VLOOKUP(C22,#REF!,3,FALSE) ->  | I22: =G22*H22 ->  | K22: =VLOOKUP(C22,#REF!,4,FALSE) ->  | L22: =J22*K22 ->  | M22: 4 | N22: =VLOOKUP(C22,#REF!,5,FALSE) ->  | O22: =M22*N22 ->  | P22: 4 | Q22: =P22*15 -> 60 | R22: 2 | S22: =VLOOKUP(C22,#REF!,2,FALSE) ->  | T22: =R22*S22 ->  | U22: 4 | V22: =VLOOKUP(C22,#REF!,3,FALSE) ->  | W22: =U22*V22 ->  | X22: 5 | Y22: =VLOOKUP(C22,#REF!,4,FALSE) ->  | Z22: =X22*Y22 ->  | AA22: 2 | AB22: =VLOOKUP(C22,#REF!,5,FALSE) ->  | AC22: =AA22*AB22 ->  | AD22: 3 | AE22: 0 | AF22: =AD22*15+AE22*25 -> 45 | AG22: =D22+G22+J22+M22+R22+U22+X22+AA22+AD22+AE22+P22 -> 24 | AH22: =F22+I22+L22+O22+Q22+T22+W22+Z22+AC22+AF22 -> 
B23: 19 | C23: =#REF! ->  | E23: =VLOOKUP(C23,#REF!,2,FALSE) ->  | H23: =VLOOKUP(C23,#REF!,3,FALSE) ->  | K23: =VLOOKUP(C23,#REF!,4,FALSE) ->  | M23: 4 | N23: =VLOOKUP(C23,#REF!,5,FALSE) ->  | P23: 4 | Q23: 60 | R23: 1 | S23: =VLOOKUP(C23,#REF!,2,FALSE) ->  | U23: 2 | V23: =VLOOKUP(C23,#REF!,3,FALSE) ->  | X23: 3 | Y23: =VLOOKUP(C23,#REF!,4,FALSE) ->  | AA23: 1 | AB23: =VLOOKUP(C23,#REF!,5,FALSE) ->  | AD23: 3 | AE23: 0 | AF23: 45 | AG23: 18
B24: 20 | C24: =#REF! ->  | E24: =VLOOKUP(C24,#REF!,2,FALSE) ->  | H24: =VLOOKUP(C24,#REF!,3,FALSE) ->  | K24: =VLOOKUP(C24,#REF!,4,FALSE) ->  | M24: 2.5 | N24: =VLOOKUP(C24,#REF!,5,FALSE) ->  | P24: 6 | Q24: 90 | R24: 3 | S24: =VLOOKUP(C24,#REF!,2,FALSE) ->  | U24: 3 | V24: =VLOOKUP(C24,#REF!,3,FALSE) ->  | X24: 3 | Y24: =VLOOKUP(C24,#REF!,4,FALSE) ->  | AA24: 2 | AB24: =VLOOKUP(C24,#REF!,5,FALSE) ->  | AD24: 3 | AE24: 0 | AF24: 45 | AG24: 22.5
B25: 21 | C25: =#REF! ->  | E25: =VLOOKUP(C25,#REF!,2,FALSE) ->  | H25: =VLOOKUP(C25,#REF!,3,FALSE) ->  | K25: =VLOOKUP(C25,#REF!,4,FALSE) ->  | M25: 3 | N25: =VLOOKUP(C25,#REF!,5,FALSE) ->  | P25: 1 | Q25: 15 | R25: 2 | S25: =VLOOKUP(C25,#REF!,2,FALSE) ->  | U25: 5 | V25: =VLOOKUP(C25,#REF!,3,FALSE) ->  | X25: 3 | Y25: =VLOOKUP(C25,#REF!,4,FALSE) ->  | AA25: 0 | AB25: =VLOOKUP(C25,#REF!,5,FALSE) ->  | AD25: 2 | AE25: 0 | AF25: 30 | AG25: 16

Sheet aktuala (4) (hidden)
C2: ='F1'!B2 -> Sporta viktorīnas speciālizlaidums | F1 viktorīna | 2025.gada 13.augusts
B4: # | C4: Komandas / Raundi | D4: 1 | G4: 2 | J4: 3 | M4: 4 | P4: 5 | R4: 6 | U4: 7 | X4: 8 | AA4: 9 | AD4: 10 | AG4: KOPĀ
B5: 1 | C5: AC Seda | D5: 5 | E5: 15 | F5: 75 | G5: 5 | H5: 20 | I5: 100 | J5: 1 | K5: 10 | L5: 10 | M5: 5 | N5: 15 | O5: 75 | P5: 8 | Q5: 120 | R5: 6 | S5: 20 | T5: 120 | U5: 5 | V5: 15 | W5: 75 | X5: 6 | Y5: 15 | Z5: 90 | AA5: 3 | AB5: 10 | AC5: 30 | AD5: 7 | AE5: 1 | AF5: 130 | AG5: 52 | AH5: 825
B6: 2 | C6: Baltijas jūras izsmelšanas b. | D6: 6 | E6: 20 | F6: 120 | G6: 6 | H6: 15 | I6: 90 | J6: 2 | K6: 10 | L6: 20 | M6: 5 | N6: 15 | O6: 75 | P6: 8 | Q6: 120 | R6: 4 | S6: 10 | T6: 40 | U6: 5 | V6: 15 | W6: 75 | X6: 5 | Y6: 15 | Z6: 75 | AA6: 2 | AB6: 20 | AC6: 40 | AD6: 7 | AE6: 1 | AF6: 130 | AG6: 51 | AH6: 785
B7: 3 | C7: Sestais lieks | D7: 4 | E7: 15 | F7: 60 | G7: 4 | H7: 20 | I7: 80 | J7: 2 | K7: 10 | L7: 20 | M7: 5 | N7: 15 | O7: 75 | P7: 7 | Q7: 105 | R7: 6 | S7: 15 | T7: 90 | U7: 5 | V7: 20 | W7: 100 | X7: 6 | Y7: 15 | Z7: 90 | AA7: 2 | AB7: 10 | AC7: 20 | AD7: 7 | AE7: 1 | AF7: 130 | AG7: 49 | AH7: 770
B8: 4 | C8: Zinātāji | D8: 5 | E8: 15 | F8: 75 | G8: 5 | H8: 15 | I8: 75 | J8: 3 | K8: 10 | L8: 30 | M8: 5 | N8: 20 | O8: 100 | P8: 8 | Q8: 120 | R8: 3 | S8: 15 | T8: 45 | U8: 5 | V8: 20 | W8: 100 | X8: 5 | Y8: 15 | Z8: 75 | AA8: 2 | AB8: 10 | AC8: 20 | AD8: 7 | AE8: 1 | AF8: 130 | AG8: 49 | AH8: 770
B9: 5 | C9: Putekļi uz grāmatām | D9: 4 | E9: 15 | F9: 60 | G9: 5 | H9: 15 | I9: 75 | J9: 3 | K9: 10 | L9: 30 | M9: 6 | N9: 20 | O9: 120 | P9: 7 | Q9: 105 | R9: 2 | S9: 15 | T9: 30 | U9: 5 | V9: 10 | W9: 50 | X9: 6 | Y9: 20 | Z9: 120 | AA9: 2 | AB9: 15 | AC9: 30 | AD9: 7 | AE9: 1 | AF9: 130 | AG9: 48 | AH9: 750
B10: 6 | C10: Brāķis bez metāla | D10: 4 | E10: 15 | F10: 60 | G10: 5 | H10: 15 | I10: 75 | J10: 1 | K10: 10 | L10: 10 | M10: 5 | N10: 20 | O10: 100 | P10: 8 | Q10: 120 | R10: 4 | S10: 20 | T10: 80 | U10: 6 | V10: 15 | W10: 90 | X10: 5 | Y10: 15 | Z10: 75 | AA10: 2 | AB10: 10 | AC10: 20 | AD10: 5 | AE10: 1 | AF10: 100 | AG10: 46 | AH10: 730
B11: 7 | C11: Ansamblis X | D11: 3 | E11: 15 | F11: 45 | G11: 4 | H11: 15 | I11: 60 | J11: 3 | K11: 10 | L11: 30 | M11: 6 | N11: 20 | O11: 120 | P11: 6 | Q11: 90 | R11: 4 | S11: 15 | T11: 60 | U11: 5 | V11: 15 | W11: 75 | X11: 6 | Y11: 20 | Z11: 120 | AA11: 1 | AB11: 10 | AC11: 10 | AD11: 5 | AE11: 1 | AF11: 100 | AG11: 44 | AH11: 710
B12: 8 | C12: Mežpils miglā | D12: 4 | E12: 15 | F12: 60 | G12: 5 | H12: 15 | I12: 75 | J12: 3 | K12: 10 | L12: 30 | M12: 5 | N12: 20 | O12: 100 | P12: 6 | Q12: 90 | R12: 5 | S12: 15 | T12: 75 | U12: 6 | V12: 10 | W12: 60 | X12: 4 | Y12: 20 | Z12: 80 | AA12: 1 | AB12: 15 | AC12: 15 | AD12: 4 | AE12: 1 | AF12: 85 | AG12: 44 | AH12: 670
B13: 9 | C13: Žīdam ir taisnība | D13: 5 | E13: 15 | F13: 75 | G13: 5 | H13: 15 | I13: 75 | J13: 1 | K13: 10 | L13: 10 | M13: 4 | N13: 20 | O13: 80 | P13: 5 | Q13: 75 | R13: 3 | S13: 15 | T13: 45 | U13: 5 | V13: 15 | W13: 75 | X13: 5 | Y13: 20 | Z13: 100 | AA13: 2 | AB13: 10 | AC13: 20 | AD13: 6 | AE13: 1 | AF13: 115 | AG13: 42 | AH13: 670
B14: 10 | C14: Gurinētie Marķīši | D14: 4 | E14: 15 | F14: 60 | G14: 4 | H14: 15 | I14: 60 | J14: 1 | K14: 10 | L14: 10 | M14: 6 | N14: 20 | O14: 120 | P14: 3 | Q14: 45 | R14: 4 | S14: 15 | T14: 60 | U14: 3 | V14: 10 | W14: 30 | X14: 6 | Y14: 20 | Z14: 120 | AA14: 4 | AB14: 15 | AC14: 60 | AD14: 3 | AE14: 1 | AF14: 70 | AG14: 39 | AH14: 635
B15: 11 | C15: Bugatti Veyron | D15: 4 | E15: 15 | F15: 60 | G15: 3 | H15: 15 | I15: 45 | J15: 1 | K15: 10 | L15: 10 | M15: 5 | N15: 20 | O15: 100 | P15: 6 | Q15: 90 | R15: 3 | S15: 15 | T15: 45 | U15: 5 | V15: 10 | W15: 50 | X15: 3 | Y15: 15 | Z15: 45 | AA15: 4 | AB15: 20 | AC15: 80 | AD15: 3 | AE15: 0 | AF15: 45 | AG15: 37 | AH15: 570
B16: 12 | C16: Te tikai Dieviņš palīdzēs | D16: 4 | E16: 15 | F16: 60 | G16: 3 | H16: 15 | I16: 45 | J16: 1 | K16: 10 | L16: 10 | M16: 4 | N16: 20 | O16: 80 | P16: 3 | Q16: 45 | R16: 1 | S16: 10 | T16: 10 | U16: 5 | V16: 15 | W16: 75 | X16: 4 | Y16: 15 | Z16: 60 | AA16: 1 | AB16: 20 | AC16: 20 | AD16: 0 | AE16: 0 | AF16: 0 | AG16: 26 | AH16: 405
B17: 13 | C17: No one | D17: 3 | E17: 20 | F17: 60 | G17: 1 | H17: 10 | I17: 10 | J17: 0 | K17: 15 | L17: 0 | M17: 3 | N17: 15 | O17: 45 | P17: 1 | Q17: 15 | R17: 1 | S17: 15 | T17: 15 | U17: 1 | V17: 10 | W17: 10 | X17: 3 | Y17: 20 | Z17: 60 | AA17: 1 | AB17: 15 | AC17: 15 | AD17: 0 | AE17: 0 | AF17: 0 | AG17: 14 | AH17: 230
B18: 14 | C18: =#REF! ->  | E18: =VLOOKUP(C18,#REF!,2,FALSE) ->  | F18: =D18*E18 ->  | H18: =VLOOKUP(C18,#REF!,3,FALSE) ->  | I18: =G18*H18 ->  | K18: =VLOOKUP(C18,#REF!,4,FALSE) ->  | L18: =J18*K18 ->  | N18: =VLOOKUP(C18,#REF!,5,FALSE) ->  | O18: =M18*N18 ->  | Q18: =P18*15 -> 0 | S18: =VLOOKUP(C18,#REF!,2,FALSE) ->  | T18: =R18*S18 ->  | V18: =VLOOKUP(C18,#REF!,3,FALSE) ->  | W18: =U18*V18 ->  | Y18: =VLOOKUP(C18,#REF!,4,FALSE) ->  | Z18: =X18*Y18 ->  | AB18: =VLOOKUP(C18,#REF!,5,FALSE) ->  | AC18: =AA18*AB18 ->  | AF18: =AD18*15+AE18*25 -> 0 | AG18: =D18+G18+J18+M18+R18+U18+X18+AA18+AD18+AE18+P18 -> 0 | AH18: =F18+I18+L18+O18+Q18+T18+W18+Z18+AC18+AF18 -> 
B19: 15 | C19: =#REF! ->  | E19: =VLOOKUP(C19,#REF!,2,FALSE) ->  | H19: =VLOOKUP(C19,#REF!,3,FALSE) ->  | K19: =VLOOKUP(C19,#REF!,4,FALSE) ->  | N19: =VLOOKUP(C19,#REF!,5,FALSE) ->  | Q19: 0 | S19: =VLOOKUP(C19,#REF!,2,FALSE) ->  | V19: =VLOOKUP(C19,#REF!,3,FALSE) ->  | Y19: =VLOOKUP(C19,#REF!,4,FALSE) ->  | AB19: =VLOOKUP(C19,#REF!,5,FALSE) ->  | AF19: 0 | AG19: 0
B20: 16 | C20: =#REF! ->  | E20: =VLOOKUP(C20,#REF!,2,FALSE) ->  | H20: =VLOOKUP(C20,#REF!,3,FALSE) ->  | K20: =VLOOKUP(C20,#REF!,4,FALSE) ->  | N20: =VLOOKUP(C20,#REF!,5,FALSE) ->  | Q20: 0 | S20: =VLOOKUP(C20,#REF!,2,FALSE) ->  | V20: =VLOOKUP(C20,#REF!,3,FALSE) ->  | Y20: =VLOOKUP(C20,#REF!,4,FALSE) ->  | AB20: =VLOOKUP(C20,#REF!,5,FALSE) ->  | AF20: 0 | AG20: 0
B21: 17 | C21: =#REF! ->  | E21: =VLOOKUP(C21,#REF!,2,FALSE) ->  | H21: =VLOOKUP(C21,#REF!,3,FALSE) ->  | K21: =VLOOKUP(C21,#REF!,4,FALSE) ->  | N21: =VLOOKUP(C21,#REF!,5,FALSE) ->  | Q21: 0 | S21: =VLOOKUP(C21,#REF!,2,FALSE) ->  | V21: =VLOOKUP(C21,#REF!,3,FALSE) ->  | Y21: =VLOOKUP(C21,#REF!,4,FALSE) ->  | AB21: =VLOOKUP(C21,#REF!,5,FALSE) ->  | AF21: 0 | AG21: 0
B22: 18 | C22: =#REF! ->  | E22: =VLOOKUP(C22,#REF!,2,FALSE) ->  | H22: =VLOOKUP(C22,#REF!,3,FALSE) ->  | K22: =VLOOKUP(C22,#REF!,4,FALSE) ->  | M22: 4 | N22: =VLOOKUP(C22,#REF!,5,FALSE) ->  | P22: 4 | Q22: 60 | R22: 2 | S22: =VLOOKUP(C22,#REF!,2,FALSE) ->  | U22: 4 | V22: =VLOOKUP(C22,#REF!,3,FALSE) ->  | X22: 5 | Y22: =VLOOKUP(C22,#REF!,4,FALSE) ->  | AA22: 2 | AB22: =VLOOKUP(C22,#REF!,5,FALSE) ->  | AD22: 3 | AE22: 0 | AF22: 45 | AG22: 24
B23: 19 | C23: =#REF! ->  | E23: =VLOOKUP(C23,#REF!,2,FALSE) ->  | H23: =VLOOKUP(C23,#REF!,3,FALSE) ->  | K23: =VLOOKUP(C23,#REF!,4,FALSE) ->  | M23: 4 | N23: =VLOOKUP(C23,#REF!,5,FALSE) ->  | P23: 4 | Q23: 60 | R23: 1 | S23: =VLOOKUP(C23,#REF!,2,FALSE) ->  | U23: 2 | V23: =VLOOKUP(C23,#REF!,3,FALSE) ->  | X23: 3 | Y23: =VLOOKUP(C23,#REF!,4,FALSE) ->  | AA23: 1 | AB23: =VLOOKUP(C23,#REF!,5,FALSE) ->  | AD23: 3 | AE23: 0 | AF23: 45 | AG23: 18
B24: 20 | C24: =#REF! ->  | E24: =VLOOKUP(C24,#REF!,2,FALSE) ->  | H24: =VLOOKUP(C24,#REF!,3,FALSE) ->  | K24: =VLOOKUP(C24,#REF!,4,FALSE) ->  | M24: 2.5 | N24: =VLOOKUP(C24,#REF!,5,FALSE) ->  | P24: 6 | Q24: 90 | R24: 3 | S24: =VLOOKUP(C24,#REF!,2,FALSE) ->  | U24: 3 | V24: =VLOOKUP(C24,#REF!,3,FALSE) ->  | X24: 3 | Y24: =VLOOKUP(C24,#REF!,4,FALSE) ->  | AA24: 2 | AB24: =VLOOKUP(C24,#REF!,5,FALSE) ->  | AD24: 3 | AE24: 0 | AF24: 45 | AG24: 22.5
B25: 21 | C25: =#REF! ->  | E25: =VLOOKUP(C25,#REF!,2,FALSE) ->  | H25: =VLOOKUP(C25,#REF!,3,FALSE) ->  | K25: =VLOOKUP(C25,#REF!,4,FALSE) ->  | M25: 3 | N25: =VLOOKUP(C25,#REF!,5,FALSE) ->  | P25: 1 | Q25: 15 | R25: 2 | S25: =VLOOKUP(C25,#REF!,2,FALSE) ->  | U25: 5 | V25: =VLOOKUP(C25,#REF!,3,FALSE) ->  | X25: 3 | Y25: =VLOOKUP(C25,#REF!,4,FALSE) ->  | AA25: 0 | AB25: =VLOOKUP(C25,#REF!,5,FALSE) ->  | AD25: 2 | AE25: 0 | AF25: 30 | AG25: 16

Sheet aktuala (5) (hidden)
C2: ='F1'!B2 -> Sporta viktorīnas speciālizlaidums | F1 viktorīna | 2025.gada 13.augusts
B4: # | C4: Komandas / Raundi | D4: 1 | G4: 2 | J4: 3 | M4: 4 | P4: 5 | R4: 6 | U4: 7 | X4: 8 | AA4: 9 | AD4: 10 | AG4: KOPĀ
B5: 1 | C5: Āreče | D5: 6 | E5: 15 | F5: 90 | G5: 6 | H5: 20 | I5: 120 | J5: 3 | K5: 10 | L5: 30 | M5: 5 | N5: 15 | O5: 75 | P5: 8 | Q5: 120 | R5: 5 | S5: 10 | T5: 50 | U5: 6 | V5: 20 | W5: 120 | X5: 6 | Y5: 15 | Z5: 90 | AA5: 2 | AB5: 15 | AC5: 30 | AD5: 7 | AE5: 1 | AF5: 130 | AG5: 55 | AH5: 855
B6: 2 | C6: Trombons un citas problēmas | D6: 4 | E6: 15 | F6: 60 | G6: 5 | H6: 15 | I6: 75 | J6: 2 | K6: 10 | L6: 20 | M6: 5.5 | N6: 20 | O6: 110 | P6: 8 | Q6: 120 | R6: 6 | S6: 20 | T6: 120 | U6: 5 | V6: 10 | W6: 50 | X6: 6 | Y6: 15 | Z6: 90 | AA6: 4 | AB6: 15 | AC6: 60 | AD6: 7 | AE6: 1 | AF6: 130 | AG6: 53.5 | AH6: 835
B7: 3 | C7: Džokers un pieci dūži | D7: 4 | E7: 10 | F7: 40 | G7: 6 | H7: 20 | I7: 120 | J7: 3 | K7: 15 | L7: 45 | M7: 5.5 | N7: 15 | O7: 82.5 | P7: 8 | Q7: 120 | R7: 6 | S7: 15 | T7: 90 | U7: 3 | V7: 15 | W7: 45 | X7: 6 | Y7: 20 | Z7: 120 | AA7: 3 | AB7: 10 | AC7: 30 | AD7: 6 | AE7: 1 | AF7: 115 | AG7: 51.5 | AH7: 807.5
B8: 4 | C8: Prāta eklektika | D8: 5 | E8: 10 | F8: 50 | G8: 6 | H8: 20 | I8: 120 | J8: 3 | K8: 15 | L8: 45 | M8: 5.5 | N8: 15 | O8: 82.5 | P8: 8 | Q8: 120 | R8: 5 | S8: 15 | T8: 75 | U8: 5 | V8: 15 | W8: 75 | X8: 4 | Y8: 20 | Z8: 80 | AA8: 2 | AB8: 10 | AC8: 20 | AD8: 6 | AE8: 1 | AF8: 115 | AG8: 50.5 | AH8: 782.5
B9: 5 | C9: Apskaidrība | D9: 6 | E9: 20 | F9: 120 | G9: 4 | H9: 15 | I9: 60 | J9: 1 | K9: 10 | L9: 10 | M9: 5 | N9: 15 | O9: 75 | P9: 8 | Q9: 120 | R9: 5 | S9: 15 | T9: 75 | U9: 4 | V9: 10 | W9: 40 | X9: 3.5 | Y9: 15 | Z9: 52.5 | AA9: 4 | AB9: 20 | AC9: 80 | AD9: 6 | AE9: 1 | AF9: 115 | AG9: 47.5 | AH9: 747.5
B10: 6 | C10: Abula gepardi | D10: 4 | E10: 10 | F10: 40 | G10: 4 | H10: 15 | I10: 60 | J10: 3 | K10: 15 | L10: 45 | M10: 5.5 | N10: 20 | O10: 110 | P10: 8 | Q10: 120 | R10: 5 | S10: 15 | T10: 75 | U10: 5 | V10: 10 | W10: 50 | X10: 5 | Y10: 20 | Z10: 100 | AA10: 2 | AB10: 15 | AC10: 30 | AD10: 4 | AE10: 0 | AF10: 60 | AG10: 45.5 | AH10: 690
B11: 7 | C11: Aģenti | D11: 6 | E11: 15 | F11: 90 | G11: 5 | H11: 15 | I11: 75 | J11: 2 | K11: 10 | L11: 20 | M11: 5 | N11: 20 | O11: 100 | P11: 0 | Q11: 0 | R11: 4 | S11: 15 | T11: 60 | U11: 5 | V11: 15 | W11: 75 | X11: 6 | Y11: 10 | Z11: 60 | AA11: 5 | AB11: 20 | AC11: 100 | AD11: 5 | AE11: 1 | AF11: 100 | AG11: 44 | AH11: 680
B12: 8 | C12: Domājam nosaukumu | D12: 4 | E12: 15 | F12: 60 | G12: 5 | H12: 20 | I12: 100 | J12: 3 | K12: 10 | L12: 30 | M12: 4 | N12: 15 | O12: 60 | P12: 7 | Q12: 105 | R12: 3 | S12: 20 | T12: 60 | U12: 5 | V12: 15 | W12: 75 | X12: 6 | Y12: 15 | Z12: 90 | AA12: 3 | AB12: 10 | AC12: 30 | AD12: 3 | AE12: 1 | AF12: 70 | AG12: 44 | AH12: 680
B13: 9 | C13: Amatieru pietura | D13: 4 | E13: 15 | F13: 60 | G13: 5 | H13: 20 | I13: 100 | J13: 2 | K13: 10 | L13: 20 | M13: 4 | N13: 15 | O13: 60 | P13: 8 | Q13: 120 | R13: 3 | S13: 15 | T13: 45 | U13: 5 | V13: 20 | W13: 100 | X13: 3 | Y13: 10 | Z13: 30 | AA13: 4 | AB13: 15 | AC13: 60 | AD13: 3 | AE13: 0 | AF13: 45 | AG13: 41 | AH13: 640
B14: 10 | C14: Gaujas hiēnas | D14: 5 | E14: 15 | F14: 75 | G14: 4 | H14: 15 | I14: 60 | J14: 2 | K14: 10 | L14: 20 | M14: 4.5 | N14: 20 | O14: 90 | P14: 7 | Q14: 105 | R14: 4 | S14: 15 | T14: 60 | U14: 5 | V14: 10 | W14: 50 | X14: 4 | Y14: 15 | Z14: 60 | AA14: 1 | AB14: 20 | AC14: 20 | AD14: 5 | AE14: 0 | AF14: 75 | AG14: 41.5 | AH14: 615
B15: 11 | C15: Konkurences kavētāji | D15: 4 | E15: 15 | F15: 60 | G15: 6 | H15: 20 | I15: 120 | J15: 1 | K15: 10 | L15: 10 | M15: 3.5 | N15: 15 | O15: 52.5 | P15: 4 | Q15: 60 | R15: 2 | S15: 10 | T15: 20 | U15: 5 | V15: 15 | W15: 75 | X15: 5 | Y15: 20 | Z15: 100 | AA15: 3 | AB15: 15 | AC15: 45 | AD15: 2 | AE15: 0 | AF15: 30 | AG15: 35.5 | AH15: 572.5
B16: 12 | C16: Pa zoino | D16: 6 | E16: 15 | F16: 90 | G16: 2 | H16: 15 | I16: 30 | J16: 0 | K16: 10 | L16: 0 | M16: 6 | N16: 20 | O16: 120 | P16: 4 | Q16: 60 | R16: 2 | S16: 15 | T16: 30 | U16: 5 | V16: 15 | W16: 75 | X16: 3 | Y16: 10 | Z16: 30 | AA16: 3 | AB16: 20 | AC16: 60 | AD16: 2 | AE16: 0 | AF16: 30 | AG16: 33 | AH16: 525
B17: 13 | C17: HR All-Stars | D17: 5 | E17: 15 | F17: 75 | G17: 3 | H17: 15 | I17: 45 | J17: 1 | K17: 10 | L17: 10 | M17: 3.5 | N17: 20 | O17: 70 | P17: 6 | Q17: 90 | R17: 2 | S17: 15 | T17: 30 | U17: 4 | V17: 10 | W17: 40 | X17: 3 | Y17: 15 | Z17: 45 | AA17: 2 | AB17: 20 | AC17: 40 | AD17: 5 | AE17: 0 | AF17: 75 | AG17: 34.5 | AH17: 520
B18: 14 | C18: Hektora saime | D18: 4 | E18: 15 | F18: 60 | G18: 3 | H18: 20 | I18: 60 | J18: 0 | K18: 10 | L18: 0 | M18: 3 | N18: 15 | O18: 45 | P18: 6 | Q18: 90 | R18: 2 | S18: 15 | T18: 30 | U18: 5 | V18: 10 | W18: 50 | X18: 3.5 | Y18: 20 | Z18: 70 | AA18: 2 | AB18: 15 | AC18: 30 | AD18: 5 | AE18: 0 | AF18: 75 | AG18: 33.5 | AH18: 510
B19: 15 | C19: Kukuržņi | D19: 5 | E19: 20 | F19: 100 | G19: 4 | H19: 15 | I19: 60 | J19: 1 | K19: 10 | L19: 10 | M19: 3 | N19: 15 | O19: 45 | P19: 0 | Q19: 0 | R19: 3 | S19: 20 | T19: 60 | U19: 4 | V19: 10 | W19: 40 | X19: 4 | Y19: 15 | Z19: 60 | AA19: 3 | AB19: 15 | AC19: 45 | AD19: 2 | AE19: 0 | AF19: 30 | AG19: 29 | AH19: 450
B20: 16 | C20: HR Powerhouse | D20: 2 | E20: 15 | F20: 30 | G20: 3 | H20: 15 | I20: 45 | J20: 1 | K20: 10 | L20: 10 | M20: 3 | N20: 20 | O20: 60 | P20: 2 | Q20: 30 | R20: 2 | S20: 15 | T20: 30 | U20: 3 | V20: 10 | W20: 30 | X20: 2.5 | Y20: 15 | Z20: 37.5 | AA20: 1 | AB20: 20 | AC20: 20 | AD20: 4 | AE20: 1 | AF20: 85 | AG20: 24.5 | AH20: 377.5
B21: 17 | C21: =#REF! ->  | E21: =VLOOKUP(C21,#REF!,2,FALSE) ->  | F21: =D21*E21 ->  | H21: =VLOOKUP(C21,#REF!,3,FALSE) ->  | I21: =G21*H21 ->  | K21: =VLOOKUP(C21,#REF!,4,FALSE) ->  | L21: =J21*K21 ->  | N21: =VLOOKUP(C21,#REF!,5,FALSE) ->  | O21: =M21*N21 ->  | Q21: =P21*15 -> 0 | S21: =VLOOKUP(C21,#REF!,2,FALSE) ->  | T21: =R21*S21 ->  | V21: =VLOOKUP(C21,#REF!,3,FALSE) ->  | W21: =U21*V21 ->  | Y21: =VLOOKUP(C21,#REF!,4,FALSE) ->  | Z21: =X21*Y21 ->  | AB21: =VLOOKUP(C21,#REF!,5,FALSE) ->  | AC21: =AA21*AB21 ->  | AF21: =AD21*15+AE21*25 -> 0 | AG21: =D21+G21+J21+M21+R21+U21+X21+AA21+AD21+AE21+P21 -> 0 | AH21: =F21+I21+L21+O21+Q21+T21+W21+Z21+AC21+AF21 -> 
B22: 18 | C22: =#REF! ->  | E22: =VLOOKUP(C22,#REF!,2,FALSE) ->  | H22: =VLOOKUP(C22,#REF!,3,FALSE) ->  | K22: =VLOOKUP(C22,#REF!,4,FALSE) ->  | N22: =VLOOKUP(C22,#REF!,5,FALSE) ->  | Q22: 0 | S22: =VLOOKUP(C22,#REF!,2,FALSE) ->  | V22: =VLOOKUP(C22,#REF!,3,FALSE) ->  | Y22: =VLOOKUP(C22,#REF!,4,FALSE) ->  | AB22: =VLOOKUP(C22,#REF!,5,FALSE) ->  | AF22: 0 | AG22: 0
B23: 19 | C23: =#REF! ->  | E23: =VLOOKUP(C23,#REF!,2,FALSE) ->  | H23: =VLOOKUP(C23,#REF!,3,FALSE) ->  | K23: =VLOOKUP(C23,#REF!,4,FALSE) ->  | N23: =VLOOKUP(C23,#REF!,5,FALSE) ->  | Q23: 0 | S23: =VLOOKUP(C23,#REF!,2,FALSE) ->  | V23: =VLOOKUP(C23,#REF!,3,FALSE) ->  | Y23: =VLOOKUP(C23,#REF!,4,FALSE) ->  | AB23: =VLOOKUP(C23,#REF!,5,FALSE) ->  | AF23: 0 | AG23: 0
B24: 20 | C24: =#REF! ->  | E24: =VLOOKUP(C24,#REF!,2,FALSE) ->  | H24: =VLOOKUP(C24,#REF!,3,FALSE) ->  | K24: =VLOOKUP(C24,#REF!,4,FALSE) ->  | N24: =VLOOKUP(C24,#REF!,5,FALSE) ->  | Q24: 0 | S24: =VLOOKUP(C24,#REF!,2,FALSE) ->  | V24: =VLOOKUP(C24,#REF!,3,FALSE) ->  | Y24: =VLOOKUP(C24,#REF!,4,FALSE) ->  | AB24: =VLOOKUP(C24,#REF!,5,FALSE) ->  | AF24: 0 | AG24: 0
B25: 21 | C25: =#REF! ->  | E25: =VLOOKUP(C25,#REF!,2,FALSE) ->  | H25: =VLOOKUP(C25,#REF!,3,FALSE) ->  | K25: =VLOOKUP(C25,#REF!,4,FALSE) ->  | N25: =VLOOKUP(C25,#REF!,5,FALSE) ->  | Q25: 0 | S25: =VLOOKUP(C25,#REF!,2,FALSE) ->  | V25: =VLOOKUP(C25,#REF!,3,FALSE) ->  | Y25: =VLOOKUP(C25,#REF!,4,FALSE) ->  | AB25: =VLOOKUP(C25,#REF!,5,FALSE) ->  | AF25: 0 | AG25: 0

Sheet arpuskastes (hidden)
C2: Speciālizlaidums "ārpus KASTES viktorīna"| 2025.gada 9.janvāris
B4: # | C4: Komandas / Raundi | D4: 1 | E4: 2 | F4: 3 | G4: 4 | H4: 5 | I4: 6 | J4: 7 | K4: 8 | L4: 9 | M4: 10 | N4: KOPĀ
B5: 1 | C5: Fireball | D5: 5 | E5: 5 | F5: 3 | G5: 5 | H5: 8 | I5: 5 | J5: 4 | K5: 5 | N5: =SUM(D5:M5) -> 40
B6: 2 | C6: Jon BorJomi | D6: 5 | E6: 3 | F6: 3 | G6: 5 | H6: 7 | I6: 5 | J6: 6 | K6: 5 | N6: 39
B7: 3 | C7: Īstvuda morda | D7: 6 | E7: 4 | F7: 4 | G7: 5 | H7: 6 | I7: 2 | J7: 5 | K7: 4 | N7: 36
B8: 4 | C8: Siena | D8: 5 | E8: 4 | F8: 5 | G8: 2 | H8: 8 | I8: 3 | J8: 4 | K8: 5 | N8: 36
B9: 5 | C9: Žīdam ir taisnība | D9: 6 | E9: 4 | F9: 4 | G9: 1 | H9: 8 | I9: 4 | J9: 4 | K9: 5 | N9: 36
B10: 6 | C10: Marvels | D10: 5 | E10: 4 | F10: 4 | G10: 4 | H10: 7 | I10: 3 | J10: 4 | K10: 3 | N10: 34
B11: 7 | C11: MĒS | D11: 6 | E11: 4 | F11: 1 | G11: 1 | H11: 8 | I11: 4 | J11: 3 | K11: 4 | N11: 31
B12: 8 | C12: Zēniņi | D12: 4 | E12: 3 | F12: 3 | G12: 2 | H12: 7 | I12: 3 | J12: 3 | K12: 5 | N12: 30
B13: 9 | C13: Mind Machines | D13: 4 | E13: 3 | F13: 2 | G13: 2 | H13: 4 | I13: 4 | J13: 4 | K13: 3 | N13: 26
B14: 10 | C14: Trilonijas bumbas | D14: 3 | E14: 1 | F14: 2 | G14: 3 | H14: 4 | I14: 3 | J14: 4 | K14: 3 | N14: 23
B15: 11 | C15: Verņaki | D15: 3 | E15: 3 | F15: 2 | G15: 2 | H15: 3 | I15: 3 | J15: 2 | K15: 4 | N15: 22
B16: 12 | C16: BunS | D16: 3 | E16: 2 | F16: 1 | G16: 1 | H16: 5 | I16: 3 | J16: 2 | K16: 3 | N16: 20

Sheet ak_1 (hidden)
C2: Speciālizlaidums "ārpus KASTES viktorīna"| 2025.g. 8. un 9.janvāris
B4: # | C4: Komandas / Raundi | D4: Dažādi | E4: Kino | F4: Bērniem | G4: Dažādi | H4: Kas kopīgs? | I4: Auto | J4: Izgudrojumi / izgudrotāji | K4: Pieminekļi | L4: Senā Roma | M4: Kas kopīgs #1 | N4: KOPĀ
B5: 1 | C5: Hektora apustuļi | D5: 6 | E5: 6 | F5: 5 | G5: 4 | H5: 7 | I5: 6 | J5: 6 | K5: 2 | L5: 4 | M5: 8 | N5: =SUM(D5:M5) -> 54
B6: 2 | C6: Fireball | D6: 5 | E6: 4 | F6: 5 | G6: 5 | H6: 4 | I6: 5 | J6: 5 | K6: 3 | L6: 5 | M6: 8 | N6: 49
B7: 3 | C7: Jon BorJomi | D7: 5 | E7: 6 | F7: 5 | G7: 4 | H7: 4 | I7: 5 | J7: 3 | K7: 3 | L7: 5 | M7: 7 | N7: 47
B8: 4 | C8: Alus zaldāti | D8: 3 | E8: 5 | F8: 6 | G8: 6 | H8: 5 | I8: 5 | J8: 4 | K8: 3 | L8: 2 | M8: 5 | N8: 44
B9: 5 | C9: Bunkurs_13, kas vairojas | D9: 4 | E9: 6 | F9: 5 | G9: 4 | H9: 2 | I9: 4 | J9: 5 | K9: 3 | L9: 4 | M9: 7 | N9: 44
B10: 6 | C10: Vortusiņš | D10: 5 | E10: 5 | F10: 3 | G10: 5 | H10: 6 | I10: 4 | J10: 3 | K10: 2 | L10: 3 | M10: 8 | N10: 44
B11: 7 | C11: Īstvuda morda | D11: 2 | E11: 5 | F11: 4 | G11: 5 | H11: 3 | I11: 6 | J11: 4 | K11: 4 | L11: 5 | M11: 6 | N11: 44
B12: 8 | C12: Siena | D12: 3 | E12: 4 | F12: 5 | G12: 4 | H12: 3 | I12: 5 | J12: 4 | K12: 5 | L12: 2 | M12: 8 | N12: 43
B13: 9 | C13: Žīdam ir taisnība | D13: 4 | E13: 4 | F13: 5 | G13: 3 | H13: 4 | I13: 6 | J13: 4 | K13: 4 | L13: 1 | M13: 8 | N13: 43
B14: 10 | N14: 0
B15: 11 | N15: 0
B16: 12 | C16: =#REF! ->  | N16: 0
B17: 13 | C17: Putekļi uz grāmatām | D17: 4 | E17: 5 | F17: 5 | G17: 4 | H17: 6 | I17: 3 | J17: 4 | K17: 2 | L17: 4 | M17: 5 | N17: 42
B18: 14 | C18: Ansamblis X | D18: 4 | E18: 3 | F18: 5 | G18: 3 | H18: 3 | I18: 5 | J18: 4 | K18: 4 | L18: 2 | M18: 8 | N18: 41
B19: 15 | C19: Marvels | D19: 3 | E19: 4 | F19: 3 | G19: 4 | H19: 3 | I19: 5 | J19: 4 | K19: 4 | L19: 4 | M19: 7 | N19: 41
B20: 16 | C20: Gaujas hiēnas | D20: 5 | E20: 5 | F20: 4 | G20: 3 | H20: 2 | I20: 3 | J20: 4 | K20: 2 | L20: 4 | M20: 8 | N20: 40
B21: 17 | C21: MĒS | D21: 4 | E21: 3 | F21: 4 | G21: 5 | H21: 3 | I21: 6 | J21: 4 | K21: 1 | L21: 1 | M21: 8 | N21: 39
B22: 18 | C22: Zēniņi | D22: 3 | E22: 3 | F22: 5 | G22: 4 | H22: 4 | I22: 4 | J22: 3 | K22: 3 | L22: 2 | M22: 7 | N22: 38
B23: 19 | C23: Mind Machines | D23: 4 | E23: 4 | F23: 3 | G23: 4 | H23: 7 | I23: 4 | J23: 3 | K23: 2 | L23: 2 | M23: 4 | N23: 37
B24: 20 | C24: Bugatti Veyron | D24: 4 | E24: 4 | F24: 5 | G24: 4 | H24: 2 | I24: 4 | J24: 3 | K24: 3 | L24: 3 | M24: 4 | N24: 36
B25: 21 | C25: Trilonijas bumbas | D25: 3 | E25: 4 | F25: 3 | G25: 5 | H25: 3 | I25: 3 | J25: 1 | K25: 2 | L25: 3 | M25: 4 | N25: 31
B26: 22 | C26: Verņaki | D26: 3 | E26: 2 | F26: 4 | G26: 3 | H26: 4 | I26: 3 | J26: 3 | K26: 2 | L26: 2 | M26: 3 | N26: 29
B27: 23 | C27: Tagad zinu - ko nezināju! | D27: 4 | E27: 2 | F27: 4 | G27: 2 | H27: 2 | I27: 3 | J27: 1 | K27: 3 | L27: 1 | M27: 3 | N27: 25
B28: 24 | C28: BunS | D28: 3 | E28: 2 | F28: 3 | G28: 3 | H28: 2 | I28: 3 | J28: 2 | K28: 1 | L28: 1 | M28: 5 | N28: 25

Sheet EUROLEAGUE_5dec (hidden)
C2: Basketbola / Eirolīgas viktorīna - 2025.gada 5.decembris
B4: # | C4: Komandas / Raundi | D4: Dzimuši 2000.g. un jaunāki | E4: Klubu mājvietas | F4: Dažādi | G4: LAT basketbolisti ārpus basketbola | H4: Kas kopīgs? | I4: Dažādi | J4: Ārpus kastes | K4: Iesaukas | L4: Treneri jaunībā | M4: Ķēde | N4: KOPĀ
B5: 1 | C5: Rozā krekli un mokasīni | D5: 6 | E5: 6 | F5: 6 | G5: 5 | H5: 7 | I5: 5 | J5: 4 | K5: 6 | L5: 5 | M5: 7 | N5: =SUM(D5:M5) -> 57
B6: 2 | C6: Alus zaldāti | D6: 5 | E6: 3 | F6: 4.5 | G6: 4 | H6: 7 | I6: 4 | J6: 5 | K6: 5 | L6: 6 | M6: 7 | N6: 50.5
B7: 3 | C7: Barangay Ginebra San Miguel | D7: 5 | E7: 5 | F7: 4 | G7: 3 | H7: 8 | I7: 4 | J7: 3 | K7: 5 | L7: 3 | M7: 7 | N7: 47
B8: 4 | C8: Kozis | D8: 3 | E8: 3 | F8: 5 | G8: 4 | H8: 7 | I8: 3 | J8: 5 | K8: 4 | L8: 5 | M8: 4 | N8: 43
B9: 5 | C9: Fireball | D9: 1 | E9: 2 | F9: 6 | G9: 4 | H9: 4 | I9: 5 | J9: 6 | K9: 4 | L9: 4 | M9: 3 | N9: 39
B10: 6 | C10: Zigfrīds Abduldžabars | D10: 2 | E10: 2 | F10: 3 | G10: 4 | H10: 6 | I10: 4 | J10: 4 | K10: 4 | L10: 4 | M10: 1 | N10: 34
B11: 7 | C11: Gražuli | D11: 3 | E11: 5 | F11: 2.5 | G11: 0 | H11: 7 | I11: 4 | J11: 3 | K11: 3 | L11: 3 | M11: 2 | N11: 32.5
B12: 8 | C12: Kūpers | D12: 6 | E12: 2 | F12: 3 | G12: 2 | H12: 7 | I12: 3 | J12: 1 | K12: 4 | L12: 2 | M12: 2 | N12: 32
B13: 9 | C13: Zikurāts | D13: 0 | E13: 1 | F13: 0 | G13: 0 | H13: 4 | I13: 1 | J13: 3 | K13: 0 | L13: 1 | M13: 1 | N13: 11
